Workbook

Sheet Datos SGC (hidden)
J1: 1 | K1: 2 | L1: 3 | M1: 4 | N1: 5
J2: IMPACTO
B3: Procesos | C3: Tipos de Riesgos | D3: Escala probabilidad | E3: Escala impacto | J3: Insignificante | K3: Menor | L3: Moderado | M3: Mayor | N3: Catastrófico
B4: Admisiones, Registro y Control | C4: Estratégico | D4: Casi seguro | E4: Catastrófico | G4: 5 | H4: PROBABILIDAD | I4: Casi seguro | J4: ALTO | K4: ALTO | L4: EXTREMO | M4: EXTREMO | N4: EXTREMO | P4: Zona de Riesgo
B5: Autoevaluación y Acreditación | C5: Gerencial | D5: Probable | E5: Mayor | G5: 4 | I5: Probable | J5: MODERADO | K5: ALTO | L5: ALTO | M5: EXTREMO | N5: EXTREMO | Q5: BAJO
B6: Bienestar Institucional | C6: Operativo | D6: Posible | E6: Moderado | G6: 3 | I6: Posible | J6: BAJO | K6: MODERADO | L6: ALTO | M6: EXTREMO | N6: EXTREMO | Q6: MODERADO
B7: Comunicaciones | C7: Financiero | D7: Improbable | E7: Menor | G7: 2 | I7: Improbable | J7: BAJO | K7: BAJO | L7: MODERADO | M7: ALTO | N7: EXTREMO | Q7: ALTO
B8: Control Disciplinario | C8: Tecnológico | D8: Rara vez | E8: Insignificante | G8: 1 | I8: Rara vez | J8: BAJO | K8: BAJO | L8: MODERADO | M8: ALTO | N8: EXTREMO | Q8: EXTREMO
B9: Evaluación y Control | C9: Cumplimiento
B10: Extensión y Proyección Social | C10: Imagen o reputacional
B11: Gestión Contractual | E11: Escala impacto (eje de corrupción)
B12: Gestión de Docencia | E12: Catastrófico
B13: Gestión de Investigación | E13: Mayor | J13: 1 | K13: 2 | L13: 3 | M13: 4 | N13: 5
B14: Gestión de la Información Bibliográfica | E14: Moderado | J14: Insignificante | K14: Menor | L14: Moderado | M14: Mayor | N14: Catastrófico
B15: Gestión de la Infraestructura Física | H15: Casi seguro | I15: 5 | J15: ALTO | K15: ALTO | L15: EXTREMO | M15: EXTREMO | N15: EXTREMO
B16: Gestión de Laboratorios | H16: Probable | I16: 4 | J16: MODERADO | K16: ALTO | L16: ALTO | M16: EXTREMO | N16: EXTREMO
B17: Gestión de los Sistemas de la Información y las Telecomunicaciones | H17: Posible | I17: 3 | J17: BAJO | K17: MODERADO | L17: ALTO | M17: EXTREMO | N17: EXTREMO
B18: Gestión de Recursos Financieros | H18: Improbable | I18: 2 | J18: BAJO | K18: BAJO | L18: MODERADO | M18: ALTO | N18: EXTREMO
B19: Gestión Documental | H19: Rara vez | I19: 1 | J19: BAJO | K19: BAJO | L19: MODERADO | M19: ALTO | N19: EXTREMO
B20: Gestión Integrada
B21: Gestión Jurídica
B22: Gestión y Desarrollo del Talento Humano | H22: Probabilidad | J22: Impacto
B23: Interinstitucionalización e Internacionalización | H23: 5 | I23: Casi seguro | J23: 1 | K23: Insignificante
B24: Planeación Estratégica Institucional | H24: 4 | I24: Probable | J24: 2 | K24: Menor
B25: Servicio al Ciudadano | H25: 3 | I25: Posible | J25: 3 | K25: Moderado
H26: 2 | I26: Improbable | J26: 4 | K26: Mayor
B27: Solidez del Control | H27: 1 | I27: Rara vez | J27: 5 | K27: Catastrófico
B28: Variable | C28: Opción de respuesta | D28: Puntaje
B29: Asignación del Responsable | C29: Asignado | D29: 15
C30: No asignado | D30: 0
B31: Segregación y autoridad del Responsable | C31: Adecuado | D31: 15
C32: Inadecuado | D32: 0
B33: Periodicidad | C33: Oportuna | D33: 15
C34: No oportuna | D34: 0
B35: Propósito | C35: Prevenir | D35: 15
C36: Detectar | D36: 10
C37: No es un control | D37: 0
B38: Cómo se realiza la actividad de Control | C38: Confiable | D38: 15
C39: No confiable | D39: 0
B40: Qué pasa con las observaciones y desviaciones | C40: Se investigan y resuelven oportunamente | D40: 15
C41: No se investigan y resuelven oportunamente | D41: 0
B42: Evidencia de la Ejecución del Control | C42: Completa | D42: 10
C43: Incompleta | D43: 5
C44: No existe | D44: 0
B46: Ejecución del Control | C46: Disminución de probabilidad e impacto | D46: Disminución de probabilidad e impacto
B47: Se ejecuta de manera consistente por parte del responsable. | C47: Directamente | D47: Directamente
B48: Se ejecuta algunas veces por parte del responsable. | C48: No disminuye | D48: Indirectamente
B49: El control no se ejecuta por parte del responsable. | D49: No disminuye
B52: Opciones de tratamiento del Riesgo | C52: Opciones de tratamiento del Riesgo (Eje de corrupción)
B53: Aceptar | C53: Reducir
B54: Reducir | C54: Evitar
B55: Evitar | C55: Compartir
B56: Compartir
B59: Procesos | C59: Objetivos
B60: Admisiones, Registro y Control | C60: Garantizar el ingreso de nuevos estudiantes mediante la inscripción, selección, transferencia, así como el reingreso y la gestión del registro y control académico tanto de estudiantes como de los egresados, que se lleva a cabo en los distintos proyectos curriculares que oferta la Universidad, bajo preceptos de equidad y transparencia.
B61: Autoevaluación y Acreditación | C61: Realizar de manera sistemática y permanente un análisis valorativo y autónomo que permita verificar la calidad en la prestación de los servicios académicos y el grado de cumplimiento de los objetivos institucionales.
B62: Bienestar Institucional | C62: Contribuir al desarrollo integral de la comunidad universitaria, mediante la generación y promoción de espacios participativos de desarrollo humano, interacción social y reflexión, en aras de alcanzar entornos agradables que mejoren su calidad de vida.
B63: Comunicaciones | C63: Coordinar las actividades de comunicación institucional interna y externa, a través de la difusión y publicación oportuna de la información generada por la Universidad y de interés general de la misma, con el fin de garantizar la visibilidad, el posicionamiento y el mejoramiento de la imagen institucional.
B64: Control Disciplinario | C64: Evaluar y tramitar, de manera imparcial, oportuna y según la normativa aplicable, la totalidad de noticias disciplinarias que puedan implicar la responsabilidad de integrantes del personal administrativo y docentes de planta de la Universidad Distrital Francisco José de Caldas, esto con el fin de apoyar y fortalecer el proceso de control disciplinario en el Alma Mater.
B65: Evaluación y Control | C65: Medir y evaluar la eficiencia, eficacia y economía de los procesos de la Universidad Distrital Francisco José de Caldas, asesorando a la Alta Dirección en el mejoramiento continuo del proceso administrativo, para la evaluación de los planes establecidos y de los correctivos que sean necesarios para el cumplimiento de las metas y objetivos institucionales, basados en las diferentes funciones en las que se enmarca el rol de la Oficina de Control Interno, como son la valoración de riesgos, acompañamiento y asesoría, evaluación y seguimiento, fomento a la cultura de control y relación con entes externos.
B66: Extensión y Proyección Social | C66: Promover la vinculación de la Universidad Distrital Francisco José de Caldas con su entorno social, a través de la coordinación de los programas, planes y proyectos de Extensión y Proyección Social, en articulación a la Docencia y la Investigación.
B67: Gestión Contractual | C67: Gestionar de manera transparente y eficaz los recursos para la contratación de los bienes y/o servicios a través de los diferentes mecanismos de contratación necesarios para el cumplimiento de la misión y visión de la Universidad Distrital Francisco José de Caldas de acuerdo a los estándares y normatividad vigente.
B68: Gestión de Docencia | C68: Garantizar que los Planes de Estudio establecidos para cada Proyecto Curricular, ofrezcan al estudiante de la UDFJC una formación integral y de calidad, dirigida fundamentalmente a las necesidades de la sociedad, contando con la cantidad e idoneidad de Docentes y demás personal que influya directamente en tal Proceso de Formación, garantizando que se ejecute eficientemente el Proceso de Enseñanza-Aprendizaje.
B69: Gestión de Investigación | C69: Administrar los recursos destinados al desarrollo de estrategias, programas, proyectos investigativos y contar con las condiciones estructurales-organizacionales para proyectarse como una universidad investigativa que promueva y potencie la capacidad del investigador de la Universidad y su labor tenga eco en el desarrollo científico y sociocultural de la ciudad – región y país.
B70: Gestión de la Información Bibliográfica | C70: Gestionar y proveer el acceso a fuentes de información académicas, investigativas y culturales a la Comunidad Universitaria, a través de recursos y servicios de información oportunos, pertinentes y actualizados con el fin de apoyar y fortalecer los Procesos Misionales de la Universidad Distrital Francisco José de Caldas.
B71: Gestión de la Infraestructura Física | C71: Garantizar a través de su gestión los servicios relacionados con administración de bienes, infraestructura, planta física, mantenimiento, compras, inventarios, aseo y seguridad, requeridos para el óptimo desarrollo de las actividades académico-administrativas de la Universidad Distrital Francisco José de Caldas.
B72: Gestión de Laboratorios | C72: Desarrollar las actividades de soporte necesarias para llevar a cabo la Gestión de Laboratorios de la Universidad Distrital Francisco José de Caldas mediante el cumplimiento de los lineamientos y políticas institucionales establecidas, brindando así apoyo a las labores misionales.
B73: Gestión de los Sistemas de la Información y las Telecomunicaciones | C73: Gestionar los Sistemas de Información y las Telecomunicaciones para asegurar el acceso, adquisición, disponibilidad, confiabilidad, confidencialidad y seguridad de los activos de información a través de la infraestructura y las soluciones Informáticas en el marco de la normatividad vigente aplicable, como apoyo a los Procesos Misionales de la Universidad para satisfacer las necesidades de la comunidad universitaria.
B74: Gestión de Recursos Financieros | C74: Administrar, gestionar, registrar y controlar los recursos financieros en la Universidad Distrital Francisco José Caldas, cumpliendo con el marco constitucional, legal y normativo vigente; garantizando la transparencia y sostenibilidad financiera de acuerdo a los lineamientos establecidos en el contexto estratégico y misional de la institución.
B75: Gestión Documental | C75: Garantizar la correcta planeación, organización, manejo, control y funcionamiento de la gestión documental, desde la producción hasta la disposición final de los documentos físicos, electrónicos e híbridos, en los archivos de gestión y central, que en su conjunto conforman el archivo total de la Universidad Distrital, de forma lógica de acuerdo con la naturaleza y fines de la Universidad, cumpliendo con los estándares técnicos para el tratamiento de los documentos y la legislación vigente, para proteger el patrimonio documental, preservar los archivos en las mejores condiciones de acceso y seguridad, y garantizar la disponibilidad a la academia, la comunidad en general y del mejoramiento institucional.
B76: Gestión Integrada | C76: Articular y consolidar el Sistema Integrado de Gestión de la Universidad Distrital y su marco de referencia el Modelo Integrado de Planeación y Gestión - MIPG, con el fin de garantizar un desempeño institucional articulado y armónico, para la consecución de resultados y satisfacción de la Comunidad Universitaria y los Grupos de Valor, a través de acciones orientadas a la implementación de las Dimensiones, Políticas y Procesos que lo componen, de tal manera que se logre un aumento en cinco puntos en el Índice de Desempeño Institucional actual, IDI, en la evaluación del FURAG al año 2021.
B77: Gestión Jurídica | C77: Ejecutar y desarrollar políticas, planes, programas y proyectos de carácter jurídico, armonizando los actos administrativos emanados por la Universidad con las leyes y la jurisprudencia vigente, llevando a cabo la representación legal, la defensa judicial, la asesoría en temas jurídicos y el apoyo a la gestión contractual, de la Universidad Distrital Francisco José de Caldas.
B78: Gestión y Desarrollo del Talento Humano | C78: Promover Servidores Públicos altamente calificados y comprometidos con la organización creando condiciones para su bienestar, seguridad e integralidad, a través del diseño e implementación de políticas, estrategias, planes, programas y proyectos, encaminados a la consecución de los objetivos y cumplimiento de las funciones institucionales.
B79: Interinstitucionalización e Internacionalización | C79: Direccionar y Gestionar la Interinstitucionalización e Internacionalización de la Universidad Distrital Francisco José de Caldas para contribuir con la formación integral de profesionales e investigadores globalmente competitivos a través de acciones de direccionamiento estratégico para la inmersión y participación activa de la institución en la sociedad del conocimiento en el ámbito local, Nacional e Internacional.
B80: Planeación Estratégica Institucional | C80: Coordinar y orientar el diseño y la implementación de estrategias, políticas, programas, y proyectos con el fin de dar cumplimiento a la misión, visión y objetivos institucionales, enmarcados en el Sistema de Planeación Institucional.
B81: Servicio al Ciudadano | C81: Garantizar el acceso a la información, la correcta y oportuna atención a la ciudadanía y grupos de interés, en temas relacionados con el funcionamiento y cumplimiento de la misión de la Universidad, mediante la adecuación e implementación de canales de atención, la oportuna divulgación de información y el trámite oportuno de peticiones que interpongan los ciudadanos en el ejercicio de su función de control social.

Sheet Datos SGA (hidden)
B2: Proceso | C2: Objetivo | D2: Sedes UD
B3: Admisiones, Registro y Control | C3: Garantizar el ingreso de nuevos estudiantes mediante la inscripción, selección, transferencia, así como el reingreso y la gestión del registro y control académico tanto de estudiantes como de los egresados, que se lleva a cabo en los distintos proyectos curriculares que oferta la Universidad, bajo preceptos de equidad y transparencia. | D3: Facultad Ingeniería - Calle 40
B4: Autoevaluación y Acreditación | C4: Realizar de manera sistemática y permanente un análisis valorativo y autónomo que permita verificar la calidad en la prestación de los servicios académicos y el grado de cumplimiento de los objetivos institucionales. | D4: Facultad Ciencias y Educación - Macarena A
B5: Bienestar Institucional | C5: Contribuir al desarrollo integral de la comunidad universitaria, mediante la generación y promoción de espacios participativos de desarrollo humano, interacción social y reflexión, en aras de alcanzar entornos agradables que mejoren su calidad de vida. | D5: Facultad Ciencias y Educación - Macarena B
B6: Comunicaciones | C6: Coordinar las actividades de comunicación institucional interna y externa, a través de la difusión y publicación oportuna de la información generada por la Universidad y de interés general de la misma, con el fin de garantizar la visibilidad, el posicionamiento y el mejoramiento de la imagen institucional. | D6: Facultad de Medio Ambiente y Recursos Naturales - Vivero
B7: Control Disciplinario | C7: Evaluar y tramitar, de manera imparcial, oportuna y según la normativa aplicable, la totalidad de noticias disciplinarias que puedan implicar la responsabilidad de integrantes del personal administrativo y docentes de planta de la Universidad Distrital Francisco José de Caldas, esto con el fin de apoyar y fortalecer el proceso de control disciplinario en el Alma Mater. | D7: Facultad Tecnológica
B8: Evaluación y Control | C8: Medir y evaluar la eficiencia, eficacia y economía de los procesos de la Universidad Distrital Francisco José de Caldas, asesorando a la Alta Dirección en el mejoramiento continuo del proceso administrativo, para la evaluación de los planes establecidos y de los correctivos que sean necesarios para el cumplimiento de las metas y objetivos institucionales, basados en las diferentes funciones en las que se enmarca el rol de la Oficina de Control Interno, como son la valoración de riesgos, acompañamiento y asesoría, evaluación y seguimiento, fomento a la cultura de control y relación con entes externos. | D8: Facultad de Artes ASAB
B9: Extensión y Proyección Social | C9: Promover la vinculación de la Universidad Distrital Francisco José de Caldas con su entorno social, a través de la coordinación de los programas, planes y proyectos de Extensión y Proyección Social, en articulación a la Docencia y la Investigación. | D9: Facultad de Artes ASAB - Sótanos Jimenez
B10: Gestión Contractual | C10: Gestionar de manera transparente y eficaz los recursos para la contratación de los bienes y/o servicios a través de los diferentes mecanismos de contratación necesarios para el cumplimiento de la misión y visión de la Universidad Distrital Francisco José de Caldas de acuerdo a los estándares y normatividad vigente. | D10: Academia Luis A. Calvo - ALAC
B11: Gestión de Docencia | C11: Garantizar que los Planes de Estudio establecidos para cada Proyecto Curricular, ofrezcan al estudiante de la UDFJC una formación integral y de calidad, dirigida fundamentalmente a las necesidades de la sociedad, contando con la cantidad e idoneidad de Docentes y demás personal que influya directamente en tal Proceso de Formación, garantizando que se ejecute eficientemente el Proceso de Enseñanza-Aprendizaje. | D11: Posgrados de Ciencias y Educación
B12: Gestión de Investigación | C12: Administrar los recursos destinados al desarrollo de estrategias, programas, proyectos investigativos y contar con las condiciones estructurales-organizacionales para proyectarse como una universidad investigativa que promueva y potencie la capacidad del investigador de la Universidad y su labor tenga eco en el desarrollo científico y sociocultural de la ciudad – región y país. | D12: Calle 34
B13: Gestión de la Información Bibliográfica | C13: Gestionar y proveer el acceso a fuentes de información académicas, investigativas y culturales a la Comunidad Universitaria, a través de recursos y servicios de información oportunos, pertinentes y actualizados con el fin de apoyar y fortalecer los Procesos Misionales de la Universidad Distrital Francisco José de Caldas. | D13: Emisora LAUD 90.4
B14: Gestión de la Infraestructura Física | C14: Garantizar a través de su gestión los servicios relacionados con administración de bienes, infraestructura, planta física, mantenimiento, compras, inventarios, aseo y seguridad, requeridos para el óptimo desarrollo de las actividades académico-administrativas de la Universidad Distrital Francisco José de Caldas. | D14: ILUD Virrey - Calle 85
B15: Gestión de Laboratorios | C15: Desarrollar las actividades de soporte necesarias para llevar a cabo la Gestión de Laboratorios de la Universidad Distrital Francisco José de Caldas mediante el cumplimiento de los lineamientos y políticas institucionales establecidas, brindando así apoyo a las labores misionales. | D15: ILUD - San Luis
B16: Gestión de los Sistemas de la Información y las Telecomunicaciones | C16: Gestionar los Sistemas de Información y las Telecomunicaciones para asegurar el acceso, adquisición, disponibilidad, confiabilidad, confidencialidad y seguridad de los activos de información a través de la infraestructura y las soluciones Informáticas en el marco de la normatividad vigente aplicable, como apoyo a los Procesos Misionales de la Universidad para satisfacer las necesidades de la comunidad universitaria. | D16: ILUD e IDEXUD - Edificio UGI
B17: Gestión de Recursos Financieros | C17: Administrar, gestionar, registrar y controlar los recursos financieros en la Universidad Distrital Francisco José Caldas, cumpliendo con el marco constitucional, legal y normativo vigente; garantizando la transparencia y sostenibilidad financiera de acuerdo a los lineamientos establecidos en el contexto estratégico y misional de la institución. | D17: ILUD La Rebeca - Calle 23
B18: Gestión Documental | C18: Garantizar la correcta planeación, organización, manejo, control y funcionamiento de la gestión documental, desde la producción hasta la disposición final de los documentos físicos, electrónicos e híbridos, en los archivos de gestión y central, que en su conjunto conforman el archivo total de la Universidad Distrital, de forma lógica de acuerdo con la naturaleza y fines de la Universidad, cumpliendo con los estándares técnicos para el tratamiento de los documentos y la legislación vigente, para proteger el patrimonio documental, preservar los archivos en las mejores condiciones de acceso y seguridad, y garantizar la disponibilidad a la academia, la comunidad en general y del mejoramiento institucional. | D18: Aduanilla de Paiba
B19: Gestión Integrada | C19: Articular y consolidar el Sistema Integrado de Gestión de la Universidad Distrital y su marco de referencia el Modelo Integrado de Planeación y Gestión - MIPG, con el fin de garantizar un desempeño institucional articulado y armónico, para la consecución de resultados y satisfacción de la Comunidad Universitaria y los Grupos de Valor, a través de acciones orientadas a la implementación de las Dimensiones, Políticas y Procesos que lo componen, de tal manera que se logre un aumento en cinco puntos en el Índice de Desempeño Institucional actual, IDI, en la evaluación del FURAG al año 2021. | D19: Sede Bosa Porvenir
B20: Gestión Jurídica | C20: Ejecutar y desarrollar políticas, planes, programas y proyectos de carácter jurídico, armonizando los actos administrativos emanados por la Universidad con las leyes y la jurisprudencia vigente, llevando a cabo la representación legal, la defensa judicial, la asesoría en temas jurídicos y el apoyo a la gestión contractual, de la Universidad Distrital Francisco José de Caldas. | D20: Sede Carrera 13 # 42-36 Oficina 501
B21: Gestión y Desarrollo del Talento Humano | C21: Promover Servidores Públicos altamente calificados y comprometidos con la organización creando condiciones para su bienestar, seguridad e integralidad, a través del diseño e implementación de políticas, estrategias, planes, programas y proyectos, encaminados a la consecución de los objetivos y cumplimiento de las funciones institucionales. | D21: Sede Publicaciones
B22: Interinstitucionalización e Internacionalización | C22: Direccionar y Gestionar la Interinstitucionalización e Internacionalización de la Universidad Distrital Francisco José de Caldas para contribuir con la formación integral de profesionales e investigadores globalmente competitivos a través de acciones de direccionamiento estratégico para la inmersión y participación activa de la institución en la sociedad del conocimiento en el ámbito local, Nacional e Internacional. | D22: Todas las Sedes
B23: Planeación Estratégica Institucional | C23: Coordinar y orientar el diseño y la implementación de estrategias, políticas, programas, y proyectos con el fin de dar cumplimiento a la misión, visión y objetivos institucionales, enmarcados en el Sistema de Planeación Institucional.
B24: Servicio al Ciudadano | C24: Garantizar el acceso a la información, la correcta y oportuna atención a la ciudadanía y grupos de interés, en temas relacionados con el funcionamiento y cumplimiento de la misión de la Universidad, mediante la adecuación e implementación de canales de atención, la oportuna divulgación de información y el trámite oportuno de peticiones que interpongan los ciudadanos en el ejercicio de su función de control social.
B25: Todos los procesos | C25: NA
B29: Factores de Riesgo
B30: Antrópico | C30: Natural
B31: Explosión | C31: Sismo
B32: Incendio | C32: Vendaval
B33: Fuga | C33: Movimientos en masa
B34: Derrame | C34: Inundación
B35: Ruido Ambiental | C35: Caída de árboles
B36: Deterioro Visual Paisajístico
B38: Probabilidad
B39: Muy probable - 5
B40: Altamente probable - 4
B41: Probable - 3
B42: Posible - 2
B43: Poco probable - 1
B45: Cantidad
B46: Muy Alta - 4
B47: Alta - 3
B48: Muy Poca - 2
B49: Poca - 1
B51: Peligrosidad
B52: Muy peligrosa - 4
B53: Peligrosa - 3
B54: Poco peligrosa - 2
B55: No peligrosa - 1
B57: Extensión | D57: Calidad del Medio | E57: Patrimonio y Capital Productivo
B58: Muy extenso - 4 | D58: Muy elevada - 4 | E58: Muy Alto - 4
B59: Extenso - 3 | D59: Elevada - 3 | E59: Alto - 3
B60: Poco extenso (Emplazamiento) - 2 | D60: Media - 2 | E60: Bajo - 2
B61: Puntual (Área afectada) - 1 | D61: Baja - 1 | E61: Muy Bajo - 1
B63: Población Afectada | D63: RIESGO LEVE 3 | E63: RIESGO LEVE 4 | F63: RIESGO LEVE 5 | G63: RIESGO LEVE 6 | H63: RIESGO LEVE 7 | I63: RIESGO LEVE 8 | J63: RIESGO LEVE 9 | K63: RIESGO LEVE 10 | L63: RIESGO LEVE 11 | M63: RIESGO LEVE 12
B64: Muy alto - 4 | D64: RIESGO LEVE 6 | E64: RIESGO LEVE 8 | F64: RIESGO LEVE 10 | G64: RIESGO LEVE 12 | H64: RIESGO LEVE 14 | I64: RIESGO LEVE 16 | J64: RIESGO LEVE 18 | K64: RIESGO LEVE 20 | L64: RIESGO MODERADO 22 | M64: RIESGO MODERADO 24
B65: Alto - 3 | D65: RIESGO LEVE 9 | E65: RIESGO LEVE 12 | F65: RIESGO LEVE 15 | G65: RIESGO LEVE 18 | H65: RIESGO MODERADO 21 | I65: RIESGO MODERADO 24 | J65: RIESGO MODERADO 27 | K65: RIESGO MODERADO 30 | L65: RIESGO MODERADO 33 | M65: RIESGO MODERADO 36
B66: Bajo - 2 | D66: RIESGO LEVE 12 | E66: RIESGO LEVE 16 | F66: RIESGO LEVE 20 | G66: RIESGO MODERADO 24 | H66: RIESGO MODERADO 28 | I66: RIESGO MODERADO 32 | J66: RIESGO MODERADO 36 | K66: RIESGO MODERADO 40 | L66: RIESGO SIGNIFICATIVO 44 | M66: RIESGO SIGNIFICATIVO 48
B67: Muy bajo - 1 | D67: RIESGO LEVE 15 | E67: RIESGO LEVE 20 | F67: RIESGO MODERADO 25 | G67: RIESGO MODERADO 30 | H67: RIESGO MODERADO 35 | I67: RIESGO MODERADO 40 | J67: RIESGO SIGNIFICATIVO 45 | K67: RIESGO SIGNIFICATIVO 50 | L67: RIESGO SIGNIFICATIVO 55 | M67: RIESGO SIGNIFICATIVO 60
B71: Actividades | C71: Tipo de Control
B72: Manipulación de reactivos químicos (prácticas de laboratorio) | C72: Eliminación
B73: Almacenamiento de reactivos químicos | C73: Sustitución
B74: Mezcla de reactivos químicos | C74: Reducción
B75: Almacenamiento de residuos peligrosos | C75: Separación
B76: Manipulación de residuos peligrosos | C76: Controles de Ingeniería
B77: Transporte interno de materiales y residuos peligrosos | C77: Controles administrativos
B78: Derrame de sustancias líquidas peligrosas | C78: Ecoeficiencia
B79: Derrame de residuos peligrosos | C79: No aplica
B80: Transporte de residuos peligrosos entre Facultades
B81: Operación de centros de acopio para almacenamiento de residuos
B82: Almacenamiento de productos de mantenimiento y limpieza
B83: Almacenamiento de combustibles y líquidos inflamables
B84: Manipulación de combustibles y líquidos inflamables
B85: Almacenamiento de muebles y equipos dados de baja por obsoletos
B86: Almacenamiento de agua en tanques subterráneos
B87: Vertidos accidentales al sistema de alcantarillado
B88: Mantenimiento de infraestructura física
B89: Lixiviación
B90: Operación de subestación eléctrica
B91: Mantenimiento de subestación eléctrica
B92: Operación de equipos eléctricos y electrónicos
B93: Operación de circuitos eléctricos
B94: Operación de plantas eléctricas
B95: Mantenimiento de aire acondicionado
B96: Operación de aire acondicionado
B97: Mantenimiento de equipos
B98: Manipulación de pipetas de gas propano
B99: Operación de equipos con gas natural y gas propano
B100: Operación de tanque de gas
B101: Operación de estufa de gas natural
B102: Almacenamiento de maderas
B103: Manipulación de transformadores usados
B104: Protestas estudiantiles
B105: Manipulación de hornos para cerámica
B106: Instalación de publicidad visual en lugares no permitidos
B107: Uso de parlantes, perifoneo y ensayos artísticos en áreas abiertas
B108: Operación de maquinaria para construcción

Sheet Datos (hidden)
A2: Para Todos | B2: PROCESO | C2: OBJETIVO | E2: SEDE
B3: Todos los Procesos | C3: N/A | E3: Todas las Sedes
B4: Planeación Estratégica e Institucional | C4: Coordinar y orientar el diseño y la implementación de estrategias, políticas, programas, y proyectos con el fin de dar cumplimiento a la misión, visión y objetivos institucionales, enmarcados en el Sistema de Planeación Institucional. | E4: Sede Administrativa
B5: Gestión Integrada | C5: Articular y consolidar el Sistema Integrado de Gestión de la Universidad Distrital y su marco de referencia el Modelo Integrado de Planeación y Gestión - MIPG, con el fin de garantizar un desempeño institucional articulado y armónico, para la consecución de resultados y satisfacción de la Comunidad Universitaria y los Grupos de Valor, a través de acciones orientadas a la implementación de las Dimensiones, Políticas y Procesos que lo componen, de tal manera que se logre un aumento en cinco puntos en el Índice de Desempeño Institucional actual, IDI, en la evaluación del FURAG al año 2021. | E5: Facultad Ingeniería
B6: Autoevaluación y Acreditación | C6: Realizar de manera sistemática y permanente un análisis valorativo y autónomo que permita verificar el grado de cumplimiento de los objetivos institucionales. | E6: Facultad Ciencias y Educación - Macarena A
B7: Interinstitucionalización e Internacionalización | C7: Consolidar la Interinstitucionalización e Internacionalización de la Universidad Distrital Francisco José de Caldas mediante un conjunto de acciones para el direccionamiento estratégico con variables académicas, administrativas y tecnológicas para facilitar la inmersión y participación activa de la institución en la sociedad del conocimiento en el ámbito local, nacional e internacional. | E7: Facultad Ciencias y Educación - Macarena B
B8: Comunicaciones | C8: Coordinar las actividades de comunicación institucional interna y externa, a través de la difusión y publicación oportuna de la información generada por la Universidad y de interés general de la misma, con el fin de garantizar la visibilidad, el posicionamiento y el mejoramiento de la imagen institucional. | E8: Facultad de Medio Ambiente y Recursos Naturales - Vivero
B9: Gestión de Docencia | C9: Garantizar que los planes de estudio establecidos para cada proyecto curricular, ofrezcan al estudiante de la UDFJC una formación integral y de calidad, dirigida fundamentalmente a las necesidades de la sociedad, contando con la cantidad e idoneidad de docentes y demás personal que influya directamente en tal proceso de formación, garantizando que se ejecute eficientemente el proceso de enseñanza. | E9: Facultad Tecnológica
B10: Gestión de Investigación | C10: Fomentar y desarrollar la Gestión Investigativa de alto impacto, a través de la formulación de estrategias, programas y proyectos, a fin de aportar a la consecución de los objetivos y cumplimiento de las funciones institucionales y a los fines esenciales del estado. | E10: Facultad de Artes ASAB
B11: Extensión y Proyección Social | C11: Promover la Vinculación de la Universidad Distrital Francisco José de Caldas con su Entorno social, a través de la coordinación de los programas, planes y proyectos de Extensión y Proyección Social, en articulación a la Docencia y la Investigación. | E11: Facultad de Artes ASAB - Sótanos Jimenez
B12: Admisiones, Registro y Control | C12: Garantizar que la Inscripción, Selección, Ingresos, Reingresos, Transferencias, Registro y Control de la Historia Académica de los estudiantes y egresados de la Universidad, que se lleva a cabo en los Proyectos Curriculares, se realicen bajos preceptos de Equidad y Transparencia. | E12: Academia Luis A. Calvo - ALAC
B13: Bienestar Institucional | C13: Ofrecer servicios de Bienestar Universitario mediante la ejecución de programas que permitan el mejoramiento de la calidad de vida y el desarrollo integral de la comunidad Universitaria. | E13: Posgrados de Ciencias y Educación
B14: Gestión de la Información Bibliográfica | C14: Gestionar y proveer el acceso a fuentes de información académicas, investigativas y culturales de la comunidad universitaria, a través de recursos y servicios de información oportunos con el fin de apoyar la docencia, investigación y extensión de la comunidad universitaria y fortalecer los procesos misionales de la Universidad Distrital Francisco José de Caldas. | E14: Sede Deportiva Calle 34
B15: Gestión de Laboratorios | C15: Desarrollar las actividades de soporte necesarias para llevar a cabo la Gestión de Laboratorios de la Universidad Distrital Francisco Jose de Caldas mediante el cumplimiento de los lineamientos y políticas institucionales establecidas, brindando así apoyo a las labores misionales. | E15: Emisora LAUD 90.4
B16: Servicio al Ciudadano | C16: Recibir, radicar y tramitar las acciones ciudadanas (petición, queja, reclamo, derecho de petición, denuncia, sugerencia, solicitud de información o consulta) que la ciudadanía formule en el ejercicio del control social, relacionadas con el cumplimiento de la misión de la entidad, los servicios y el funcionamiento de la Universidad, siempre propendiendo garantizar la respuesta oportuna a la ciudadanía. | E16: ILUD - Calle 54
B17: Gestión de los Sistemas de Información y las Telecomunicaciones | C17: Gestionar los sistemas de informacion y las telecomunicaciones para asegurar el acceso, disponibilidad, confiabilidad, confidencialidad de los activos de información a través de la infraestructura y las soluciones Informaticas en el marco de la normatividad vigente aplicable, como apoyo a los procesos misionales de la Universidad. | E17: ILUD - San Luis
B18: Gestión y Desarrollo del Talento Humano | C18: Promover Servidores Públicos altamente calificados y comprometidos con la organización creando condiciones para su bienestar, seguridad e integralidad, a través del diseño e implementación de políticas, estrategias, planes, programas y proyectos, encaminados a la consecución de los objetivos y cumplimiento de las funciones institucionales. | E18: ILUD - UGI
B19: Gestión Documental | C19: Garantizar la correcta planeación, manejo, control, organización y funcionamiento de la gestión documental y la administración de las diferentes unidades documentales de la Universidad Distrital, de forma logíca de acuerdo con la naturaleza y fines de la Universidad, cumpliendo con los estándares para el tratamiento de los documentos y la legislación vigente, para proteger el patrimonio documental, preservar los archivos en las mejores condiciones de acceso y seguridad, y asegurar la disponibilidad a la academia, la comunidad en general y del mejoramiento institucional. | E19: ILUD - Calle 23
B20: Gestión de Infraestructura Física | C20: Garantizar a través de su gestión los servicios relacionados con administración de bienes, infraestructura, planta física, mantenimiento, compras,iinventarios, aseo y seguridad, requeridos para el óptimo desarrollo de las actividades académico-administrativas de la Universidad Distrital Francisco José de Caldas. | E20: Aduanilla de Paiba
B21: Gestión de Recursos Financieros | C21: Administrar, gestionar, registrar y controlar los recursos financieros en la Universidad Distrital Francisco José Caldas, cumpliendo con el marco, constitucional, legal y normativo viegente; garantizando la transparencia y sostenibilidad financiera de acuerdo a los lineamientos establecidos en el contexto estratégico y misional de la institución. | E21: Sede PORVENIR
B22: Gestión Contractual | C22: Gestionar de manera transparente y eficáz los recursos para la contratación de los bienes y/o servicios a través de los diferentes mecanismos de contratación necesarios para el cumplimiento de la misión y visión de la Universidad Distrital Francisco José de Caldas de acuerdo a los estándares y normatividad vigente. | E22: Sede IDEXUD
B23: Gestión Jurídica | C23: Ejecutar y desarrollar políticas, planes, programas y proyectos de carácter jurídico, armonizando los actos administrativos emanados por la Universidad con las leyes y la jurisprudencia vigente, llevando a cabo la representación legal, la defensa judicial, la asesoría en temas jurídicos y el apoyo a la gestión contractual, de la Universidad Distrital Francisco José de Caldas. | E23: Sede B "Thomas Jefferson"
B24: Evaluación y Control | C24: Medir y evaluar la eficiencia, eficacia y economía de los procesos de la Universidad Distrital Francisco José de Caldas, asesorando a la Alta Dirección en el mejoramiento continuo del proceso administrativo, para la evaluación de los planes establecidos y de los correctivos que sean necesarios para el cumplimiento de las metas y objetivos institucionales, basados en las diferentes funciones en las que se enmarca el rol de la Oficina de Control Interno, como son la valoración de riesgos, acompañamiento y asesoría, evaluación y seguimiento, fomento a la cultura de control y relación con entes externos. | E24: Sede Calle 42 No. 8A-80
B25: Control Disciplinario | C25: Evaluar y tramitar, de manera imparcial, oportuna y según la normativa aplicable, la totalidad de noticias disciplinarias que puedan implicar la responsabilidad de integrantes del personal administrativo y docentes de planta de la Universidad Distrital Francisco José de Caldas, esto con el fin de apoyar y fortalecer el proceso de control disciplinario en el Alma Mater. | E25: Sede Sección Publicaciones y Unidad de Extensión Facultad de Ciencias
B27: XXX
B28: XXX
B29: XXX
B30: XXX
B31: XXX
B32: XXX
B33: XXX
B34: XXX
B35: XXX
B36: XXX
B37: XXX
B38: XXX
B39: XXX
B40: XXX
B41: XXX
B42: XXX
B43: XXX
B44: XXX
B45: XXX
B46: XXX
B47: XXX
B48: XXX
B49: XXX
A51: Subsistema de Gestión de Calidad (SGC) | B51: CLASIFICACIÓN
B52: Interno
B53: Externo
B55: TIPO DE RIESGO
B56: Estratégico
B57: Imagen
B58: Operativos
B59: Financieros
B60: De cumplimiento
B61: De tecnología
B62: De corrupción
B64: PROBABILIDAD
B65: Raro - 1 | D65: BAJO - TRIVIAL 1 | E65: BAJO - ACEPTABLE 2 | F65: MODERADO 3 | G65: ALTA-IMPORTANTE 4 | H65: ALTA-IMPORTANTE 5
B66: Improbable - 2 | D66: BAJO - TRIVIAL 2 | E66: BAJO - ACEPTABLE 4 | F66: MODERADO 6 | G66: ALTA-IMPORTANTE 8 | H66: CATASTRÓFICO – INACEPTABLE 10
B67: Posible - 3 | D67: BAJO - TRIVIAL 3 | E67: MODERADO 6 | F67: ALTA - IMPORTANTE 9 | G67: CATASTRÓFICO – INACEPTABLE 12 | H67: CATASTRÓFICO – INACEPTABLE 15
B68: Probable - 4 | D68: MODERADO 4 | E68: ALTA - IMPORTANTE 8 | F68: ALTA - IMPORTANTE 12 | G68: CATASTRÓFICO – INACEPTABLE 16 | H68: CATASTRÓFICO – INACEPTABLE 20
B69: Seguro - 5 | D69: ALTA - IMPORTANTE 5 | E69: ALTA - IMPORTANTE 10 | F69: CATASTRÓFICO – INACEPTABLE 15 | G69: CATASTRÓFICO – INACEPTABLE 20 | H69: CATASTRÓFICO – INACEPTABLE 25
B71: IMPACTO
B72: Insignificante - 1
B73: Menor - 2
B74: Moderado - 3
B75: Mayor - 4
B76: Catastrófico - 5
B78: TIPO DE CONTROL | D78: CONTROL AUTOMÁTICO O MANUAL
B79: Correctivo | D79: Automático
B80: Preventivo | D80: Manual
B82: NIVEL
B83: Nulo - 0
B84: Bajo - 5
B85: Medio Bajo - 10
B86: Medio - 15
B87: Medio Alto - 20
B88: Alto - 25
B90: MANEJO DEL RIESGO
B91: Evitar (EV)
B92: Reducir (RE)
B93: Transferir (TR)
B94: Asumir (AS)
A96: Subsistema de Gestión Ambiental (SGA) | B96: FACTOR DE RIESGO | O96: ACTIVIDADES
B97: Incendio | O97: Manipulación de reactivos químicos (prácticas de laboratorio)
B98: Explosión | O98: Operación de sub estación eléctrica
O99: Mantenimiento de sub estación eléctrica
O100: Operación de equipos eléctricos y electrónicos (laboratorios)
B101: PROBABILIDAD | O101: Operación del circuito eléctrico
B102: Muy probable - 5 | O102: Protestas estudiantiles
B103: Altamente probable - 4 | O103: Operación de estufa de gas propano
B104: Probable - 3 | O104: Manipulación de Hornos para cerámica
B105: Posible - 2 | O105: Manipulación de pipetas de gas propano
B106: Poco probable - 1 | O106: Mantenimiento de aire acondicionado
O107: Operación de aire acondicionado
B108: CANTIDAD | O108: Mantenimiento de equipos (derrames accidentales)
B109: Muy Alta - 4 | O109: Centro de acopio para almacenamiento de residuos
B110: Alta - 3 | O110: Operación de la planta eléctrica
B111: Muy Poca - 2 | O111: Almacenamiento de reactivos químicos
B112: Poca - 1 | O112: Manipulación de estufas (apoyo alimentario)
O113: Manipulación y mezcla de reactivos químicos
B114: PELIGROSIDAD | O114: Operación de tanque de gas.
B115: Muy peligrosa - 4 | O115: Almacenamiento de maderas
B116: Peligrosa - 3 | O116: Otras
B117: Poco peligrosa - 2
B118: No peligrosa - 1
B120: EXTENSIÓN | D120: CALIDAD DEL MEDIO | E120: PATRIMONIO Y CAPITAL PRODUCTIVO
B121: Muy extenso - 4 | D121: Muy elevada - 4 | E121: Muy Alto - 4
B122: Extenso - 3 | D122: Elevada - 3 | E122: Alto - 3
B123: Poco extenso (Emplazamiento) - 2 | D123: Media - 2 | E123: Bajo - 2
B124: Puntual (Área afectada) - 1 | D124: Baja - 1 | E124: Muy Bajo - 1
B126: POBLACIÓN AFECTADA | D126: RIESGO LEVE 3 | E126: RIESGO LEVE 4 | F126: RIESGO LEVE 5 | G126: RIESGO LEVE 6 | H126: RIESGO LEVE 7 | I126: RIESGO LEVE 8 | J126: RIESGO LEVE 9 | K126: RIESGO LEVE 10 | L126: RIESGO LEVE 11 | M126: RIESGO LEVE 12
B127: Muy alto - 4 | D127: RIESGO LEVE 6 | E127: RIESGO LEVE 8 | F127: RIESGO LEVE 10 | G127: RIESGO LEVE 12 | H127: RIESGO LEVE 14 | I127: RIESGO LEVE 16 | J127: RIESGO LEVE 18 | K127: RIESGO LEVE 20 | L127: RIESGO MODERADO 22 | M127: RIESGO MODERADO 24
B128: Alto - 3 | D128: RIESGO LEVE 9 | E128: RIESGO LEVE 12 | F128: RIESGO LEVE 15 | G128: RIESGO LEVE 18 | H128: RIESGO MODERADO 21 | I128: RIESGO MODERADO 24 | J128: RIESGO MODERADO 27 | K128: RIESGO MODERADO 30 | L128: RIESGO MODERADO 33 | M128: RIESGO MODERADO 36
B129: Bajo - 2 | D129: RIESGO LEVE 12 | E129: RIESGO LEVE 16 | F129: RIESGO LEVE 20 | G129: RIESGO MODERADO 24 | H129: RIESGO MODERADO 28 | I129: RIESGO MODERADO 32 | J129: RIESGO MODERADO 36 | K129: RIESGO MODERADO 40 | L129: RIESGO SIGNIFICATIVO 44 | M129: RIESGO SIGNIFICATIVO 48
B130: Muy bajo - 1 | D130: RIESGO LEVE 15 | E130: RIESGO LEVE 20 | F130: RIESGO MODERADO 25 | G130: RIESGO MODERADO 30 | H130: RIESGO MODERADO 35 | I130: RIESGO MODERADO 40 | J130: RIESGO SIGNIFICATIVO 45 | K130: RIESGO SIGNIFICATIVO 50 | L130: RIESGO SIGNIFICATIVO 55 | M130: RIESGO SIGNIFICATIVO 60
A132: Subsistema de Gestión de Seguridad y Salud en el Trabajo (SGSST) | B132: ¿ES RUTINARIO?
B133: Sí
B134: No
B136: CLASIFICACIÓN | D136: BIOLÓGICO | E136: FÍSICO | F136: QUÍMICO | G136: PSICOSOCIAL | H136: BIOMECÁNICOS | I136: CONDICIONES DE SEGURIDAD | J136: FENÓMENOS NATURALES | K136: FACTORES HUMANOS
B137: Biológico | D137: Virus | E137: Ruido de impacto | F137: Polvos orgánicos | G137: Gestión organizacional estilo de mando, | H137: Postura prolongada | I137: Mecánico elementos o partes de máquinas | J137: Sismo | K137: No usar protecciones
B138: Físico | D138: Bacterias | E138: Ruido intermitente | F138: Polvos inorgánicos | G138: Gestión organizacional pago | H138: Postura mantenida | I138: Mecánico herramientas, Mecánico equipos | J138: Terremoto | K138: No usar o usar incorrectamente los EPP
B139: Químico | D139: Hongos | E139: Ruido continuo | F139: Fibras | G139: Gestión organizacional contratación | H139: Postura forzada | I139: Mecánico piezas a trabajar | J139: Vendaval | K139: Conducir a velocidades inapropiadas
B140: Psicosocial | D140: Ricketsias | E140: Exceso de Iluminación | F140: Líquidos nieblas | G140: Gestión organizacional participación | H140: Postura antigravitacional | I140: Mecánico materiales proyectados sólidos | J140: Inundación | K140: Usar equipos o herramientas defectuosas
B141: Biomecánicos | D141: Parásitos | E141: Deficiencia de Iluminación | F141: Líquidos rocios | G141: Gestión organizacional inducción y capacitación, | H141: Esfuerzo | I141: Mecánico materiales proyectados sólidos fluidos | J141: Derrumbe | K141: Levantar, cargas o transportar de forma incorrecta
B142: Condiciones_de_Seguridad | D142: Picaduras | E142: Vibración cuerpo entero | F142: Gases y vapores | G142: Gestión organizacional bienestar social | H142: Movimiento repetitivo | I142: Eléctrico alta tensión | J142: Precipitaciones (lluvias, granizadas, heladas) | K142: Almacenar de forma incorrecta
B143: Fenómenos_Naturales | D143: Mordeduras | E143: Vibración segmentaria | F143: Humos metálicos | G143: Gestión organizacional evaluación del desempeño | H143: Manipulación manual de cargas | I143: Eléctrico baja tensión | K143: Trabajo de la influencia del alcohol o sustancias alucinógenas, fumar dentro de las instalaciones
D144: Fluidos o excrementos | E144: Temperaturas extremo calor | F144: Humos no metálicos | G144: Gestión organizacional manejo de cambios | I144: Eléctrico estática | K144: Bromear, jugar, distraer, deficiencias en la disciplina
E145: Temperaturas extremo frío | F145: Material particulado | G145: Características de la organización del trabajo (comunicación, tecnología, organización del trabajo, demandas cualitativas y cuantitativas de la labor | I145: Locativo sistemas y medios de almacenamiento | K145: Comportamientos inseguros
E146: Radicaciones ionizantes rayos X, | G146: Características del grupo social de trabajo relaciones | I146: Locativo superficies de trabajo irregulares, Locativo superficies de trabajo deslizantes | K146: Incumplimiento de normas y procedimientos, Exceso de confianza
E147: Radicaciones ionizantes rayos gama | G147: Características del grupo social de trabajo cohesión | I147: Locativo superficies de trabajo con diferencias de nivel | K147: No reporte de actos y condiciones inseguras
E148: Radicaciones ionizantes rayos beta | G148: Características del grupo social de trabajo calidad de interacciones | I148: Locativo condiciones de orden y aseo | K148: Agresividad de los trabajadores
E149: Radicaciones ionizantes rayos alfa | G149: Características del grupo social de trabajo trabajo en equipo | I149: Locativo caída de objetos | K149: Falta de capacidad física y o mental de una persona o para realizar adecuadamente cierta actividad, función o servicio
E150: Radicaciones no ionizantes laser | G150: Condiciones de la tarea carga mental | I150: Tecnológico explosión, Tecnológico fuga
E151: Radicaciones no ionizantes ultravioleta | G151: Condiciones de la tarea contenido de la tarea | I151: Tecnológico derrame, Tecnológico incendio
E152: Radicaciones no ionizantes infrarroja | G152: Condiciones de la tarea demandas emocionales | I152: Accidentes de tránsito
E153: Radicaciones no ionizantes radiofrecuencia | G153: Condiciones de la tarea sistema de control | I153: Públicos robos, atracos, asaltos,
E154: Radicaciones no ionizantes microondas | G154: Condiciones de la tarea definición de roles | I154: Públicos atentados
B155: N.D | G155: Condiciones de la tarea monotonía | I155: Públicos de orden público
B156: Muy Alto (MA) - 10 | G156: Interfase persona-tarea conocimientos, | I156: Trabajo en alturas
B157: Alto (A) - 6 | G157: Interfase persona-tarea habilidades en relación con la demanda de la tarea | I157: Espacios confinados
B158: Medio (M) - 2 | G158: Interfase persona-tarea iniciativa
B159: Bajo (B) - No se Asigna Valor | G159: Interfase persona-tarea autonomía y reconocimiento
G160: Interfase persona-tarea identificación de la persona con la tarea y la organización
B161: N.E | G161: Jornadas de trabajo pausas
B162: Continua (EC) - 4 | G162: Jornadas de trabajo trabajo nocturno
B163: Frecuente (EF) - 3 | G163: Jornadas de trabajo rotación
B164: Ocasional (EO) - 2 | G164: Jornadas de trabajo horas extras
B165: Esporádica (EE) - 1 | G165: Jornadas de trabajo descansos
B167: N.P (N.DxN.E) | D167: MUY ALTO (MA) - 40 | E167: MUY ALTO (MA) - 30 | F167: ALTO (A) - 20 | G167: ALTO (A) - 10
D168: MUY ALTO (MA) - 24 | E168: ALTO (A) - 18 | F168: ALTO (A) - 12 | G168: MEDIO (M) - 6
D169: MEDIO (M) - 8 | E169: MEDIO (M) - 6 | F169: BAJO (B) - 4 | G169: BAJO (B) - 2
B170: N.C
B171: Mortal o Catastrófico (M) - 100
B172: Muy Grave (MG) - 60
B173: Grave (G) - 25
B174: Leve (L) - 10
B176: N.R (N.PxN.C) | D176: NIVEL DE RIESGO 1 (4000 - 2400) | E176: NIVEL DE RIESGO 1 (2000 - 1200) | F176: NIVEL DE RIESGO 1 (800 - 600) | G176: NIVEL DE RIESGO 2 (400 - 200)
D178: NIVEL DE RIESGO 1 (2400- 1440) | E178: NIVEL DE RIESGO 1 (1200 - 600) | F178: NIVEL DE RIESGO 2 (480 - 360) | G178: NIVEL DE RIESGO 2 (200)
G179: NIVEL DE RIESGO 3 (120)
D180: NIVEL DE RIESGO 1 (1000 - 600) | E180: NIVEL DE RIESGO 2 (500 - 250) | F180: NIVEL DE RIESGO 2 (200 - 150) | G180: NIVEL DE RIESGO 3 (100 - 50)
D182: NIVEL DE RIESGO 2 (400-240) | E182: NIVEL DE RIESGO 2 (200) | F182: NIVEL DE RIESGO 3 (80 - 60) | G182: NIVEL DE RIESGO 3 (40)
E183: NIVEL DE RIESGO 3 (100) | G183: NIVEL DE RIESGO 4 (20)
A185: Subsistema de Seguridad de la Información (SGSI) | B185: PROBABILIDAD
B186: Raro - 1 | D186: BAJO - TRIVIAL 1 | E186: BAJO - ACEPTABLE 2 | F186: MODERADO 3 | G186: ALTA-IMPORTANTE 4 | H186: ALTA-IMPORTANTE 5
B187: Improbable - 2 | D187: BAJO - TRIVIAL 2 | E187: BAJO - ACEPTABLE 4 | F187: MODERADO 6 | G187: ALTA-IMPORTANTE 8 | H187: CATASTRÓFICO – INACEPTABLE 10
B188: Posible - 3 | D188: BAJO - TRIVIAL 3 | E188: MODERADO 6 | F188: ALTA - IMPORTANTE 9 | G188: CATASTRÓFICO – INACEPTABLE 12 | H188: CATASTRÓFICO – INACEPTABLE 15
B189: Probable - 4 | D189: MODERADO 4 | E189: ALTA - IMPORTANTE 8 | F189: ALTA - IMPORTANTE 12 | G189: CATASTRÓFICO – INACEPTABLE 16 | H189: CATASTRÓFICO – INACEPTABLE 20
B190: Seguro - 5 | D190: ALTA - IMPORTANTE 5 | E190: ALTA - IMPORTANTE 10 | F190: CATASTRÓFICO – INACEPTABLE 15 | G190: CATASTRÓFICO – INACEPTABLE 20 | H190: CATASTRÓFICO – INACEPTABLE 25
B192: IMPACTO
B193: Insignificante - 1
B194: Menor - 2
B195: Moderado - 3
B196: Mayor - 4
B197: Catastrófico - 5
B199: TIPO DE CONTROL
B200: Correctivo
B201: Preventivo
B203: NIVEL
B204: Nulo - 0
B205: Bajo - 5
B206: Medio Bajo - 10
B207: Medio - 15
B208: Medio Alto - 20
B209: Alto - 25
A211: Riesgos de Corrupción | B211: PROBABILIDAD
B212: Rara vez - 1 | D212: MODERADA 25 | E212: ALTA 50 | F212: EXTREMA 100
B213: Improbable - 2 | D213: MODERADA 20 | E213: ALTA 40 | F213: EXTREMA 80
B214: Posible - 3 | D214: MODERADA 15 | E214: ALTA 30 | F214: EXTREMA 60
B215: Probable - 4 | D215: BAJA 10 | E215: MODERADA 20 | F215: ALTA 40
B216: Casi seguro - 5 | D216: BAJA 5 | E216: BAJA 10 | F216: MODERADA 20
B218: IMPACTO
B219: Moderado - 5
B220: Mayor - 10
B221: Catastrófico - 20
B223: TIPO DE CONTROL
B224: Preventivo
B225: Detectivo
... 10 more rows

Sheet Menú Principal
D2: MAPA INTEGRAL DE RIESGOS | E2: Código: GI-MG-001-FR-014
D3: Macroproceso: Direccionamiento Estratégico | E3: Versión: 03
D4: Proceso: Gestión Integrada | E4: Fecha de Aprobación: 14/01/2020
D7: Identifique el eje a evaluar:

Sheet Procesos Calidad
C2: MAPA INTEGRAL DE RIESGOS | I2: Código: GI-MG-001-FR-014
C3: Macroproceso: Direccionamiento Estratégico | I3: Versión: 03
C4: Proceso: Gestión Integrada | I4: Fecha de Aprobación: 14/01/2020
C7: Eje de Calidad: Por favor seleccione el Proceso de su interés

Sheet Procesos Corrupción
C2: MAPA INTEGRAL DE RIESGOS | I2: Código: GI-MG-001-FR-014
C3: Macroproceso: Direccionamiento Estratégico | I3: Versión: 03
C4: Proceso: Gestión Integrada | I4: Fecha de Aprobación: 14/01/2020
C6: Eje de Corrupción: Por favor seleccione el Proceso de su interés

Sheet 1) GD - Cal
D2: MAPA INTEGRAL DE RIESGOS | E2: Código: GI-MG-001-FR-014
D3: Macroproceso: Direccionamiento Estratégico | E3: Versión: 03
D4: Proceso: Gestión Integrada | E4: Fecha de Aprobación: 14/01/2020
C6: EJE DE CALIDAD
C8: Proceso: | D8: Gestión de Docencia
C9: Objetivo del Proceso: | D9: =IF(D8=0,"",VLOOKUP(D8,'[1]Datos SGC'!B60:C81,2)) -> Garantizar que los Planes de Estudio establecidos para cada Proyecto Curricular, ofrezcan al estudiante de la UDFJC una formación integral y de calidad, dirigida fundamentalmente a las necesidades de la sociedad, contando con la cantidad e idoneidad de Docentes y demás personal que influya directamente en tal Proceso de Formación, garantizando que se ejecute eficientemente el Proceso de Enseñanza-Aprendizaje.
B12: IDENTIFICACIÓN DEL RIESGO | I12: ANÁLISIS DEL RIESGO | L12: EVALUACIÓN DEL RIESGO | AI12: TRATAMIENTO DEL RIESGO
B13: N° | C13: Causa o fuente | D13: Riesgo | E13: Descripción | F13: Tipo de Riesgo | G13: Consecuencias | H13: Unidad(es) que reportan al Riesgo | I13: Probabilidad | J13: Impacto | K13: Zona de Riesgo Inherente | L13: Controles existentes | M13: Criterios de evaluación del Diseño del Control | T13: Peso en la evaluación de diseño del Control | U13: Peso en la evaluación de diseño del Control | V13: Ejecución del Control | W13: Peso en la evaluación de la ejecución del Control | X13: Solidez individual del Control | Y13: Solidez del Conjunto de Controles | Z13: Solidez del Conjunto de Controles | AA13: Controles ayudan a disminuir la probabilidad | AB13: Controles ayudan a disminuir el impacto | AC13: Desplazamiento en la Probabilidad | AD13: Desplazamiento en el Impacto | AE13: Probabilidad Residual | AF13: Impacto Residual | AG13: Zona de Riesgo Residual | AH13: Tratamiento al Riesgo | AI13: Acciones | AJ13: Soporte | AK13: Responsable | AL13: Tiempo
M14: Asignación del Responsable | N14: Segregación y autoridad del Responsable | O14: Periodicidad | P14: Propósito | Q14: Cómo se realiza la actividad de Control | R14: Qué pasa con las desviaciones | S14: Evidencia de la Ejecución del Control
B15: 1 | C15: Demora en autorización de recursos para la realización de las prácticas dfacadémicas. | D15: Inconvenientes en la gestión de prácticas académicas. | E15: Interrupción, cancelación o demoras en la realización de las actividades de gestión administrativa para las prácticas académicas, lo que ocasiona no contar a tiempo con los medios y/o elementos tales como: el docente responsable, transporte, listados, recorridos, soportes documentales, entre otros. | F15: Operativo | G15: Disminuye la experiencia formativa de los estudiantes. | H15: Decanaturas de las Facultades de la Universidad Distrital Proyectos Curriculares | I15: Probable | J15: Mayor | K15: =IF(OR(I15=0,J15=0),"",INDEX(MCALOR,MATCH(I15,PROBABILIDAD,0),MATCH(J15,IMPACTO,0))) -> EXTREMO | L15: El Profesional de cada Decanatura cada vez que se recibe una solicitud de gestión de práctica revisa la documentación antes de ser radicada por el solicitante para proceder con el trámite correspondiente, en caso de encontrar inconsistencias en la documentación se devuelve la misma al Proyecto Curricular solicitante para que realice los ajustes pertinentes. La evidencia se visualiza en la trazabilidad documental la cual se digitaliza una vez se da inicio al trámite. | M15: Asignado | N15: Adecuado | O15: Oportuna | P15: Prevenir | Q15: Confiable | R15: Se investigan y resuelven oportunamente | S15: Completa | T15: =IF(M15="",,VLOOKUP(M15,UNO,2,FALSE))+IF(N15="",0,VLOOKUP(N15,DOS,2,FALSE))+IF(P15="",0,VLOOKUP(P15,CUATRO,2,FALSE))+IF(Q15="",0,VLOOKUP(Q15,CINCO,2,FALSE))+IF(S15="",0,VLOOKUP(S15,SIETE,2,FALSE))+IF(O15="",0,VLOOKUP(O15,TRES,2,FALSE))+IF(R15="",0,VLOOKUP(R15,SEIS,2,FALSE)) -> 100 | U15: =IF(T15=0,"",IF(T15>=96,"Fuerte",IF(T15<=85,"Débil","Moderado"))) -> Fuerte | V15: Se ejecuta de manera consistente por parte del responsable. | W15: =IF(V15="","",IF(V15="Se ejecuta de manera consistente por parte del responsable.","Fuerte",IF(V15="Se ejecuta algunas veces por parte del responsable.","Moderado","Débil"))) -> Fuerte | X15: =IF(U15="","",IF(AND(U15="Fuerte",W15="Fuerte"),"Fuerte",IF(OR((AND(U15="Moderado",W15="Moderado")),(AND(U15="Fuerte",W15="Moderado")),(AND(U15="Moderado",W15="Fuerte"))),"Moderado","Débil"))) -> Fuerte | Y15: =IF(SUM(T15:T21=0),"",AVERAGEIF(T15:T21,">0")) -> 100 | Z15: =IF(Y15="","",IF(Y15=0,"",IF(Y15=100,"Fuerte",IF(Y15<50,"Débil","Moderado")))) -> Fuerte | AA15: Directamente | AB15: No disminuye | AC15: =IF(Z15="Débil",0,IF(AND(Z15="Fuerte",AA15="Directamente"),2,IF(AND(Z15="Moderado",AA15="Directamente"),1,IF(AND(Z15="Moderado",AA15="No disminuye"),0,IF(AND(Z15="Fuerte",AA15="No disminuye"),0,""))))) -> 2 | AD15: =IF(Z15="Débil",0,IF(AND(Z15="Fuerte",AB15="Directamente"),2,IF(AND(Z15="Fuerte",AB15="Indirectamente"),1,IF(AND(Z15="Moderado",AB15="Directamente"),1,IF(AB15="No disminuye","0",IF(AND(Z15="Moderado",AB15="Indirectamente"),"0","")))))) -> 0 | AE15: =IF(L15="No hay controles establecidos.",I15,IF(AC15="","",IF(AND(I15="Rara vez",AC15>0),"Rara vez",IF(AND(I15="Improbable",AC15=2),"Rara vez",IF(AND(I15="Posible",AC15=2),"Rara vez",IF(AND(I15="Posible",AC15=1),"Improbable",IF(AND(I15="Probable",AC15=2),"Improbable",IF(AND(I15="Probable",AC15=1),"Posible",IF(AND(I15="Casi seguro",AC15=2),"Posible",IF(AND(I15="Casi seguro",AC15=1),"Probable",I15)))))))))) -> Improbable | AF15: =IF(L15="No hay controles establecidos.",J15,IF(AD15="","",IF(AND(J15="Insignificante",AD15>0),"Insignificante",IF(AND(J15="Menor",AD15>0),"Insignificante",IF(AND(J15="Moderado",AD15=1),"Menor",IF(AND(J15="Moderado",AD15=2),"Insignificante",IF(AND(J15="Mayor",AD15=1),"Moderado",IF(AND(J15="Mayor",AD15=2),"Menor",IF(AND(J15="Catastrófico",AD15=1),"Mayor",IF(AND(J15="Catastrófico",AD15=2),"Moderado",J15)))))))))) -> Mayor | AG15: =IF(OR(AE15="",AF15=""),"",INDEX(MCALOR,MATCH(AE15,PROBABILIDAD,0),MATCH(AF15,IMPACTO,0))) -> ALTO | AH15: Reducir | AI15: Actualizar el Procedimiento de Prácticas Académicas y documentar un instructivo único para todas las Facultades, con el fin de guiar a los Docentes en el paso a paso para la gestión de las prácticas académicas, con base en la Resolución 098 de 2018. | AJ15: Instructivo único aprobado y publicado | AK15: Vicerrectoría Académica Decanaturas de las Facultades de la Universidad Distrital | AL15: 2021
C16: Pocos recursos económicos, humanos o físicos para la ejecución de practicas aprobadas y programadas. | G16: Afectación de la imagen de la universidad en las organizaciones o entidades con las cuales se pueda haber pactado una práctica académica. | L16: El Asistente o Profesional de cada Decanatura proyecta un Plan Semestral de Prácticas con base en la información presentada por los Proyectos Curriculares (estimado de gastos y de actividades a realizar por los docentes), el cual pasa por aval de los Decanos y posteriormente aprobación por parte de la Vicerrectoría Administrativa y Financiera. La evidencia es el Plan Semestral de Prácticas y en caso de presentarse modificaciones se procede a estudiar el caso y a realizar los ajustes pertinentes. | M16: Asignado | N16: Adecuado | O16: Oportuna | P16: Prevenir | Q16: Confiable | R16: Se investigan y resuelven oportunamente | S16: Completa | V16: Se ejecuta de manera consistente por parte del responsable. | AI16: Diseñar una prueba piloto para sistematizar con software libre la gestión de las prácticas académicas, con acompañamiento de la Oficina Asesora de Planeación y Control. | AJ16: Documento que explique la prueba piloto | AK16: Decanaturas de las Facultades de la Universidad Distrital | AL16: 2021
C17: Limitaciones en los trámites administrativos. | G17: Insatisfacción por parte de los estudiantes frente a las prácticas. | L17: El Docente encargado de la práctica académica una vez finalizada la misma realiza la legalización del avance mediante una lista con la relación de estudiantes asistentes a la práctica y el dinero entregado a cada uno, junto con la legalización de los impuestos y una copia de la Resolución de la práctica académica, esta documentación es entregada a Tesorería con copia a la Decanatura correspondiente, la cual es revisada, y en caso de ser necesario se contacta al Docente con el fin de corregir la documentación. | M17: Asignado | N17: Adecuado | O17: Oportuna | P17: Prevenir | Q17: Confiable | R17: Se investigan y resuelven oportunamente | S17: Completa | V17: Se ejecuta de manera consistente por parte del responsable. | AI17: Socialización semestral de la actualización de la reglamentación para el desarrollo de las prácticas académicas. | AJ17: Documentos de normatividad vigente | AK17: Decanaturas de las Facultades de la Universidad Distrital | AL17: 2021
C18: Limitación del desarrollo de las prácticas a los Docentes de planta. | G18: No ejecución o desaprovechamiento del rubro (presupuesto asignado). | T18: =IF(M18="",,VLOOKUP(M18,UNO,2,FALSE))+IF(N18="",0,VLOOKUP(N18,DOS,2,FALSE))+IF(P18="",0,VLOOKUP(P18,CUATRO,2,FALSE))+IF(Q18="",0,VLOOKUP(Q18,CINCO,2,FALSE))+IF(S18="",0,VLOOKUP(S18,SIETE,2,FALSE))+IF(O18="",0,VLOOKUP(O18,TRES,2,FALSE))+IF(R18="",0,VLOOKUP(R18,SEIS,2,FALSE)) -> 0 | U18: =IF(T18=0,"",IF(T18>=96,"Fuerte",IF(T18<=85,"Débil","Moderado"))) ->  | W18: =IF(V18="","",IF(V18="Se ejecuta de manera consistente por parte del responsable.","Fuerte",IF(V18="Se ejecuta algunas veces por parte del responsable.","Moderado","Débil"))) ->  | X18: =IF(U18="","",IF(AND(U18="Fuerte",W18="Fuerte"),"Fuerte",IF(OR((AND(U18="Moderado",W18="Moderado")),(AND(U18="Fuerte",W18="Moderado")),(AND(U18="Moderado",W18="Fuerte"))),"Moderado","Débil"))) ->  | AI18: Planificación del Plan de prácticas académicas con el plan de adquisiciones y los tiempos contractuales para la no afectación de las prácticas académicas (Diciembre- Enero) | AJ18: Plan de prácticas académicas y Plan de Adquisiciones, Planificación de contratos de transporte en fechas adecuadas para la realización de las prácticas | AK18: Proyectos Curriculares y Decanaturas de las Facultades de la Universidad | AL18: 2021
C19: Centralización de la tramitología y gestión administrativa de las prácticas. | G19: Desmotivación en los Docentes para liderar y gestionar prácticas. | T19: 0 | AI19: Gestionar la reglamentación de auxilio económico a docentes de vinculación especial para las prácticas académicas de la Universidad Distrital. | AJ19: Normatividad de auxilio económico docentes de vinculación especial | AK19: Vicerrectoría Académica Decanaturas de las Facultades de la Universidad Distrital | AL19: 2021
C20: Desconocimiento del procedimiento y los tiempos para la gestión de las prácticas por parte de los Docentes. | G20: Afectación en los indicadores de Acreditación Institucional, tanto de programas curriculares como a nivel institucional.
C21: La aprobación y asignación de los traslados a través de la bolsa de transporte de la Universidad, que generan trámites contractuales lentos (lineamientos nuevos implementados en la marcha del proceso) y que no se socializan debidamente. | G21: Sobrecostos en la gestión de las prácticas. | T21: 0
B22: 2 | C22: Falta de parámetros en el sistema de gestión académica que permitan regular los tiempos asignados a cada tipo de actividad en los planes de trabajo docente, según la distribución e intensidad establecidas por la normatividad. | D22: Incumplimiento de las actividades consignadas en los planes de trabajo, por parte de los Docentes. | E22: Incumplimiento en la ejecución de las actividades especificadas en los planes de trabajo y/o deficiencias en la verificación de las mismas. | F22: Operativos | G22: Afectación en la debida gestión de las actividades como: tutorías académicas, consejería a estudiantes y otras actividades contempladas en el estatuto docente (capítulo 9, articulo 48). | H22: Decanaturas de las Facultades de la Universidad Distrital Proyectos Curriculares | I22: Posible | J22: Mayor | K22: =IF(OR(I22=0,J22=0),"",INDEX(MCALOR,MATCH(I22,PROBABILIDAD,0),MATCH(J22,IMPACTO,0))) -> EXTREMO | L22: El Coordinador de Cada Proyecto Curricular semestralmente revisa el Plan de Trabajo entregado por cada Docente, una vez revisado lo avala y lo firma, en caso de encontrar inconsistencias, el Coordinador solicita al Docente los ajustes al Plan de Trabajo pertinentes. Cuando se solicita descarga de hora lectivas la solicitud se eleva al Consejo de Facultad, Decanatura, o la Secretaría de las Facultades dependiendo el caso. | M22: Asignado | N22: Adecuado | O22: Oportuna | P22: Prevenir | Q22: Confiable | R22: Se investigan y resuelven oportunamente | S22: Completa | T22: =IF(M22="",,VLOOKUP(M22,UNO,2,FALSE))+IF(N22="",0,VLOOKUP(N22,DOS,2,FALSE))+IF(P22="",0,VLOOKUP(P22,CUATRO,2,FALSE))+IF(Q22="",0,VLOOKUP(Q22,CINCO,2,FALSE))+IF(S22="",0,VLOOKUP(S22,SIETE,2,FALSE))+IF(O22="",0,VLOOKUP(O22,TRES,2,FALSE))+IF(R22="",0,VLOOKUP(R22,SEIS,2,FALSE)) -> 100 | U22: Fuerte | V22: Se ejecuta de manera consistente por parte del responsable. | W22: Fuerte | X22: Fuerte | Y22: =IF(SUM(T22:T29=0),"",AVERAGEIF(T22:T29,">0")) -> 98.33333333 | Z22: =IF(Y22="","",IF(Y22=0,"",IF(Y22=100,"Fuerte",IF(Y22<50,"Débil","Moderado")))) -> Moderado | AA22: Directamente | AB22: Indirectamente | AC22: =IF(Z22="Débil",0,IF(AND(Z22="Fuerte",AA22="Directamente"),2,IF(AND(Z22="Moderado",AA22="Directamente"),1,IF(AND(Z22="Moderado",AA22="No disminuye"),0,IF(AND(Z22="Fuerte",AA22="No disminuye"),0,""))))) -> 1 | AD22: =IF(Z22="Débil",0,IF(AND(Z22="Fuerte",AB22="Directamente"),2,IF(AND(Z22="Fuerte",AB22="Indirectamente"),1,IF(AND(Z22="Moderado",AB22="Directamente"),1,IF(AB22="No disminuye","0",IF(AND(Z22="Moderado",AB22="Indirectamente"),"0","")))))) -> 0 | AE22: =IF(L22="No hay controles establecidos.",I22,IF(AC22="","",IF(AND(I22="Rara vez",AC22>0),"Rara vez",IF(AND(I22="Improbable",AC22=2),"Rara vez",IF(AND(I22="Posible",AC22=2),"Rara vez",IF(AND(I22="Posible",AC22=1),"Improbable",IF(AND(I22="Probable",AC22=2),"Improbable",IF(AND(I22="Probable",AC22=1),"Posible",IF(AND(I22="Casi seguro",AC22=2),"Posible",IF(AND(I22="Casi seguro",AC22=1),"Probable",I22)))))))))) -> Improbable | AF22: =IF(L22="No hay controles establecidos.",J22,IF(AD22="","",IF(AND(J22="Insignificante",AD22>0),"Insignificante",IF(AND(J22="Menor",AD22>0),"Insignificante",IF(AND(J22="Moderado",AD22=1),"Menor",IF(AND(J22="Moderado",AD22=2),"Insignificante",IF(AND(J22="Mayor",AD22=1),"Moderado",IF(AND(J22="Mayor",AD22=2),"Menor",IF(AND(J22="Catastrófico",AD22=1),"Mayor",IF(AND(J22="Catastrófico",AD22=2),"Moderado",J22)))))))))) -> Mayor | AG22: =IF(OR(AE22="",AF22=""),"",INDEX(MCALOR,MATCH(AE22,PROBABILIDAD,0),MATCH(AF22,IMPACTO,0))) -> ALTO | AH22: Reducir | AI22: Solicitar la inclusión de inducciones y reinducciones en el Plan de Capacitación Docente. | AJ22: Plan de Capacitación Docente que contenga inducciones y reinducciones | AK22: Vicerrectoría Académica Decanaturas de las Facultades de la Universidad Distrital | AL22: 2021
C23: La normatividad existente no es lo suficientemente clara y especifica a la hora de establecer las actividades de los planes de trabajo. | G23: No se garantiza que el docente cumpla con las obligaciones pactadas para con la Universidad (horas lectivas y no lectivas). | L23: El Asistente o Profesional de cada Decanatura semestralmente revisa el Plan de Trabajo de cada Docente previamente aprobado por el Coordinador de Cada Proyecto Curricular, dicha revisión se hace teniendo en cuenta la normatividad vigente. En caso de encontrar inconsistencias en el Plan de Trabajo se procede a notificar al Proyecto Curricular que se revise nuevamente y se apliquen los ajustes pertinentes, o se brinden los soportes correspondientes. Una vez subsana la información se procede con la aprobación y firma del Decano según se requiera. | M23: Asignado | N23: Adecuado | O23: Oportuna | P23: Prevenir | Q23: Confiable | R23: Se investigan y resuelven oportunamente | S23: Completa | T23: 100 | U23: Fuerte | V23: Se ejecuta de manera consistente por parte del responsable. | W23: Fuerte | X23: Fuerte | AI23: Gestionar la sistematización del seguimiento a los Planes de Trabajo de los Docentes. | AJ23: Sistema de Información para seguimiento a los Planes de Trabajo | AK23: Vicerrectoría Académica | AL23: 2021 - 2022
C24: La ausencia de un mecanismo institucional de seguimiento y control que no permite asegurar la coherencia entre las actividades consignadas en el plan de trabajo docente y las ejecutadas. | G24: Pérdida de la percepción de la calidad por parte de los estudiantes. | L24: Los Proyectos Curriculares solicitan semestralmente un informe de gestión a los docentes de planta con el fin de recolectar la información de las actividades realizadas durante el semestre frente al Plan de Trabajo Docente. | M24: Asignado | N24: Adecuado | O24: Oportuna | P24: Detectar | Q24: Confiable | R24: Se investigan y resuelven oportunamente | S24: Completa | T24: 95 | U24: Moderado | V24: Se ejecuta de manera consistente por parte del responsable. | W24: Fuerte | X24: Moderado
C25: No existe un protocolo específico para la elaboración de los informes de gestión de los Docentes más allá de los ítems contenidos en el plan de trabajo. | G25: Sobrecarga laboral a algunos Docentes.
C26: Falta de un sistema para verificar el cumplimiento de las actividades. | G26: Detrimento patrimonial.
C27: Falta de inducción y reinducción de los Docentes. | G27: Mala imagen institucional.
C28: Duplicidad entre las actividades objeto de descarga y las actividades no lectivas. | G28: Afectación en los indicadores de Acreditación Institucional.
G29: Derechos de petición o tutelas a la Universidad. | T29: 0
B30: 3 | C30: Jubilación o retiro voluntario de un docente. | D30: Afectación en el desarrollo de la malla curricular del estudiante. | E30: El no tener los docentes requeridos para las asignaturas de los Proyectos Curriculares afecta el correcto desarrollo de las actividades académicas del semestre. | F30: Operativos | G30: Insatisfacción de los estudiantes. | H30: Decanaturas de las Facultades de la Universidad Distrital Proyectos Curriculares | I30: Probable | J30: Moderado | K30: =IF(OR(I30=0,J30=0),"",INDEX(MCALOR,MATCH(I30,PROBABILIDAD,0),MATCH(J30,IMPACTO,0))) -> ALTO | L30: El Asistente o Profesional de cada Proyecto Curricular cada vez que recibe una solicitud de inicio de proceso de jubilación de un docente, verifica las fechas estimadas en la cual se hará efectiva la jubilación o el retiro voluntario, con el fin de reasignar las horas con los docentes de planta o a docentes de vinculación especial que puedan tomar la carga a académica, lo cual queda evidenciado en los requerimiento de horas y tipos de docente del Proyecto Curricular, o en los Planes de Trabajo de los docentes (cuando la ausencia del docente surge durante el transcurso del semestre). | M30: Asignado | N30: Adecuado | O30: Oportuna | P30: Prevenir | Q30: Confiable | R30: Se investigan y resuelven oportunamente | S30: Completa | T30: 100 | U30: Fuerte | V30: Se ejecuta de manera consistente por parte del responsable. | W30: Fuerte | X30: Fuerte | Y30: =IF(SUM(T30:T35=0),"",AVERAGEIF(T30:T35,">0")) -> 98.33333333 | Z30: =IF(Y30="","",IF(Y30=0,"",IF(Y30=100,"Fuerte",IF(Y30<50,"Débil","Moderado")))) -> Moderado | AA30: Directamente | AB30: Directamente | AC30: =IF(Z30="Débil",0,IF(AND(Z30="Fuerte",AA30="Directamente"),2,IF(AND(Z30="Moderado",AA30="Directamente"),1,IF(AND(Z30="Moderado",AA30="No disminuye"),0,IF(AND(Z30="Fuerte",AA30="No disminuye"),0,""))))) -> 1 | AD30: =IF(Z30="Débil",0,IF(AND(Z30="Fuerte",AB30="Directamente"),2,IF(AND(Z30="Fuerte",AB30="Indirectamente"),1,IF(AND(Z30="Moderado",AB30="Directamente"),1,IF(AB30="No disminuye","0",IF(AND(Z30="Moderado",AB30="Indirectamente"),"0","")))))) -> 1 | AE30: =IF(L30="No hay controles establecidos.",I30,IF(AC30="","",IF(AND(I30="Rara vez",AC30>0),"Rara vez",IF(AND(I30="Improbable",AC30=2),"Rara vez",IF(AND(I30="Posible",AC30=2),"Rara vez",IF(AND(I30="Posible",AC30=1),"Improbable",IF(AND(I30="Probable",AC30=2),"Improbable",IF(AND(I30="Probable",AC30=1),"Posible",IF(AND(I30="Casi seguro",AC30=2),"Posible",IF(AND(I30="Casi seguro",AC30=1),"Probable",I30)))))))))) -> Posible | AF30: =IF(L30="No hay controles establecidos.",J30,IF(AD30="","",IF(AND(J30="Insignificante",AD30>0),"Insignificante",IF(AND(J30="Menor",AD30>0),"Insignificante",IF(AND(J30="Moderado",AD30=1),"Menor",IF(AND(J30="Moderado",AD30=2),"Insignificante",IF(AND(J30="Mayor",AD30=1),"Moderado",IF(AND(J30="Mayor",AD30=2),"Menor",IF(AND(J30="Catastrófico",AD30=1),"Mayor",IF(AND(J30="Catastrófico",AD30=2),"Moderado",J30)))))))))) -> Menor | AG30: =IF(OR(AE30="",AF30=""),"",INDEX(MCALOR,MATCH(AE30,PROBABILIDAD,0),MATCH(AF30,IMPACTO,0))) -> MODERADO | AH30: Reducir | AI30: Solicitud a la División de Recursos Humanos una base de datos con la información de procesos de jubilación de los docentes, para ser reportados a las Decanaturas. | AJ30: Oficio, carta, correo | AK30: Decanaturas de las Facultades de la Universidad Distrital | AL30: Semestralmente
C31: Falta de recursos financieros. | G31: Perdida de registro calificado. | L31: El Asistente o Profesional de cada Decanatura una vez se aprueba el presupuesto contrasta el recurso disponible frente a la necesidad real de horas y tipos de docentes, en caso de detectar que el presupuesto no es suficiente se procede a solicitar a la Oficina Asesora de Planeación y Control, y la Vicerrectoría Administrativa y Financiera las adiciones presupuestales con base en las necesidades de cada Facultad. Lo cual queda evidenciado en las resoluciones de modificaciones al presupuesto. | M31: Asignado | N31: Adecuado | O31: Oportuna | P31: Detectar | Q31: Confiable | R31: Se investigan y resuelven oportunamente | S31: Completa | T31: 95 | U31: Moderado | V31: Se ejecuta de manera consistente por parte del responsable. | W31: Fuerte | X31: Moderado | AI31: Elaborar una directriz interna que establezca el marco referencial para la identificación y construcción de los perfiles de los docentes por áreas de conocimiento, y solicitar su aprobación por parte del Consejo Académico. | AJ31: Normativa interna que establezca los parámetros de los perfiles de los docentes por áreas de conocimiento | AK31: Decanaturas de las Facultades de la Universidad Distrital | AL31: 2021
C32: Novedades en la planeación de las horas requeridas en el periodo académico. | G32: Afectación en los indicadores de Acreditación Institucional, tanto de programas curriculares como a nivel institucional. | L32: El Asistente o Profesional de cada Proyecto Curricular cada vez que recibe una incapacidad médica o una solicitud de licencia por parte de un docente, se verifica las fechas establecidas en las cuales no desempeñará sus labores, con el fin de reasignar las horas con los docentes de planta o a docentes de vinculación especial que puedan tomar la carga a académica, lo cual queda evidenciado en los requerimiento de horas y tipos de docente del Proyecto Curricular o en los Planes de Trabajo de los docentes (cuando la ausencia del docente surge durante el transcurso del semestre). | M32: Asignado | N32: Adecuado | O32: Oportuna | P32: Prevenir | Q32: Confiable | R32: Se investigan y resuelven oportunamente | S32: Completa | V32: Se ejecuta de manera consistente por parte del responsable. | W32: Fuerte
C33: Licencia por: maternidad, paternidad, calamidad domestica, no remunerada, entre otras según normatividad vigente; o enfermedad de un docente. | G33: Derechos de petición o tutelas exigiendo las garantías académicas. | L33: La Coordinación del Proyecto Curricular con el apoyo del Profesional del área jurídica de la Facultad verifica que las solicitudes de necesidad de perfiles docentes cumpla con los requisitos legales requeridos, en caso de requerir ajustes el Profesional sugiere que realicen cambios en la necesidad, y en casos excepcionales (Resolución 001 del 2012 de la Vicerrectoría Académica) se presenta al Consejo de Facultad. La evidencia se refleja en la solicitud de necesidad final y la trazabilidad de todo el trámite. | M33: Asignado | N33: Adecuado | O33: Oportuna | P33: Prevenir | Q33: Confiable | R33: Se investigan y resuelven oportunamente | S33: Completa | T33: 100 | U33: Fuerte | V33: Se ejecuta algunas veces por parte del responsable. | W33: Moderado | X33: Moderado
C34: Concursos docentes desiertos. | G34: Aumento de la tasa de permanencia de los estudiantes.
C35: Demoras en la contratación de los docentes. | G35: Mala imagen institucional. | T35: 0
B36: 4 | C36: Falta de credibilidad y apatía en la Evaluación Docente por parte de la Comunidad Académica. | D36: Participación de los Estudiantes por debajo de la estimada en la Evaluación Docente. | E36: Participación reducida de los Estudiantes en el proceso de Evaluación Docente debido a diferentes factores, lo que genera unos resultados con baja representitividad estadística. | F36: Estratégico | G36: Baja retroalimentación por parte de los Estudiantes y Proyectos Curriculares para que los Docentes mejoren su labor académica. | H36: Vicerrectoría Académica (Oficina de Docencia) | I36: Posible | J36: Menor | K36: =IF(OR(I36=0,J36=0),"",INDEX(MCALOR,MATCH(I36,PROBABILIDAD,0),MATCH(J36,IMPACTO,0))) -> MODERADO | L36: El Técnico del proceso de Evaluación Docente mensualmente envía correos electrónicos a la Comunidad Universitaria con la información del Proceso de Evaluación Docente, adicionalmente, se generan alertas a través del Sistema de Gestión Académica, con el fin de promover oportunamente la participación en la Evaluación Docente. Este control queda evidenciado en los correos electrónicos y el Sistema de Gestión Académica. | M36: Asignado | N36: Adecuado | O36: Oportuna | P36: Prevenir | Q36: Confiable | R36: Se investigan y resuelven oportunamente | S36: Completa | T36: 100 | U36: Fuerte | V36: Se ejecuta de manera consistente por parte del responsable. | W36: Fuerte | X36: Fuerte | Y36: =IF(SUM(T36:T41=0),"",AVERAGEIF(T36:T41,">0")) -> 100 | Z36: =IF(Y36="","",IF(Y36=0,"",IF(Y36=100,"Fuerte",IF(Y36<50,"Débil","Moderado")))) -> Fuerte | AA36: Directamente | AB36: No disminuye | AC36: =IF(Z36="Débil",0,IF(AND(Z36="Fuerte",AA36="Directamente"),2,IF(AND(Z36="Moderado",AA36="Directamente"),1,IF(AND(Z36="Moderado",AA36="No disminuye"),0,IF(AND(Z36="Fuerte",AA36="No disminuye"),0,""))))) -> 2 | AD36: 0 | AE36: =IF(L36="No hay controles establecidos.",I36,IF(AC36="","",IF(AND(I36="Rara vez",AC36>0),"Rara vez",IF(AND(I36="Improbable",AC36=2),"Rara vez",IF(AND(I36="Posible",AC36=2),"Rara vez",IF(AND(I36="Posible",AC36=1),"Improbable",IF(AND(I36="Probable",AC36=2),"Improbable",IF(AND(I36="Probable",AC36=1),"Posible",IF(AND(I36="Casi seguro",AC36=2),"Posible",IF(AND(I36="Casi seguro",AC36=1),"Probable",I36)))))))))) -> Rara vez | AF36: Insignificante | AG36: =IF(OR(AE36="",AF36=""),"",INDEX(MCALOR,MATCH(AE36,PROBABILIDAD,0),MATCH(AF36,IMPACTO,0))) -> BAJO | AH36: Reducir | AI36: Rediseñar la política de Evaluación Docente. | AJ36: Política de Evaluación Docente rediseñada | AK36: Vicerrectoría Académica (Oficina de Docencia) | AL36: 2021
C37: Falta de actualización del formato de la Evaluación Docente frente a los cambios tecnológicos y actualizaciones en los Proyectos Curriculares. | G37: El proceso de evaluación docente deja de ser representativo. | L37: El personal asistencial del proceso de Evaluación Docente realiza campañas de promoción semanalmente en cada facultad para reforzar la participación en el proceso de Evaluación Docente cuando inician y hasta finalizar las fechas asignadas. Su realizamiento queda evidenciado en las listas de asistencia que firman los estudiantes que participan. | M37: Asignado | N37: Adecuado | O37: Oportuna | P37: Prevenir | Q37: Confiable | R37: Se investigan y resuelven oportunamente | S37: Completa | T37: 100 | U37: Fuerte | V37: Se ejecuta de manera consistente por parte del responsable. | W37: Fuerte | X37: Fuerte
C38: Falta de institucionalización de la Oficina de Evaluación Docente. | G38: Continuidad de los Docentes mal evaluados en la institución. | L38: El Técnico del proceso de Evaluación Docente envia comunicaciones quincenalmente durante el proceso a los Docentes, coordinaciones y decanaturas informando el porcentaje de participación de los estudiantes en sus diferentes asignaturas. Este control queda evidenciado en los correos electrónicos | M38: Asignado | N38: Adecuado | O38: Oportuna | P38: Prevenir | Q38: Confiable | R38: Se investigan y resuelven oportunamente | S38: Completa | T38: 100 | U38: Fuerte | V38: Se ejecuta de manera consistente por parte del responsable. | W38: Fuerte | X38: Fuerte
C39: Fallas en la base datos que soporta la Evaluación Docente. | G39: Afectación a la calidad académica de los espacios académicos. | L39: El Técnico del proceso de Evaluación Docente con apoyo de la Oficina Asesora de Sistemas realiza un validación semestralmente de la plataforma, con el fin de verificar tiempos y el correcto funcionamiento. Quedando evidencia en los correos de alerta enviados a la Oficina Asesora de Sistemas. | M39: Asignado | N39: Adecuado | O39: Oportuna | P39: Prevenir | Q39: Confiable | R39: Se investigan y resuelven oportunamente | S39: Completa | T39: 100 | U39: Fuerte | V39: Se ejecuta de manera consistente por parte del responsable. | W39: Fuerte | X39: Fuerte
T40: 0
T41: 0
B42: 5 | C42: No se realiza el Comité de Personal Docente y de Asignación de Puntaje debido a falta de quórum. | D42: Demora en los procesos que se efectúan en la Oficina de Docencia. | E42: Inconvenientes con las actividades que se efectúan en la Oficina de Docencia relacionadas con los tiempos de respuesta a las solicitudes de valoración de producción académica extendidas por los Docentes de la Universidad. | F42: Operativos | G42: Insatisfacción en los usuarios de la Oficina. | H42: Vicerrectoría Académica (Oficina de Docencia) | I42: Improbable | J42: Moderado | K42: =IF(OR(I42=0,J42=0),"",INDEX(MCALOR,MATCH(I42,PROBABILIDAD,0),MATCH(J42,IMPACTO,0))) -> MODERADO | L42: El Docente asignado en funciones de coordinación de actividades de docencia con el apoyo de un Profesional semestralmente realiza jornadas de socialización del decreto 1279 a los docentes de carrera en cada facultad, con el objetivo de dar a conocer los aspectos principales de las solicitudes. Este control queda evidenciado en las listas de asistencia de cada reunión en las facultades. | M42: Asignado | N42: Adecuado | O42: Oportuna | P42: Prevenir | Q42: Confiable | R42: Se investigan y resuelven oportunamente | S42: Completa | T42: 100 | U42: Fuerte | V42: Se ejecuta algunas veces por parte del responsable. | W42: Moderado | X42: Moderado | Y42: =IF(SUM(T42:T47=0),"",AVERAGEIF(T42:T47,">0")) -> 97.5 | Z42: =IF(Y42="","",IF(Y42=0,"",IF(Y42=100,"Fuerte",IF(Y42<50,"Débil","Moderado")))) -> Moderado | AA42: Directamente | AB42: No disminuye | AC42: =IF(Z42="Débil",0,IF(AND(Z42="Fuerte",AA42="Directamente"),2,IF(AND(Z42="Moderado",AA42="Directamente"),1,IF(AND(Z42="Moderado",AA42="No disminuye"),0,IF(AND(Z42="Fuerte",AA42="No disminuye"),0,""))))) -> 1 | AD42: =IF(Z42="Débil",0,IF(AND(Z42="Fuerte",AB42="Directamente"),2,IF(AND(Z42="Fuerte",AB42="Indirectamente"),1,IF(AND(Z42="Moderado",AB42="Directamente"),1,IF(AB42="No disminuye","0",IF(AND(Z42="Moderado",AB42="Indirectamente"),"0","")))))) -> 0 | AE42: =IF(L42="No hay controles establecidos.",I42,IF(AC42="","",IF(AND(I42="Rara vez",AC42>0),"Rara vez",IF(AND(I42="Improbable",AC42=2),"Rara vez",IF(AND(I42="Posible",AC42=2),"Rara vez",IF(AND(I42="Posible",AC42=1),"Improbable",IF(AND(I42="Probable",AC42=2),"Improbable",IF(AND(I42="Probable",AC42=1),"Posible",IF(AND(I42="Casi seguro",AC42=2),"Posible",IF(AND(I42="Casi seguro",AC42=1),"Probable",I42)))))))))) -> Improbable | AF42: =IF(L42="No hay controles establecidos.",J42,IF(AD42="","",IF(AND(J42="Insignificante",AD42>0),"Insignificante",IF(AND(J42="Menor",AD42>0),"Insignificante",IF(AND(J42="Moderado",AD42=1),"Menor",IF(AND(J42="Moderado",AD42=2),"Insignificante",IF(AND(J42="Mayor",AD42=1),"Moderado",IF(AND(J42="Mayor",AD42=2),"Menor",IF(AND(J42="Catastrófico",AD42=1),"Mayor",IF(AND(J42="Catastrófico",AD42=2),"Moderado",J42)))))))))) -> Moderado | AG42: =IF(OR(AE42="",AF42=""),"",INDEX(MCALOR,MATCH(AE42,PROBABILIDAD,0),MATCH(AF42,IMPACTO,0))) -> MODERADO | AH42: Reducir | AI42: Establecer el reglamento interno del Comité de Personal Docente y de Asignación de Puntaje | AJ42: Reglamento interno del Comité de Personal Docente y de Asignación de Puntaje | AK42: Vicerrectoría Académica (Oficina de Docencia) | AL42: 2020
C43: Reproceso por inconsistencias encontradas en los documentos. | G43: Reclamaciones, tutelas o solicitudes adicionales de los Docentes que extienden la solicitud. | L43: La Secretaria de la coordinación de actividades de docencia verifica cada una de la solicitudes, con el objetivo de validar la entrega de la documentación documentación necesaria, en caso de presentarse inconsistencias le pide al solicitante que ajuste la documentacion mediante oficio o en el momento de la entrega, dependiendo el caso. | M43: Asignado | N43: Adecuado | O43: Oportuna | P43: Prevenir | Q43: Confiable | R43: Se investigan y resuelven oportunamente | S43: Incompleta | T43: 95 | U43: Moderado | V43: Se ejecuta algunas veces por parte del responsable. | W43: Moderado | X43: Moderado | AI43: Implementar un sistema de información para la gestión de las actividades propias del CPDAP y de Docencia | AJ43: Sistema de información generalizado para la dependencia | AK43: Vicerrectoría Académica (Oficina de Docencia) | AL43: 2021
C44: Demora en la consecución de pares evaluadores de Colciencias calificados para la valoración de la producción académica y en la recepción de los conceptos de éstos. | G44: Desgaste de los funcionarios de la Oficina por reprocesos. | T44: 0
C45: Falta de conocimiento de la normatividad aplicable a la producción académica (Decreto 1279 de 2002) por parte de los Docentes que solicitan valoración de producción. | G45: Seguimiento o hallazgos por parte de los entes de control. | T45: 0
C46: Falta de institucionalización de la Oficina de Docencia y de infraestructura asociada a ésta. | T46: 0
T47: 0
B48: 6 | K48: =IF(OR(I48=0,J48=0),"",INDEX(MCALOR,MATCH(I48,PROBABILIDAD,0),MATCH(J48,IMPACTO,0))) ->  | T48: 0 | Y48: =IF(SUM(T48:T53=0),"",AVERAGEIF(T48:T53,">0")) ->  | Z48: =IF(Y48="","",IF(Y48=0,"",IF(Y48=100,"Fuerte",IF(Y48<50,"Débil","Moderado")))) ->  | AC48: =IF(Z48="Débil",0,IF(AND(Z48="Fuerte",AA48="Directamente"),2,IF(AND(Z48="Moderado",AA48="Directamente"),1,IF(AND(Z48="Moderado",AA48="No disminuye"),0,IF(AND(Z48="Fuerte",AA48="No disminuye"),0,""))))) ->  | AD48: =IF(Z48="Débil",0,IF(AND(Z48="Fuerte",AB48="Directamente"),2,IF(AND(Z48="Fuerte",AB48="Indirectamente"),1,IF(AND(Z48="Moderado",AB48="Directamente"),1,IF(AB48="No disminuye","0",IF(AND(Z48="Moderado",AB48="Indirectamente"),"0","")))))) ->  | AE48: =IF(L48="No hay controles establecidos.",I48,IF(AC48="","",IF(AND(I48="Rara vez",AC48>0),"Rara vez",IF(AND(I48="Improbable",AC48=2),"Rara vez",IF(AND(I48="Posible",AC48=2),"Rara vez",IF(AND(I48="Posible",AC48=1),"Improbable",IF(AND(I48="Probable",AC48=2),"Improbable",IF(AND(I48="Probable",AC48=1),"Posible",IF(AND(I48="Casi seguro",AC48=2),"Posible",IF(AND(I48="Casi seguro",AC48=1),"Probable",I48)))))))))) ->  | AF48: =IF(L48="No hay controles establecidos.",J48,IF(AD48="","",IF(AND(J48="Insignificante",AD48>0),"Insignificante",IF(AND(J48="Menor",AD48>0),"Insignificante",IF(AND(J48="Moderado",AD48=1),"Menor",IF(AND(J48="Moderado",AD48=2),"Insignificante",IF(AND(J48="Mayor",AD48=1),"Moderado",IF(AND(J48="Mayor",AD48=2),"Menor",IF(AND(J48="Catastrófico",AD48=1),"Mayor",IF(AND(J48="Catastrófico",AD48=2),"Moderado",J48)))))))))) ->  | AG48: =IF(OR(AE48="",AF48=""),"",INDEX(MCALOR,MATCH(AE48,PROBABILIDAD,0),MATCH(AF48,IMPACTO,0))) -> 
T49: 0
T50: 0
T51: 0
T52: 0
T53: 0
B54: 7 | K54: =IF(OR(I54=0,J54=0),"",INDEX(MCALOR,MATCH(I54,PROBABILIDAD,0),MATCH(J54,IMPACTO,0))) ->  | T54: 0 | Y54: =IF(SUM(T54:T59=0),"",AVERAGEIF(T54:T59,">0")) ->  | Z54: =IF(Y54="","",IF(Y54=0,"",IF(Y54=100,"Fuerte",IF(Y54<50,"Débil","Moderado")))) ->  | AC54: =IF(Z54="Débil",0,IF(AND(Z54="Fuerte",AA54="Directamente"),2,IF(AND(Z54="Moderado",AA54="Directamente"),1,IF(AND(Z54="Moderado",AA54="No disminuye"),0,IF(AND(Z54="Fuerte",AA54="No disminuye"),0,""))))) ->  | AE54: =IF(L54="No hay controles establecidos.",I54,IF(AC54="","",IF(AND(I54="Rara vez",AC54>0),"Rara vez",IF(AND(I54="Improbable",AC54=2),"Rara vez",IF(AND(I54="Posible",AC54=2),"Rara vez",IF(AND(I54="Posible",AC54=1),"Improbable",IF(AND(I54="Probable",AC54=2),"Improbable",IF(AND(I54="Probable",AC54=1),"Posible",IF(AND(I54="Casi seguro",AC54=2),"Posible",IF(AND(I54="Casi seguro",AC54=1),"Probable",I54)))))))))) ->  | AF54: =IF(L54="No hay controles establecidos.",J54,IF(AD54="","",IF(AND(J54="Insignificante",AD54>0),"Insignificante",IF(AND(J54="Menor",AD54>0),"Insignificante",IF(AND(J54="Moderado",AD54=1),"Menor",IF(AND(J54="Moderado",AD54=2),"Insignificante",IF(AND(J54="Mayor",AD54=1),"Moderado",IF(AND(J54="Mayor",AD54=2),"Menor",IF(AND(J54="Catastrófico",AD54=1),"Mayor",IF(AND(J54="Catastrófico",AD54=2),"Moderado",J54)))))))))) ->  | AG54: =IF(OR(AE54="",AF54=""),"",INDEX(MCALOR,MATCH(AE54,PROBABILIDAD,0),MATCH(AF54,IMPACTO,0))) -> 
T55: 0
T56: 0
T57: 0
T58: 0
T59: 0
B61: Elaboró | D61: Revisó | E61: Aprobó
B62: Nombre: Equipo SIGUD Cargo: N/A Fecha: 27/08/2020 | D62: Nombre: William Fernando Castrillón Cardona / Elda Yanneth Villarreal Gil / José Félix Assad Cuéllar / Julio Barón Velandia / Jorge Enrique Rodríguez Rodríguez / Jaime Eddy Ussa Cargo: Vicerrector Académico / Decana Facultad de Ciencias y Educación / Decano Facultad de Artes ASAB / Decano Facultad de Ingeniería / Decano Facultad Tecnológica / Decano Facultad de Medio Ambiente y Recursos Naturales Fecha: 08/10/2020 | E62: Nombre: William Fernando Castrillón Cardona / Elda Yanneth Villarreal Gil / José Félix Assad Cuéllar / Julio Barón Velandia / Jorge Enrique Rodríguez Rodríguez / Jaime Eddy Ussa Cargo: Vicerrector Académico / Decana Facultad de Ciencias y Educación / Decano Facultad de Artes ASAB / Decano Facultad de Ingeniería / Decano Facultad Tecnológica / Decano Facultad de Medio Ambiente y Recursos Naturales Fecha: 16/10/2020
D63: Nombre: William Fernando Castrillón Cardona / Esperanza Camargo Casallas Cargo: Vicerrector Académico / Directora Oficina de Docencia Fecha: 28/08/2020 | E63: Nombre: William Fernando Castrillón Cardona Cargo: Vicerrector Académico Fecha: 28/08/2020

Sheet 1) GD - Cor
D2: MAPA INTEGRAL DE RIESGOS | E2: Código: GI-MG-001-FR-014
D3: Macroproceso: Direccionamiento Estratégico | E3: Versión: 03
D4: Proceso: Gestión Integrada | E4: Fecha de Aprobación: 14/01/2020
C6: EJE DE CORRUPCIÓN
C8: Proceso: | D8: Gestión de Docencia
C9: Objetivo del Proceso: | D9: =IF(D8=0,"",VLOOKUP(D8,'[7]Datos SGC'!B60:C81,2)) -> Garantizar que los Planes de Estudio establecidos para cada Proyecto Curricular, ofrezcan al estudiante de la UDFJC una formación integral y de calidad, dirigida fundamentalmente a las necesidades de la sociedad, contando con la cantidad e idoneidad de Docentes y demás personal que influya directamente en tal Proceso de Formación, garantizando que se ejecute eficientemente el Proceso de Enseñanza-Aprendizaje.
B12: IDENTIFICACIÓN DEL RIESGO | H12: ANÁLISIS DEL RIESGO | K12: EVALUACIÓN DEL RIESGO | AH12: TRATAMIENTO DEL RIESGO
B13: N° | C13: Causa o fuente | D13: Riesgo | E13: Descripción | F13: Consecuencias | G13: Unidad(es) que reportan el Riesgo | H13: Probabilidad | I13: Impacto | J13: Zona de Riesgo Inherente | K13: Controles existentes | L13: Criterios de evaluación del Diseño del Control | S13: Peso en la evaluación de diseño del Control | T13: Peso en la evaluación de diseño del Control | U13: Ejecución del Control | V13: Peso en la evaluación de la ejecución del Control | W13: Solidez individual del Control | X13: Solidez del Conjunto de Controles | Y13: Solidez del Conjunto de Controles | Z13: Controles ayudan a disminuir la probabilidad | AA13: Controles ayudan a disminuir el impacto | AB13: Desplazamiento en la Probabilidad | AC13: Desplazamiento en el Impacto | AD13: Probabilidad Residual | AE13: Impacto Residual | AF13: Zona de Riesgo Residual | AG13: Tratamiento al Riesgo | AH13: Acciones | AI13: Soporte | AJ13: Responsable | AK13: Tiempo
L14: Asignación del Responsable | M14: Segregación y autoridad del Responsable | N14: Periodicidad | O14: Propósito | P14: Cómo se realiza la actividad de Control | Q14: Qué pasa con las desviaciones | R14: Evidencia de la Ejecución del Control
B15: 1 | C15: Omisión de los requisitos legales para el nombramiento o contratación de la persona. | D15: Incumplimiento de los procedimientos de contratación; fraude en convocatoria y selección de Docentes. | E15: Procesos de selección y contratación de docentes manipulados por el clientelismo, amiguismo y concentración de poder sin garantizar igualdad de condiciones a los inscritos. | F15: Falta de garantías para la igualdad de condiciones a los inscritos. | G15: Decanaturas de las Facultades de la Universidad Distrital Proyectos Curriculares | H15: Posible | I15: Moderado | J15: =IF(OR(H15=0,I15=0),"",INDEX(MCALOR,MATCH(H15,PROBABILIDAD,0),MATCH(I15,IMPACTO,0))) -> ALTO | K15: El Consejo de Facultad semestralmente o cuando se requiera recibe la solicitud de necesidad por parte del Consejo Curricular la cual incluye el perfil del docente requerido, para realizar la verificación si es posible suplir la necesidad con los docentes actuales o se requiere un proceso de selección docente. La evidencia de la verificación y aprobación se contempla en las Actas de Reunión de los Consejos y en la publicación de la convocatoria en la página web institucional. | L15: Asignado | M15: Adecuado | N15: Oportuna | O15: Prevenir | P15: Confiable | Q15: Se investigan y resuelven oportunamente | R15: Completa | S15: =IF(L15="",,VLOOKUP(L15,UNO,2,FALSE))+IF(M15="",0,VLOOKUP(M15,DOS,2,FALSE))+IF(O15="",0,VLOOKUP(O15,CUATRO,2,FALSE))+IF(P15="",0,VLOOKUP(P15,CINCO,2,FALSE))+IF(R15="",0,VLOOKUP(R15,SIETE,2,FALSE))+IF(N15="",0,VLOOKUP(N15,TRES,2,FALSE))+IF(Q15="",0,VLOOKUP(Q15,SEIS,2,FALSE)) -> 100 | T15: =IF(S15=0,"",IF(S15>=96,"Fuerte",IF(S15<=85,"Débil","Moderado"))) -> Fuerte | U15: Se ejecuta de manera consistente por parte del responsable. | V15: =IF(U15="","",IF(U15="Se ejecuta de manera consistente por parte del responsable.","Fuerte",IF(U15="Se ejecuta algunas veces por parte del responsable.","Moderado","Débil"))) -> Fuerte | W15: =IF(T15="","",IF(AND(T15="Fuerte",V15="Fuerte"),"Fuerte",IF(OR((AND(T15="Moderado",V15="Moderado")),(AND(T15="Fuerte",V15="Moderado")),(AND(T15="Moderado",V15="Fuerte"))),"Moderado","Débil"))) -> Fuerte | X15: =IF(SUM(S15:S20=0),"",AVERAGEIF(S15:S20,">0")) -> 100 | Y15: =IF(X15="","",IF(X15=0,"",IF(X15=100,"Fuerte",IF(X15<50,"Débil","Moderado")))) -> Fuerte | Z15: Directamente | AA15: No disminuye | AB15: =IF(Y15="Débil",0,IF(AND(Y15="Fuerte",Z15="Directamente"),2,IF(AND(Y15="Moderado",Z15="Directamente"),1,IF(AND(Y15="Moderado",Z15="No disminuye"),0,IF(AND(Y15="Fuerte",Z15="No disminuye"),0,""))))) -> 2 | AC15: =IF(AA15=0,"","0") -> 0 | AD15: =IF(Z15="","",IF(K15="No hay controles establecidos.",H15,IF(AB15="","",IF(AND(H15="Rara vez",AB15>0),"Rara vez",IF(AND(H15="Improbable",AB15=2),"Rara vez",IF(AND(H15="Posible",AB15=2),"Rara vez",IF(AND(H15="Posible",AB15=1),"Improbable",IF(AND(H15="Probable",AB15=2),"Improbable",IF(AND(H15="Probable",AB15=1),"Posible",IF(AND(H15="Casi seguro",AB15=2),"Posible",IF(AND(H15="Casi seguro",AB15=1),"Probable",H15))))))))))) -> Rara vez | AE15: =IF(I15="","",I15) -> Moderado | AF15: =IF(OR(AD15="",AE15=""),"",INDEX(MCALOR,MATCH(AD15,PROBABILIDAD,0),MATCH(AE15,IMPACTO,0))) -> MODERADO | AG15: Reducir
C16: Uso de la información institucional para beneficios personales, con el fin de manipular o influenciar el proceso de selección docente. | F16: Afecta la calidad académica de la universidad debido a que el docente seleccionado no cumple el perfil requerido. | K16: El Profesional del área jurídica de la Facultad durante los Consejos de Facultad verifica que las solicitudes de necesidad de perfiles docentes cumpla con los requisitos legales requeridos, en caso de detectar inconsistencias el Profesional sugiere que realicen cambios en la necesidad. La evidencia se refleja en la solicitud de necesidad final y la trazabilidad de todo el trámite. | L16: Asignado | M16: Adecuado | N16: Oportuna | O16: Prevenir | P16: Confiable | Q16: Se investigan y resuelven oportunamente | R16: Completa | S16: 100 | T16: =IF(S16=0,"",IF(S16>=96,"Fuerte",IF(S16<=85,"Débil","Moderado"))) -> Fuerte | U16: Se ejecuta algunas veces por parte del responsable. | V16: =IF(U16="","",IF(U16="Se ejecuta de manera consistente por parte del responsable.","Fuerte",IF(U16="Se ejecuta algunas veces por parte del responsable.","Moderado","Débil"))) -> Moderado | W16: =IF(T16="","",IF(AND(T16="Fuerte",V16="Fuerte"),"Fuerte",IF(OR((AND(T16="Moderado",V16="Moderado")),(AND(T16="Fuerte",V16="Moderado")),(AND(T16="Moderado",V16="Fuerte"))),"Moderado","Débil"))) -> Moderado
C17: Concentración de autoridad o abuso de poder. | F17: Mala imagen de la universidad. | K17: Cada Decanatura una vez se obtienen los resultados de la convocatoria docente revisa al hoja de vida del Docente seleccionado (ganador) y el perfil solicitado, con el fin de revisar la información y proceder a publicar en la página web el acta del ganador. | L17: Asignado | M17: Adecuado | N17: Oportuna | O17: Prevenir | P17: Confiable | Q17: Se investigan y resuelven oportunamente | R17: Completa | S17: 100 | T17: Fuerte | U17: Se ejecuta de manera consistente por parte del responsable. | V17: Fuerte | W17: Fuerte
C18: Favorecimiento personal o de un tercero (clientelismo). | F18: Demanda a la institución, procesos disciplinarios y jurídicos. | S18: 0
C19: Ausencia de controles pertinentes en la selección de criterios para la contratación docente. | F19: Abandono del cargo de forma prematura, generando traumatismo en el semestre académico. | S19: 0
C20: Falta de ética de los funcionarios y aspirantes. | S20: 0
B21: 2 | C21: La normatividad de la Universidad no se ajusta a las condiciones de las actividades académicas de la Institución. | D21: Despilfarro de recursos públicos. | E21: Utilización de recursos económicos de forma incorrecta de tal manera que no cumpla con la prestación de los servicios establecidos en el proceso de Gestión de Docencia (prácticas académicas, capacitación docente, creación de Proyectos Curriculares). | F21: Desfinanciamiento de algunas actividades. | G21: Decanaturas de las Facultades de la Universidad Distrital | H21: Posible | I21: Mayor | J21: =IF(OR(H21=0,I21=0),"",INDEX(MCALOR,MATCH(H21,PROBABILIDAD,0),MATCH(I21,IMPACTO,0))) -> EXTREMO | K21: Los Decanos de cada Facultad con apoyo del profesional del área financiera anualmente construyen y realizan la distribución del presupuesto de la Facultad con base a las necesidades identificadas (capacitación docente, vinculación especial), con el fin de ser remitida a la Oficina Asesora de Planeación y Control y proceder con la aprobación por el Consejo Superior Universitario. La Programación Presupuestal da los lineamientos para la ejecución de los rubros a lo largo del año. | L21: Asignado | M21: Adecuado | N21: Oportuna | O21: Prevenir | P21: Confiable | Q21: Se investigan y resuelven oportunamente | R21: Completa | S21: 100 | T21: Fuerte | U21: Se ejecuta de manera consistente por parte del responsable. | V21: Fuerte | W21: Fuerte | X21: =IF(SUM(S21:S26=0),"",AVERAGEIF(S21:S26,">0")) -> 97.5 | Y21: =IF(X21="","",IF(X21=0,"",IF(X21=100,"Fuerte",IF(X21<50,"Débil","Moderado")))) -> Moderado | Z21: Directamente | AA21: Indirectamente | AB21: =IF(Y21="Débil",0,IF(AND(Y21="Fuerte",Z21="Directamente"),2,IF(AND(Y21="Moderado",Z21="Directamente"),1,IF(AND(Y21="Moderado",Z21="No disminuye"),0,IF(AND(Y21="Fuerte",Z21="No disminuye"),0,""))))) -> 1 | AC21: =IF(AA21=0,"","0") -> 0 | AD21: =IF(Z21="","",IF(K21="No hay controles establecidos.",H21,IF(AB21="","",IF(AND(H21="Rara vez",AB21>0),"Rara vez",IF(AND(H21="Improbable",AB21=2),"Rara vez",IF(AND(H21="Posible",AB21=2),"Rara vez",IF(AND(H21="Posible",AB21=1),"Improbable",IF(AND(H21="Probable",AB21=2),"Improbable",IF(AND(H21="Probable",AB21=1),"Posible",IF(AND(H21="Casi seguro",AB21=2),"Posible",IF(AND(H21="Casi seguro",AB21=1),"Probable",H21))))))))))) -> Improbable | AE21: =IF(I21="","",I21) -> Mayor | AF21: =IF(OR(AD21="",AE21=""),"",INDEX(MCALOR,MATCH(AD21,PROBABILIDAD,0),MATCH(AE21,IMPACTO,0))) -> ALTO | AG21: Reducir | AH21: Solicitar cuando se requiera capacitación por parte de la Oficina Asesora de Planeación y Control relacionados con los procesos de seguimiento. | AI21: Actas de reuniones con el Equipo SIGUD de socialización de procesos y procedimiento | AJ21: Decanaturas de las Facultades de la Universidad Distrital | AK21: 2021
C22: Malos manejos en la adquisición de los bienes y servicios. | F22: Acciones legales emprendidas contra los implicados y el ordenador encargado. | K22: El Profesional de cada Decanatura encargado de hora catedra semestralmente de acuerdo a la Programación Presupuestal, revisa la coherencia entre la necesidad de contratación de docentes de vinculación especial frente a lo estipulado en la normativa, en caso de encontrar inconsistencias solicita los ajustes respectivos a la documentación entregada. | L22: Asignado | M22: Adecuado | N22: Oportuna | O22: Prevenir | P22: Confiable | Q22: Se investigan y resuelven oportunamente | R22: Completa | S22: 100 | T22: Fuerte | U22: Se ejecuta de manera consistente por parte del responsable. | V22: Fuerte | W22: Fuerte | AH22: Solicitar cuando se requiera inducción de procesos y procedimientos en el manejo del presupuesto. | AI22: Actas de reunión y/o planillas de asistencia | AJ22: Decanaturas de las Facultades de la Universidad Distrital | AK22: 2021
C23: Utilización de espacios y materiales de la universidad para beneficio personal o favorecimiento a terceros. | F23: Desfavorecimiento de la imagen institucional. | K23: El Profesional de cada Decanatura trimestralmente construye y presenta a la Oficina Asesora de Planeación y Control un informe con los soportes del cumplimiento del Plan de Acción, con el fin de controlar la ejecución presupuestal. La evidencia se refleja en los correos electrónicos u oficios que se envían con el informe adjunto. | L23: Asignado | M23: Adecuado | N23: Oportuna | O23: Detectar | P23: Confiable | Q23: Se investigan y resuelven oportunamente | R23: Completa | S23: 95 | T23: Moderado | U23: Se ejecuta de manera consistente por parte del responsable. | V23: Fuerte | W23: Moderado | AH23: Articular con la División de Recursos Humanos y Tesorería, el pago de la nómina de los docentes, incluyendo el pago de seguridad social. | AI23: Procedimiento y/o sistema de información | AJ23: Vicerrectoría Académica Decanaturas de las Facultades de la Universidad Distrital | AK23: 2021
C24: Debilidad en los mecanismos de control para la ejecución del presupuesto. | F24: Perdida de la percepción de transparencia. | K24: El Profesional de cada Decanatura encargado de realizar seguimiento al presupuesto, mensualmente solicita los soportes de la ejecución presupuestal a los Proyectos Curriculares, con el fin de verificar lo ejecutado contra lo planeado. En caso de encontrar inconsistencias, se analiza la situación y se toman las acciones pertinentes (solicitud de traslados presupuestales). | L24: Asignado | M24: Adecuado | N24: Oportuna | O24: Detectar | P24: Confiable | Q24: Se investigan y resuelven oportunamente | R24: Completa | S24: 95 | T24: Moderado | U24: Se ejecuta de manera consistente por parte del responsable. | V24: Fuerte | W24: Moderado
C25: Afectar los rubros en la adquisición de bienes y servicios innecesarios o no priorizados. | F25: Disminución de la calidad académica por uso incorrecto de recursos públicos. | S25: 0
F26: Detrimento patrimonial. | S26: 0
B27: 3 | C27: Desconocimiento de la reglamentación institucional. | D27: Incumplimiento de los reglamentos y normatividad por parte de Docentes y Funcionarios del proceso. | E27: Desobediencia de los reglamentos y normatividad establecida por la Universidad por abstención, omisión, infracción o violación. | F27: Acciones legales en contra de la Universidad. | G27: Decanaturas de las Facultades de la Universidad Distrital | H27: Posible | I27: Mayor | J27: =IF(OR(H27=0,I27=0),"",INDEX(MCALOR,MATCH(H27,PROBABILIDAD,0),MATCH(I27,IMPACTO,0))) -> EXTREMO | K27: Las Decanaturas cada vez que reciben nueva normatividad o actualizaciones a la misma, envían mediante correo electrónico a las listas que correspondan dependiendo el tipo de normatividad, con el fin de informar oportunamente a la Comunidad Universitaria. | L27: Asignado | M27: Adecuado | N27: Oportuna | O27: Prevenir | P27: Confiable | Q27: Se investigan y resuelven oportunamente | R27: Completa | S27: 100 | T27: Fuerte | U27: Se ejecuta de manera consistente por parte del responsable. | V27: Fuerte | W27: Fuerte | X27: =IF(SUM(S27:S32=0),"",AVERAGEIF(S27:S32,">0")) -> 97.5 | Y27: =IF(X27="","",IF(X27=0,"",IF(X27=100,"Fuerte",IF(X27<50,"Débil","Moderado")))) -> Moderado | Z27: Directamente | AA27: Indirectamente | AB27: =IF(Y27="Débil",0,IF(AND(Y27="Fuerte",Z27="Directamente"),2,IF(AND(Y27="Moderado",Z27="Directamente"),1,IF(AND(Y27="Moderado",Z27="No disminuye"),0,IF(AND(Y27="Fuerte",Z27="No disminuye"),0,""))))) -> 1 | AC27: =IF(AA27=0,"","0") -> 0 | AD27: =IF(Z27="","",IF(K27="No hay controles establecidos.",H27,IF(AB27="","",IF(AND(H27="Rara vez",AB27>0),"Rara vez",IF(AND(H27="Improbable",AB27=2),"Rara vez",IF(AND(H27="Posible",AB27=2),"Rara vez",IF(AND(H27="Posible",AB27=1),"Improbable",IF(AND(H27="Probable",AB27=2),"Improbable",IF(AND(H27="Probable",AB27=1),"Posible",IF(AND(H27="Casi seguro",AB27=2),"Posible",IF(AND(H27="Casi seguro",AB27=1),"Probable",H27))))))))))) -> Improbable | AE27: =IF(I27="","",I27) -> Mayor | AF27: =IF(OR(AD27="",AE27=""),"",INDEX(MCALOR,MATCH(AD27,PROBABILIDAD,0),MATCH(AE27,IMPACTO,0))) -> ALTO | AG27: Reducir | AH27: Socialización de la normatividad con los Coordinadores de los Proyectos Curriculares y unidades académico administrativas de acuerdo al tema. | AI27: Presentación de normatividad vigente y evidencias de la socialización realizada | AJ27: Decanaturas de las Facultades de la Universidad Distrital | AK27: 2021
C28: Abuso de poder. | F28: Inoperancia en la ejecución de los procesos. | K28: Los Decanos y Coordinadores de los Proyectos Curriculares dependiendo de la situación, convocan a reuniones de trabajo para realizar la revisión y seguimiento al estado de los diferentes procedimientos que se llevan a cabo, en caso de encontrar incumplimiento en las actividades o compromisos, se procede a realizar mediaciones para lograr subsanar la situación presentada. | L28: Asignado | M28: Adecuado | N28: Oportuna | O28: Detectar | P28: Confiable | Q28: Se investigan y resuelven oportunamente | R28: Completa | S28: 95 | T28: Moderado | U28: Se ejecuta de manera consistente por parte del responsable. | V28: Fuerte | W28: Moderado
C29: Desactualización del sistema de información referente a la normatividad de la Universidad y deficiencias en su diseño. | F29: Asignación de responsabilidades a quien no corresponde y descarga de las mismas a quienes deberían ejecutarlas, generando desorden administrativo. | S29: 0
C30: Desactualización de la normatividad en conformidad con las condiciones actuales de la Universidad. | F30: Desagregación de funciones y definición de los niveles de autoridad. | S30: 0
S31: 0
S32: 0
B33: 4 | C33: Búsqueda de beneficios de diferente índole, a cambio de registrar o modificar las calificaciones de los estudiantes. | D33: Alteración o generación indebida de notas. | E33: Recibir o solicitar dádivas en el registro de información en el Sistema de Gestión Académica (modulo notas) y/o de las certificaciones de los estudiantes generando beneficios o perjuicios a terceros. | F33: Procesos disciplinarios. | G33: Decanaturas de las Facultades de la Universidad Distrital Proyectos Curriculares | H33: Posible | I33: Mayor | J33: =IF(OR(H33=0,I33=0),"",INDEX(MCALOR,MATCH(H33,PROBABILIDAD,0),MATCH(I33,IMPACTO,0))) -> EXTREMO | K33: El Consejo Curricular cuando recibe solicitudes de validación de notas, asigna dos jurados para realizar el examen de validación al estudiante, una vez programada la fecha y llevado a cabo el examen, se realiza el reporte de la calificación mediante el diligenciamiento del formato de validación, el cual es remitido al Proyecto Curricular con la nota definitiva, y finalmente el Coordinador del Proyecto Curricular procede a realizar la modificación respectiva en el Sistema de Gestión Académica. | L33: Asignado | M33: Adecuado | N33: Oportuna | O33: Detectar | P33: Confiable | Q33: Se investigan y resuelven oportunamente | R33: Completa | S33: 95 | T33: Moderado | U33: Se ejecuta de manera consistente por parte del responsable. | V33: Fuerte | W33: Moderado | X33: =IF(SUM(S33:S38=0),"",AVERAGEIF(S33:S38,">0")) -> 96.25 | Y33: =IF(X33="","",IF(X33=0,"",IF(X33=100,"Fuerte",IF(X33<50,"Débil","Moderado")))) -> Moderado | Z33: Directamente | AA33: Directamente | AB33: =IF(Y33="Débil",0,IF(AND(Y33="Fuerte",Z33="Directamente"),2,IF(AND(Y33="Moderado",Z33="Directamente"),1,IF(AND(Y33="Moderado",Z33="No disminuye"),0,IF(AND(Y33="Fuerte",Z33="No disminuye"),0,""))))) -> 1 | AC33: =IF(AA33=0,"","0") -> 0 | AD33: =IF(Z33="","",IF(K33="No hay controles establecidos.",H33,IF(AB33="","",IF(AND(H33="Rara vez",AB33>0),"Rara vez",IF(AND(H33="Improbable",AB33=2),"Rara vez",IF(AND(H33="Posible",AB33=2),"Rara vez",IF(AND(H33="Posible",AB33=1),"Improbable",IF(AND(H33="Probable",AB33=2),"Improbable",IF(AND(H33="Probable",AB33=1),"Posible",IF(AND(H33="Casi seguro",AB33=2),"Posible",IF(AND(H33="Casi seguro",AB33=1),"Probable",H33))))))))))) -> Improbable | AE33: =IF(I33="","",I33) -> Mayor | AF33: =IF(OR(AD33="",AE33=""),"",INDEX(MCALOR,MATCH(AD33,PROBABILIDAD,0),MATCH(AE33,IMPACTO,0))) -> ALTO | AG33: Reducir
C34: Sistemas de información susceptibles de manipulación o adulteración. | F34: Aplicación del estatuto correspondiente. | K34: El Proyecto Curricular semestralmente recibe las planillas de calificaciones en físico firmado por el Docente, con el fin de dar soporte a lo registrado en el Sistema de Gestión Académica, en caso de presentarse inconsistencias se revisan las notas de la planilla en físico contra lo registrado en el Sistema. | L34: Asignado | M34: Adecuado | N34: Oportuna | O34: Prevenir | P34: Confiable | Q34: Se investigan y resuelven oportunamente | R34: Completa | S34: 100 | T34: Fuerte | U34: Se ejecuta de manera consistente por parte del responsable. | V34: Fuerte | W34: Fuerte
C35: Abuso de poder. | F35: Demandas y procesos penales. | K35: El Proyecto Curricular a finales o inicio de semestre, cuando se requiere, recibe por parte del docente el formato de novedad de nota diligenciado con los datos del estudiante que requiere la modificación, en caso de ser un grupo de estudiantes se entrega mediante oficio con la relación de notas y estudiantes, una vez verificada la información el Coordinador del Proyecto Curricular realiza los ajuste solicitados en el Sistema de Gestión Académica, lo cual queda evidenciado en la fecha de modificación de nota en el formato u oficio correspondiente. | L35: Asignado | M35: Adecuado | N35: Oportuna | O35: Detectar | P35: Confiable | Q35: Se investigan y resuelven oportunamente | R35: Completa | S35: 95 | T35: Moderado | U35: Se ejecuta de manera consistente por parte del responsable. | V35: Fuerte | W35: Moderado
C36: Favorecimiento personal o de un tercero (clientelismo). | F36: Afectación de imagen y credibilidad institucional. | K36: El Consejo de Curricular cuando recibe solicitudes de segundo evaluador procede a asignar dos jurados los cuales se remiten a Consejo de Facultad para ser avalados, con el fin de que evalúen la calificación del estudiante, posteriormente los jurados reportan la nota generada mediante oficio, y finalmente el Coordinador del Proyecto Curricular procede a realizar la modificación respectiva en el Sistema de Gestión Académica. | L36: Asignado | M36: Adecuado | N36: Oportuna | O36: Detectar | P36: Confiable | Q36: Se investigan y resuelven oportunamente | R36: Completa | S36: 95 | T36: Moderado | U36: Se ejecuta de manera consistente por parte del responsable. | V36: Fuerte | W36: Moderado
C37: Incumplimiento de las fechas estipuladas en el Calendario Académico relativas al cargue de notas. | F37: Disminución de la calidad de la Universidad y sus egresados. | S37: 0
S38: 0
B39: 5 | C39: Abuso de poder. | D39: Tráfico de influencias para beneficio personal y/o beneficio o perjuicio de un tercero. | E39: Toda conducta que implique extralimitación de funciones, de procedimientos, conductos o lineamientos establecidos fundamentados en una posición de poder con el fin de generar un beneficio o perjuicio especifico y de carácter premeditado en algún Docente, Estudiante o funcionario. | F39: Apertura de procesos disciplinarios o administrativos. | G39: Decanaturas de las Facultades de la Universidad Distrital | H39: Posible | I39: Mayor | J39: =IF(OR(H39=0,I39=0),"",INDEX(MCALOR,MATCH(H39,PROBABILIDAD,0),MATCH(I39,IMPACTO,0))) -> EXTREMO | K39: Los Profesionales de cada Decanatura cada vez que se requiera realizan reuniones de socialización al personal administrativo y docentes, con el fin de explicar los procedimientos, manuales, guías, instructivos y demás que rigen los procesos administrativos, lo cual queda evidenciado en Actas de Reunión. | L39: Asignado | M39: Adecuado | N39: No oportuna | O39: Prevenir | P39: Confiable | Q39: Se investigan y resuelven oportunamente | R39: Completa | S39: 85 | T39: Débil | U39: Se ejecuta de manera consistente por parte del responsable. | V39: Fuerte | W39: Débil | X39: =IF(SUM(S39:S44=0),"",AVERAGEIF(S39:S44,">0")) -> 91.66666667 | Y39: =IF(X39="","",IF(X39=0,"",IF(X39=100,"Fuerte",IF(X39<50,"Débil","Moderado")))) -> Moderado | Z39: Directamente | AA39: Indirectamente | AB39: =IF(Y39="Débil",0,IF(AND(Y39="Fuerte",Z39="Directamente"),2,IF(AND(Y39="Moderado",Z39="Directamente"),1,IF(AND(Y39="Moderado",Z39="No disminuye"),0,IF(AND(Y39="Fuerte",Z39="No disminuye"),0,""))))) -> 1 | AC39: =IF(AA39=0,"","0") -> 0 | AD39: =IF(Z39="","",IF(K39="No hay controles establecidos.",H39,IF(AB39="","",IF(AND(H39="Rara vez",AB39>0),"Rara vez",IF(AND(H39="Improbable",AB39=2),"Rara vez",IF(AND(H39="Posible",AB39=2),"Rara vez",IF(AND(H39="Posible",AB39=1),"Improbable",IF(AND(H39="Probable",AB39=2),"Improbable",IF(AND(H39="Probable",AB39=1),"Posible",IF(AND(H39="Casi seguro",AB39=2),"Posible",IF(AND(H39="Casi seguro",AB39=1),"Probable",H39))))))))))) -> Improbable | AE39: =IF(I39="","",I39) -> Mayor | AF39: =IF(OR(AD39="",AE39=""),"",INDEX(MCALOR,MATCH(AD39,PROBABILIDAD,0),MATCH(AE39,IMPACTO,0))) -> ALTO | AG39: Reducir | AH39: Solicitar cuando se requiera inducciones con el fin de actualizar el manejo de las plataformas académicas (Sistema de Gestión Académica, SICAPITAL, ÁGORA) | AI39: Actas de reunión y/o planillas de asistencia | AJ39: Decanaturas de las Facultades de la Universidad Distrital | AK39: Anualmente
C40: Favorecimiento personal o de un tercero (clientelismo). | F40: Demandas y procesos penales. | K40: El Consejo Curricular o Consejo de Facultad cada vez que se reciben solicitudes por parte de la Comunidad Académica, se revisan y analizan según el cumplimiento de la normatividad, con el fin de dar respuesta oportuna a los solicitantes y acorde a la reglamentación. Lo cual se ve evidenciado en las Actas de los Consejos. | L40: Asignado | M40: Adecuado | N40: Oportuna | O40: Detectar | P40: Confiable | Q40: Se investigan y resuelven oportunamente | R40: Completa | S40: 95 | T40: Moderado | U40: Se ejecuta de manera consistente por parte del responsable. | V40: Fuerte | W40: Moderado
C41: Falta de ética de los funcionarios, docentes o estudiantes . | F41: Afectación a la imagen institucional. | K41: El personal administrativo de las Decanaturas y Proyectos Curriculares cada vez que se requiera y de acuerdo a la situación, revisa la información registrada en los diferentes Sistemas de Información (Sistema de Gestión Académica, SICapital, Ticke) utilizados en los procedimientos administrativos a cargo, con el fin de validar la información registrada. | L41: Asignado | M41: Adecuado | N41: Oportuna | O41: Detectar | P41: Confiable | Q41: Se investigan y resuelven oportunamente | R41: Completa | S41: 95 | T41: Moderado | U41: Se ejecuta de manera consistente por parte del responsable. | V41: Fuerte | W41: Moderado
C42: Incumplimiento del debido proceso y los conductos establecidos. | F42: Disminución de la calidad académica de la Universidad. | S42: 0
C43: Desconocimiento de las condiciones que constituyen las faltas o naturalización de malas prácticas de ejecución. | F43: Pérdida de credibilidad en los procesos administrativos que genera la Universidad. | S43: 0
C44: Existencia de dádivas. | S44: 0
B45: 6 | C45: Falta de socialización y divulgación de políticas institucionales para la prevención, atención y sanción del hostigamiento. | D45: Acoso (psicológico, laboral, o sexual) | E45: Toda conducta persistente y demostrable, ejercida sobre un funcionario, un jefe o superior jerárquico, un compañero de trabajo o subalterno o un estudiante, encaminada a infundir miedo, intimidación, terror y angustia, a causar perjuicio, generar desmotivación, o incluso la deserción de la institución. | F45: Procesos sancionatorios y disciplinarios. | G45: Decanaturas de las Facultades de la Universidad Distrital | H45: Probable | I45: Catastrófico | J45: =IF(OR(H45=0,I45=0),"",INDEX(MCALOR,MATCH(H45,PROBABILIDAD,0),MATCH(I45,IMPACTO,0))) -> EXTREMO | K45: El órgano directivo administrativo cada vez que recibe quejas o incidentes relacionados con acoso (mediante plataforma física o virtual, dependiendo de la directriz institucional vigente), procede a informar al profesional de apoyo jurídico de la Facultad con el fin de dar respuesta al solicitante una vez analizado e investigado el caso, cuando sea necesario se solicita información adicional al Proyecto Curricular correspondiente. | L45: Asignado | M45: Adecuado | N45: Oportuna | O45: Detectar | P45: Confiable | Q45: Se investigan y resuelven oportunamente | R45: Completa | S45: 95 | T45: Moderado | U45: Se ejecuta de manera consistente por parte del responsable. | V45: Fuerte | W45: Moderado | X45: =IF(SUM(S45:S50=0),"",AVERAGEIF(S45:S50,">0")) -> 97.5 | Y45: =IF(X45="","",IF(X45=0,"",IF(X45=100,"Fuerte",IF(X45<50,"Débil","Moderado")))) -> Moderado | Z45: Directamente | AA45: Directamente | AB45: =IF(Y45="Débil",0,IF(AND(Y45="Fuerte",Z45="Directamente"),2,IF(AND(Y45="Moderado",Z45="Directamente"),1,IF(AND(Y45="Moderado",Z45="No disminuye"),0,IF(AND(Y45="Fuerte",Z45="No disminuye"),0,""))))) -> 1 | AC45: =IF(AA45=0,"","0") -> 0 | AD45: =IF(Z45="","",IF(K45="No hay controles establecidos.",H45,IF(AB45="","",IF(AND(H45="Rara vez",AB45>0),"Rara vez",IF(AND(H45="Improbable",AB45=2),"Rara vez",IF(AND(H45="Posible",AB45=2),"Rara vez",IF(AND(H45="Posible",AB45=1),"Improbable",IF(AND(H45="Probable",AB45=2),"Improbable",IF(AND(H45="Probable",AB45=1),"Posible",IF(AND(H45="Casi seguro",AB45=2),"Posible",IF(AND(H45="Casi seguro",AB45=1),"Probable",H45))))))))))) -> Posible | AE45: =IF(I45="","",I45) -> Catastrófico | AF45: =IF(OR(AD45="",AE45=""),"",INDEX(MCALOR,MATCH(AD45,PROBABILIDAD,0),MATCH(AE45,IMPACTO,0))) -> EXTREMO | AG45: Reducir | AH45: Definir en conjunto con el Centro de Bienestar Institucional un plan de sensibilización anual dirigido a la comunidad académica sobre temas relacionados al acoso. | AI45: Plan de sensibilización anual sobre acoso | AJ45: Vicerrectoría Académica | AK45: 2021
C46: Abuso de poder. | F46: Seguimiento de instancias u organismos externos. | K46: La Universidad mediante diferentes instancias (Rectoría, Vicerrectorías, Consejos, Centro de Bienestar Institucional, IPAZUD, entre otras) anualmente coordine capacitaciones dirigidas a la comunidad académica sobre las herramientas para la identificación del acoso y liderar charlas de sensibilización sobre los mecanismos para reportar el acoso | L46: Asignado | M46: Adecuado | N46: Oportuna | O46: Prevenir | P46: Confiable | Q46: Se investigan y resuelven oportunamente | R46: Completa | S46: 100 | T46: Fuerte | U46: Se ejecuta de manera consistente por parte del responsable. | V46: Fuerte | W46: Fuerte | AH46: Definir en conjunto con el Centro de Bienestar Institucional y la División de Recursos Humanos los protocolos para reportar casos de acoso. | AI46: Protocolo aprobado | AJ46: Vicerrectoría Académica Decanaturas de las Facultades de la Universidad Distrital | AK46: 2021
C47: Mal uso de los espacios físicos de la Universidad. | F47: Agresiones físicas o verbales. | S47: 0
C48: Discriminación. | F48: Perdida de imagen profesional e institucional. | S48: 0
C49: Intolerancia manifiesta entre los miembros de la comunidad. | F49: Afectación psicológica y de salud. | S49: 0
C50: Limitantes institucionales a la tipificación de las denuncias por acoso laboral debido a las condiciones contractuales de la comunidad de la Universidad. | F50: Deserción de algún miembro de la comunidad. | S50: 0
B51: 7 | C51: Error en la selección de los pares externos adecuados. | D51: Clasificación o reclasificación Docente errónea. | E51: Clasificar o reclasificar en una categoría del escalafón a un Docente sin que cumpla con las condiciones, parámetros y requisitos para ubicarse en esta, generando beneficios a terceros. | F51: Pérdida de recursos económicos de la Universidad. | G51: Vicerrectoría Académica (Oficina de Docencia) | H51: Improbable | I51: Mayor | J51: =IF(OR(H51=0,I51=0),"",INDEX(MCALOR,MATCH(H51,PROBABILIDAD,0),MATCH(I51,IMPACTO,0))) -> ALTO | K51: La Secretaria de la coordinación de actividades de Docencia revisa la documentación presentada por cada docente de carrera y la contrasta con la normatividad existente, en caso de presentarse inconsistencias le pide al solicitante que ajuste la documentacion mediante oficio o en el momento de la entrega, dependiendo el caso. | L51: Asignado | M51: Adecuado | N51: Oportuna | O51: Prevenir | P51: Confiable | Q51: Se investigan y resuelven oportunamente | R51: Incompleta | S51: 95 | T51: Moderado | U51: Se ejecuta de manera consistente por parte del responsable. | V51: Fuerte | W51: Moderado | X51: =IF(SUM(S51:S56=0),"",AVERAGEIF(S51:S56,">0")) -> 95 | Y51: =IF(X51="","",IF(X51=0,"",IF(X51=100,"Fuerte",IF(X51<50,"Débil","Moderado")))) -> Moderado | Z51: Directamente | AA51: No disminuye | AB51: =IF(Y51="Débil",0,IF(AND(Y51="Fuerte",Z51="Directamente"),2,IF(AND(Y51="Moderado",Z51="Directamente"),1,IF(AND(Y51="Moderado",Z51="No disminuye"),0,IF(AND(Y51="Fuerte",Z51="No disminuye"),0,""))))) -> 1 | AC51: =IF(AA51=0,"","0") -> 0 | AD51: =IF(Z51="","",IF(K51="No hay controles establecidos.",H51,IF(AB51="","",IF(AND(H51="Rara vez",AB51>0),"Rara vez",IF(AND(H51="Improbable",AB51=2),"Rara vez",IF(AND(H51="Posible",AB51=2),"Rara vez",IF(AND(H51="Posible",AB51=1),"Improbable",IF(AND(H51="Probable",AB51=2),"Improbable",IF(AND(H51="Probable",AB51=1),"Posible",IF(AND(H51="Casi seguro",AB51=2),"Posible",IF(AND(H51="Casi seguro",AB51=1),"Probable",H51))))))))))) -> Improbable | AE51: =IF(I51="","",I51) -> Mayor | AF51: =IF(OR(AD51="",AE51=""),"",INDEX(MCALOR,MATCH(AD51,PROBABILIDAD,0),MATCH(AE51,IMPACTO,0))) -> ALTO | AG51: Reducir
C52: Omisión de los requisitos para ubicar al docente en un determinada categoría. | F52: Apertura de procesos administrativos, disciplinarios o penales. | K52: El Técnico de la coordinación de actividades de Docencia semestralmente revisa los soportes aportados por los docentes de Vinculación Especial para su reclasificación y la contrasta con la normatividad existente. | L52: Asignado | M52: Adecuado | N52: Oportuna | O52: Prevenir | P52: Confiable | Q52: Se investigan y resuelven oportunamente | R52: No existe | S52: 90 | T52: Moderado | U52: Se ejecuta de manera consistente por parte del responsable. | V52: Fuerte | W52: Moderado
C53: Falsificación en la documentación entregada por los Docentes. | F53: Pérdida de credibilidad y buena imagen de la institución. | K53: El Profesional de la coordinación de actividades de Docencia cada vez que se requiere realiza un seguimiento a la selección de pares externos en Colciencias validando la compatibilidad de las areas de conocimiento, lo cual queda evidenciado en el formato de evaluación del producto por parte del par externo. | L53: Asignado | M53: Adecuado | N53: Oportuna | O53: Prevenir | P53: Confiable | Q53: Se investigan y resuelven oportunamente | R53: Completa | S53: =IF(L53="",,VLOOKUP(L53,UNO,2,FALSE))+IF(M53="",0,VLOOKUP(M53,DOS,2,FALSE))+IF(O53="",0,VLOOKUP(O53,CUATRO,2,FALSE))+IF(P53="",0,VLOOKUP(P53,CINCO,2,FALSE))+IF(R53="",0,VLOOKUP(R53,SIETE,2,FALSE))+IF(N53="",0,VLOOKUP(N53,TRES,2,FALSE))+IF(Q53="",0,VLOOKUP(Q53,SEIS,2,FALSE)) -> 100 | T53: =IF(S53=0,"",IF(S53>=96,"Fuerte",IF(S53<=85,"Débil","Moderado"))) -> Fuerte | U53: Se ejecuta de manera consistente por parte del responsable. | V53: Fuerte | W53: Fuerte
C54: Falta de ética de involucrados. | F54: Reprocesos en la ejecución de los procedimientos administrativos. | S54: 0 | T54: =IF(S54=0,"",IF(S54>=96,"Fuerte",IF(S54<=85,"Débil","Moderado"))) -> 
C55: Manipulación de la documentación relativa a los docentes. | F55: Reclamaciones, tutelas o solicitudes de los Docentes que extienden la solicitud. | S55: 0
C56: Falta de un instrumento o herramienta para verificar la autenticidad y cumplimiento de la documentación presentada por los docentes. | S56: 0
B57: 8 | C57: Inclusión de docentes que no cumplen con los requisitos para la asignación de puntaje salarial en los listados de experiencia calificada, actividades administrativas y/o excelencia académica. | D57: Asignación de puntaje o bonificación salarial a docentes que no cumplen con los requisitos y condiciones establecidas. | E57: Asignación de puntos salariales o de bonificacion a docentes por productos que no cumplen con las condiciones y parámetros establecidos en la normatividad interna y externa establecida para los mismos, generando beneficios a terceros. | F57: Pérdida de recursos económicos de la Universidad. | G57: Vicerrectoría Académica (Oficina de Docencia) | H57: Improbable | I57: Mayor | J57: =IF(OR(H57=0,I57=0),"",INDEX(MCALOR,MATCH(H57,PROBABILIDAD,0),MATCH(I57,IMPACTO,0))) -> ALTO | K57: La Secretaria de la coordinación de actividades de Docencia anualmente verifica la información de los listados asociados a experiencia calificada, administrativa y excelencia académica remitidos a la dependencia por las instancias correspondientes, con el fin de validar la futura asignación de puntaje. En caso de presentarse incosistencias se informa a la dependecia en cuestión. | L57: Asignado | M57: Adecuado | N57: Oportuna | O57: Prevenir | P57: Confiable | Q57: Se investigan y resuelven oportunamente | R57: No existe | S57: 90 | T57: Moderado | U57: Se ejecuta de manera consistente por parte del responsable. | V57: Fuerte | W57: Moderado | X57: =IF(SUM(S57:S62=0),"",AVERAGEIF(S57:S62,">0")) -> 93.75 | Y57: =IF(X57="","",IF(X57=0,"",IF(X57=100,"Fuerte",IF(X57<50,"Débil","Moderado")))) -> Moderado | Z57: Directamente | AA57: Directamente | AB57: =IF(Y57="Débil",0,IF(AND(Y57="Fuerte",Z57="Directamente"),2,IF(AND(Y57="Moderado",Z57="Directamente"),1,""))) -> 1 | AC57: =IF(AA57=0,"","0") -> 0 | AD57: =IF(Z57="","",IF(K57="No hay controles establecidos.",H57,IF(AB57="","",IF(AND(H57="Rara vez",AB57>0),"Rara vez",IF(AND(H57="Improbable",AB57=2),"Rara vez",IF(AND(H57="Posible",AB57=2),"Rara vez",IF(AND(H57="Posible",AB57=1),"Improbable",IF(AND(H57="Probable",AB57=2),"Improbable",IF(AND(H57="Probable",AB57=1),"Posible",IF(AND(H57="Casi seguro",AB57=2),"Posible",IF(AND(H57="Casi seguro",AB57=1),"Probable",H57))))))))))) -> Improbable | AE57: =IF(I57="","",I57) -> Mayor | AF57: =IF(OR(AD57="",AE57=""),"",INDEX(MCALOR,MATCH(AD57,PROBABILIDAD,0),MATCH(AE57,IMPACTO,0))) -> ALTO | AG57: Reducir | AH57: Establecer el reglamento interno del Comité de Personal Docente y de Asignación de Puntaje | AI57: Reglamento interno del Comité de Personal Docente y de Asignación de Puntaje | AJ57: Vicerrectoría Académica (Oficina de Docencia) | AK57: 2020
C58: Falta de ética de los funcionarios encargados o de los docentes que presentan las solicitudes. | F58: Apertura de procesos administrativos, disciplinarios o penales. | K58: La Secretaria de la coordinación de actividades de Docencia verifica cada una de la solicitudes, con el objetivo de validar la entrega de la documentación necesaria, en caso de presentarse inconsistencias le pide al solicitante que ajuste la documentacion mediante oficio o en el momento de la entrega, dependiendo el caso. | L58: Asignado | M58: Adecuado | N58: Oportuna | O58: Prevenir | P58: Confiable | Q58: Se investigan y resuelven oportunamente | R58: Incompleta | S58: 95 | T58: Moderado | U58: Se ejecuta de manera consistente por parte del responsable. | V58: Fuerte | W58: Moderado | AH58: Implementar un sistema de información para la gestión de las actividades propias del CPDAP y la Oficina de Docencia | AI58: Sistema de información generalizado para la dependencia | AJ58: Vicerrectoría Académica (Oficina de Docencia) | AK58: 2021
C59: Tráfico de influencias. | F59: Pérdida de credibilidad y buena imagen de la institución. | K59: El Comité de Personal Docente y Asignación de Puntaje mensualmente realiza la validación y aprobación de la asignación del puntaje salarial o de bonificación al docente, lo cual queda evidenciado en cada una de las actas del Comité. | L59: Asignado | M59: Adecuado | N59: Oportuna | O59: Prevenir | P59: Confiable | Q59: Se investigan y resuelven oportunamente | R59: Completa | S59: 100 | T59: Fuerte | U59: Se ejecuta algunas veces por parte del responsable. | V59: Moderado | W59: Moderado
C60: Errores en la verificación de las condiciones para la asignación de puntaje. | F60: Reclamaciones, tutelas o solicitudes de los docentes que extienden la solicitud. | K60: El Profesional de la coordinación de actividades de docencia apoya el proceso de validación de los productos presentados con relación al historico en el estado de cuenta de los docentes, en caso de presentarse inconsistencias se informa al Comité de Personal Docente y Asignación de Puntaje para tomar las acciones respectivas. La evidencia de la validación de la información se refleja en los correos electrónicos remitidos a la Oficina de Docencia. | L60: Asignado | M60: Adecuado | N60: Oportuna | O60: Detectar | P60: Confiable | Q60: Se investigan y resuelven oportunamente | R60: Incompleta | S60: 90 | T60: Moderado | U60: Se ejecuta algunas veces por parte del responsable. | V60: Moderado | W60: Moderado
C61: Inexistencia de sistemas o herramientas de información para la verificación de condiciones. | S61: 0
S62: 0
B64: Elaboró | D64: Revisó | E64: Aprobó
B65: Nombre: Equipo SIGUD Cargo: N/A Fecha: 27/08/2020 | D65: Nombre: William Fernando Castrillón Cardona / Elda Yanneth Villarreal Gil / José Félix Assad Cuéllar / Julio Barón Velandia / Jorge Enrique Rodríguez Rodríguez / Jaime Eddy Ussa Cargo: Vicerrector Académico / Decana Facultad de Ciencias y Educación / Decano Facultad de Artes ASAB / Decano Facultad de Ingeniería / Decano Facultad Tecnológica / Decano Facultad de Medio Ambiente y Recursos Naturales Fecha: 08/10/2020 | E65: Nombre: William Fernando Castrillón Cardona / Elda Yanneth Villarreal Gil / José Félix Assad Cuéllar / Julio Barón Velandia / Jorge Enrique Rodríguez Rodríguez / Jaime Eddy Ussa Cargo: Vicerrector Académico / Decana Facultad de Ciencias y Educación / Decano Facultad de Artes ASAB / Decano Facultad de Ingeniería / Decano Facultad Tecnológica / Decano Facultad de Medio Ambiente y Recursos Naturales Fecha: 16/10/2020
D66: Nombre: William Fernando Castrillón Cardona / Esperanza Camargo Casallas Cargo: Vicerrector Académico / Directora Oficina de Docencia Fecha: 28/08/2020 | E66: Nombre: William Fernando Castrillón Cardona Cargo: Vicerrector Académico Fecha: 28/08/2020

Sheet 2) GI - Cal
D2: MAPA INTEGRAL DE RIESGOS | E2: Código: GI-MG-001-FR-014
D3: Macroproceso: Direccionamiento Estratégico | E3: Versión: 03
D4: Proceso: Gestión Integrada | E4: Fecha de Aprobación: 14/01/2020
C6: EJE DE CALIDAD
C8: Proceso: | D8: Gestión de Investigación
C9: Objetivo del Proceso: | D9: =IF(D8=0,"",VLOOKUP(D8,'[8]Datos SGC'!B60:C81,2)) -> Administrar los recursos destinados al desarrollo de estrategias, programas, proyectos investigativos y contar con las condiciones estructurales-organizacionales para proyectarse como una universidad investigativa que promueva y potencie la capacidad del investigador de la Universidad y su labor tenga eco en el desarrollo científico y sociocultural de la ciudad – región y país.
B12: IDENTIFICACIÓN DEL RIESGO | I12: ANÁLISIS DEL RIESGO | L12: EVALUACIÓN DEL RIESGO | AI12: TRATAMIENTO DEL RIESGO
B13: N° | C13: Causa o fuente | D13: Riesgo | E13: Descripción | F13: Tipo de Riesgo | G13: Consecuencias | H13: Unidad(es) que reportan al Riesgo | I13: Probabilidad | J13: Impacto | K13: Zona de Riesgo Inherente | L13: Controles existentes | M13: Criterios de evaluación del Diseño del Control | T13: Peso en la evaluación de diseño del Control | U13: Peso en la evaluación de diseño del Control | V13: Ejecución del Control | W13: Peso en la evaluación de la ejecución del Control | X13: Solidez individual del Control | Y13: Solidez del Conjunto de Controles | Z13: Solidez del Conjunto de Controles | AA13: Controles ayudan a disminuir la probabilidad | AB13: Controles ayudan a disminuir el impacto | AC13: Desplazamiento en la Probabilidad | AD13: Desplazamiento en el Impacto | AE13: Probabilidad Residual | AF13: Impacto Residual | AG13: Zona de Riesgo Residual | AH13: Tratamiento al Riesgo | AI13: Acciones | AJ13: Soporte | AK13: Responsable | AL13: Tiempo
M14: Asignación del Responsable | N14: Segregación y autoridad del Responsable | O14: Periodicidad | P14: Propósito | Q14: Cómo se realiza la actividad de Control | R14: Qué pasa con las desviaciones | S14: Evidencia de la Ejecución del Control
B15: 1 | C15: No se cumplen en su totalidad los requisitos exigidos en la convocatoria. | D15: Baja participación en las convocatorias de entidades externas de apoyo a proyectos de investigación. | E15: Se refiere a la baja participación del número de proyectos presentados en convocatorias externas. | F15: Cumplimiento | G15: Baja calificación en los indicadores de gestión de la Universidad. | H15: CIDC | I15: Posible | J15: Menor | K15: =IF(OR(I15=0,J15=0),"",INDEX(MCALOR,MATCH(I15,PROBABILIDAD,0),MATCH(J15,IMPACTO,0))) -> MODERADO | L15: El encargado de la gestion de grupos y semilleros de investigación realiza el seguimiento a los planes de acción de los grupos de investigación en apoyo de las unidades de investigación de las facultades anualmente con el fin de evidenciar el cumplimiento del plan establecido; cuando se presenta incumplimiento del plan o falta de cargue del mismo en el sistema se informa al director del grupo para que genere acciones de mejora a incluir en el nuevo plan de acción del grupo; esto se evidencia en correo electronico y en el sistema de informacion del CIDC | M15: Asignado | N15: Adecuado | O15: Oportuna | P15: Prevenir | Q15: No confiable | R15: Se investigan y resuelven oportunamente | S15: No existe | T15: =IF(M15="",,VLOOKUP(M15,UNO,2,FALSE))+IF(N15="",0,VLOOKUP(N15,DOS,2,FALSE))+IF(P15="",0,VLOOKUP(P15,CUATRO,2,FALSE))+IF(Q15="",0,VLOOKUP(Q15,CINCO,2,FALSE))+IF(S15="",0,VLOOKUP(S15,SIETE,2,FALSE))+IF(O15="",0,VLOOKUP(O15,TRES,2,FALSE))+IF(R15="",0,VLOOKUP(R15,SEIS,2,FALSE)) -> 75 | U15: =IF(T15=0,"",IF(T15>=96,"Fuerte",IF(T15<=85,"Débil","Moderado"))) -> Débil | V15: Se ejecuta algunas veces por parte del responsable. | W15: =IF(V15="","",IF(V15="Se ejecuta de manera consistente por parte del responsable.","Fuerte",IF(V15="Se ejecuta algunas veces por parte del responsable.","Moderado","Débil"))) -> Moderado | X15: =IF(U15="","",IF(AND(U15="Fuerte",W15="Fuerte"),"Fuerte",IF(OR((AND(U15="Moderado",W15="Moderado")),(AND(U15="Fuerte",W15="Moderado")),(AND(U15="Moderado",W15="Fuerte"))),"Moderado","Débil"))) -> Débil | Y15: =IF(SUM(T15:T20=0),"",AVERAGEIF(T15:T20,">0")) -> 85 | Z15: =IF(Y15="","",IF(Y15=0,"",IF(Y15=100,"Fuerte",IF(Y15<50,"Débil","Moderado")))) -> Moderado | AA15: Directamente | AB15: No disminuye | AC15: =IF(Z15="Débil",0,IF(AND(Z15="Fuerte",AA15="Directamente"),2,IF(AND(Z15="Moderado",AA15="Directamente"),1,IF(AND(Z15="Moderado",AA15="No disminuye"),0,IF(AND(Z15="Fuerte",AA15="No disminuye"),0,""))))) -> 1 | AD15: =IF(Z15="Débil",0,IF(AND(Z15="Fuerte",AB15="Directamente"),2,IF(AND(Z15="Fuerte",AB15="Indirectamente"),1,IF(AND(Z15="Moderado",AB15="Directamente"),1,IF(AB15="No disminuye","0",IF(AND(Z15="Moderado",AB15="Indirectamente"),"0","")))))) -> 0 | AE15: =IF(L15="No hay controles establecidos.",I15,IF(AC15="","",IF(AND(I15="Rara vez",AC15>0),"Rara vez",IF(AND(I15="Improbable",AC15=2),"Rara vez",IF(AND(I15="Posible",AC15=2),"Rara vez",IF(AND(I15="Posible",AC15=1),"Improbable",IF(AND(I15="Probable",AC15=2),"Improbable",IF(AND(I15="Probable",AC15=1),"Posible",IF(AND(I15="Casi seguro",AC15=2),"Posible",IF(AND(I15="Casi seguro",AC15=1),"Probable",I15)))))))))) -> Improbable | AF15: =IF(L15="No hay controles establecidos.",J15,IF(AD15="","",IF(AND(J15="Insignificante",AD15>0),"Insignificante",IF(AND(J15="Menor",AD15>0),"Insignificante",IF(AND(J15="Moderado",AD15=1),"Menor",IF(AND(J15="Moderado",AD15=2),"Insignificante",IF(AND(J15="Mayor",AD15=1),"Moderado",IF(AND(J15="Mayor",AD15=2),"Menor",IF(AND(J15="Catastrófico",AD15=1),"Mayor",IF(AND(J15="Catastrófico",AD15=2),"Moderado",J15)))))))))) -> Insignificante | AG15: =IF(OR(AE15="",AF15=""),"",INDEX(MCALOR,MATCH(AE15,PROBABILIDAD,0),MATCH(AF15,IMPACTO,0))) -> BAJO | AH15: Aceptar | AI15: Se ha iniciado la formulacion y desarrollo de nuevas politicas que permitan mejor seguimiento a los grupos y semilleros de investigación, en el momento se encuentran en formulación por ello la ejecución se encuentra referenciada como parcial ya que se hacen unos controles de seguimiento en la plataforma pero los nuevos controles se iniciaran con la implementación de la politica | AJ15: Seguimiento en SICIUD | AK15: Gestor de grupos Unidades de investigacion de las Facultades | AL15: Anual
C16: Grupos de investigación con poca participación en actividades de investigación. | G16: Disminución o pérdida de categoría de los grupos de investigación e investigadores en el marco de las convocatorias de Colciencias. | L16: Los encargados de seguimiento a los proyectos de investigación cofinanciados verifican la creacion de nuevas convocatorias de cofinanciacion de proyectos por parte de externos y realizan la difusión de dichas convocatorias externas a nivel interno de manera permanente. De igual manera tambien por iniciativa propia las estructuras de investigación pueden presentarse a estas convocatorias previo cumplimiento de los requisitos de la misma y siguiendo elprocedimiento establecido en la resolucion de rectoria 415 de 2019, esto se evidencia en los correos enviados a las listas de la Universidad y publicaciones en la pagina del CIDC | M16: Asignado | N16: Adecuado | O16: Oportuna | P16: Prevenir | Q16: Confiable | R16: Se investigan y resuelven oportunamente | S16: Incompleta | T16: =IF(M16="",,VLOOKUP(M16,UNO,2,FALSE))+IF(N16="",0,VLOOKUP(N16,DOS,2,FALSE))+IF(P16="",0,VLOOKUP(P16,CUATRO,2,FALSE))+IF(Q16="",0,VLOOKUP(Q16,CINCO,2,FALSE))+IF(S16="",0,VLOOKUP(S16,SIETE,2,FALSE))+IF(O16="",0,VLOOKUP(O16,TRES,2,FALSE))+IF(R16="",0,VLOOKUP(R16,SEIS,2,FALSE)) -> 95 | U16: =IF(T16=0,"",IF(T16>=96,"Fuerte",IF(T16<=85,"Débil","Moderado"))) -> Moderado | V16: Se ejecuta de manera consistente por parte del responsable. | W16: =IF(V16="","",IF(V16="Se ejecuta de manera consistente por parte del responsable.","Fuerte",IF(V16="Se ejecuta algunas veces por parte del responsable.","Moderado","Débil"))) -> Fuerte | X16: =IF(U16="","",IF(AND(U16="Fuerte",W16="Fuerte"),"Fuerte",IF(OR((AND(U16="Moderado",W16="Moderado")),(AND(U16="Fuerte",W16="Moderado")),(AND(U16="Moderado",W16="Fuerte"))),"Moderado","Débil"))) -> Moderado | AI16: Difusion en los diferentes medios de electronicos (Correos, pagina Web, etc) de las convocatorias diseñadas para apoyo a los investigadores | AJ16: Correos Pagina CIDC | AK16: Gestores de Proyectos Cofinanciados | AL16: Constante
C17: Falta de interés. | G17: Pérdida de posicionamiento institucional en rankings internacionales como Scimago, U-sapiens, etc. | T17: 0
C18: Falta de conocimiento de las convocatorias. | G18: No aprovechamiento de recursos económicos de entidades externas. | T18: 0
G19: Pérdida de acreditación institucional. | T19: 0
T20: 0
B21: 2 | C21: Falta de capacitación en redacción científica. | D21: Baja publicación de Libros y Artículos científicos. | E21: Producción científica publicada insuficiente. | F21: Imagen | G21: Baja calificación en los indicadores de gestión de la Universidad. | H21: CIDC | I21: Rara vez | J21: Moderado | K21: =IF(OR(I21=0,J21=0),"",INDEX(MCALOR,MATCH(I21,PROBABILIDAD,0),MATCH(J21,IMPACTO,0))) -> MODERADO | L21: El comite de investigaciones aprueba el plan de cursos anual en donde se incluye la capacitación en redacción cientifica anualmente con el fin de propiciar una mejor capacidad de los investigadores para mejorar el impacto de sus publicaciones a nivel internacional; estos cursos se proponen de acuerdo a la necesidad encontrada de capacitacion en investigación si se encuentra una falencia se contempla para el siguiente plan de capacitaciones en investigación. Estos planes son de caracter anual. Se evidencia en la programacion enviada a traves de correos electronicos. | M21: Asignado | N21: Adecuado | O21: Oportuna | P21: Prevenir | Q21: No confiable | R21: No se investigan y resuelven oportunamente | S21: Incompleta | T21: =IF(M21="",,VLOOKUP(M21,UNO,2,FALSE))+IF(N21="",0,VLOOKUP(N21,DOS,2,FALSE))+IF(P21="",0,VLOOKUP(P21,CUATRO,2,FALSE))+IF(Q21="",0,VLOOKUP(Q21,CINCO,2,FALSE))+IF(S21="",0,VLOOKUP(S21,SIETE,2,FALSE))+IF(O21="",0,VLOOKUP(O21,TRES,2,FALSE))+IF(R21="",0,VLOOKUP(R21,SEIS,2,FALSE)) -> 65 | U21: Débil | V21: Se ejecuta algunas veces por parte del responsable. | W21: Moderado | X21: Débil | Y21: =IF(SUM(T21:T26=0),"",AVERAGEIF(T21:T26,">0")) -> 82.5 | Z21: =IF(Y21="","",IF(Y21=0,"",IF(Y21=100,"Fuerte",IF(Y21<50,"Débil","Moderado")))) -> Moderado | AA21: Directamente | AB21: Indirectamente | AC21: =IF(Z21="Débil",0,IF(AND(Z21="Fuerte",AA21="Directamente"),2,IF(AND(Z21="Moderado",AA21="Directamente"),1,IF(AND(Z21="Moderado",AA21="No disminuye"),0,IF(AND(Z21="Fuerte",AA21="No disminuye"),0,""))))) -> 1 | AD21: =IF(Z21="Débil",0,IF(AND(Z21="Fuerte",AB21="Directamente"),2,IF(AND(Z21="Fuerte",AB21="Indirectamente"),1,IF(AND(Z21="Moderado",AB21="Directamente"),1,IF(AB21="No disminuye","0",IF(AND(Z21="Moderado",AB21="Indirectamente"),"0","")))))) -> 0 | AE21: =IF(L21="No hay controles establecidos.",I21,IF(AC21="","",IF(AND(I21="Rara vez",AC21>0),"Rara vez",IF(AND(I21="Improbable",AC21=2),"Rara vez",IF(AND(I21="Posible",AC21=2),"Rara vez",IF(AND(I21="Posible",AC21=1),"Improbable",IF(AND(I21="Probable",AC21=2),"Improbable",IF(AND(I21="Probable",AC21=1),"Posible",IF(AND(I21="Casi seguro",AC21=2),"Posible",IF(AND(I21="Casi seguro",AC21=1),"Probable",I21)))))))))) -> Rara vez | AF21: =IF(L21="No hay controles establecidos.",J21,IF(AD21="","",IF(AND(J21="Insignificante",AD21>0),"Insignificante",IF(AND(J21="Menor",AD21>0),"Insignificante",IF(AND(J21="Moderado",AD21=1),"Menor",IF(AND(J21="Moderado",AD21=2),"Insignificante",IF(AND(J21="Mayor",AD21=1),"Moderado",IF(AND(J21="Mayor",AD21=2),"Menor",IF(AND(J21="Catastrófico",AD21=1),"Mayor",IF(AND(J21="Catastrófico",AD21=2),"Moderado",J21)))))))))) -> Moderado | AG21: =IF(OR(AE21="",AF21=""),"",INDEX(MCALOR,MATCH(AE21,PROBABILIDAD,0),MATCH(AF21,IMPACTO,0))) -> MODERADO | AH21: Reducir | AI21: Se han generado cursos para el mejoramiento de la calidad de investigación, se encuentra en diseño la estructuracion de los planes anuales de capacitacion en investigación. | AJ21: Historico de cursos/Talleres CIDC | AK21: Gestor de Grupos CIDC | AL21: Anual
C22: Desmotivación de los investigadores. | G22: Disminución de la categorización de los Grupos. | L22: El comité de investigaciones aprueba mediante las convocatorias de proyectos de investigación la financiación de producción científica enmarcada en el desarrollo de los proyectos de investigación financiados por el CIDC, de no usarse este tipo de rubro el investigador se encuentra obligado por las actas compromisorias a generar un tipo de productos de investigación, la revision del avance de estos productos se realiza de manera semestral. Se evidencia con los informes de avance y los terminos de referencia de las convocatorias. | M22: Asignado | N22: Adecuado | O22: Oportuna | P22: Prevenir | Q22: Confiable | R22: Se investigan y resuelven oportunamente | S22: Completa | T22: 100 | U22: Fuerte | V22: Se ejecuta de manera consistente por parte del responsable. | W22: Fuerte | X22: Fuerte | AI22: Se apoya la publicación de articulos y libros de investigación que se encuentren inmersos en los proyectos de investigación con financiación por parte del CIDC | AJ22: Solicitudes de apoyo | AK22: Comité de Investigaciones Equipo de seguimiento a proyectos | AL22: Constante
C23: Baja Orientación temprana. | G23: Pérdida de posicionamiento institucional en rankings internacionales como Scimago, U-sapiens, etc. | T23: 0
C24: Falta de calidad en la propuesta a publicar. | T24: 0
C25: No estimulación hacia la producción académica. | T25: 0
T26: 0
B27: 3 | C27: Fallas en la seguridad informática. | D27: Pérdida de la propiedad intelectual de los investigadores de la Universidad. | E27: Se refiere al no reconocimiento o apropiación por parte de terceros de la propiedad intelectual o derechos de autor de artículos desarrollados por docentes investigadores o grupos de investigación por Colciencias u otros organismos. | F27: Operativos | G27: Falta de reconocimiento de los investigadores. | H27: CIDC | I27: Rara vez | J27: Mayor | K27: =IF(OR(I27=0,J27=0),"",INDEX(MCALOR,MATCH(I27,PROBABILIDAD,0),MATCH(J27,IMPACTO,0))) -> ALTO | L27: El abogado especialista en propiedad intelectual de la OTRI brinda apoyo y seguimiento a los procesos de propiedad intelectual de los productos de investigación, para garantizar la proteccion de los resultados de investigación de la Universidad. En caso de encontrarse alguna discrepancia en el acompañamiento se remitira al comite de propiedad intelectual. Este proceso se realiza de forma permanente segun necesidades de los investigadores. Se evidencia mediante los informes de gestion y correos electronicos enviados a los investigadores. | M27: Asignado | N27: Adecuado | O27: Oportuna | P27: Prevenir | Q27: Confiable | R27: Se investigan y resuelven oportunamente | S27: Completa | T27: 100 | U27: Fuerte | V27: Se ejecuta de manera consistente por parte del responsable. | W27: Fuerte | X27: Fuerte | Y27: =IF(SUM(T27:T32=0),"",AVERAGEIF(T27:T32,">0")) -> 100 | Z27: =IF(Y27="","",IF(Y27=0,"",IF(Y27=100,"Fuerte",IF(Y27<50,"Débil","Moderado")))) -> Fuerte | AA27: Directamente | AB27: Directamente | AC27: =IF(Z27="Débil",0,IF(AND(Z27="Fuerte",AA27="Directamente"),2,IF(AND(Z27="Moderado",AA27="Directamente"),1,IF(AND(Z27="Moderado",AA27="No disminuye"),0,IF(AND(Z27="Fuerte",AA27="No disminuye"),0,""))))) -> 2 | AD27: =IF(Z27="Débil",0,IF(AND(Z27="Fuerte",AB27="Directamente"),2,IF(AND(Z27="Fuerte",AB27="Indirectamente"),1,IF(AND(Z27="Moderado",AB27="Directamente"),1,IF(AB27="No disminuye","0",IF(AND(Z27="Moderado",AB27="Indirectamente"),"0","")))))) -> 2 | AE27: =IF(L27="No hay controles establecidos.",I27,IF(AC27="","",IF(AND(I27="Rara vez",AC27>0),"Rara vez",IF(AND(I27="Improbable",AC27=2),"Rara vez",IF(AND(I27="Posible",AC27=2),"Rara vez",IF(AND(I27="Posible",AC27=1),"Improbable",IF(AND(I27="Probable",AC27=2),"Improbable",IF(AND(I27="Probable",AC27=1),"Posible",IF(AND(I27="Casi seguro",AC27=2),"Posible",IF(AND(I27="Casi seguro",AC27=1),"Probable",I27)))))))))) -> Rara vez | AF27: =IF(L27="No hay controles establecidos.",J27,IF(AD27="","",IF(AND(J27="Insignificante",AD27>0),"Insignificante",IF(AND(J27="Menor",AD27>0),"Insignificante",IF(AND(J27="Moderado",AD27=1),"Menor",IF(AND(J27="Moderado",AD27=2),"Insignificante",IF(AND(J27="Mayor",AD27=1),"Moderado",IF(AND(J27="Mayor",AD27=2),"Menor",IF(AND(J27="Catastrófico",AD27=1),"Mayor",IF(AND(J27="Catastrófico",AD27=2),"Moderado",J27)))))))))) -> Menor | AG27: =IF(OR(AE27="",AF27=""),"",INDEX(MCALOR,MATCH(AE27,PROBABILIDAD,0),MATCH(AF27,IMPACTO,0))) -> BAJO | AH27: Evitar | AI27: Gracias al apoyo al proyecto CATI no solo se ha apoyado los procesos de la Universidad sino que la Universidad se ha convertido en un apoyo para los innovadores bogotanos, actualmente mediante la OTRI se apoyan todos los productos suceptibles de ser protegidos por los diversos mecanismos establecidos para ello. | AJ27: Correos de seguimiento | AK27: Abogado de Propiedad Intelectual OTRI | AL27: Constante
C28: El investigador no reporta sus resultados de investigación. | G28: Desgaste administrativo por procesos legales. | L28: Los miembros del equipo OTRI realizan capacitaciones sobre temas que permitan mejorar la cultura de lapropiedad intelectual en la universidad y para que los investigadores mejoren su potencial de desarrollo de productos de investigación transferibles. Este proceso se realiza de forma constante de acuerdo al cronograma establecido. Se evidencia mediante registros de asistencia y correos de invitacion a las capacitaciones. | M28: Asignado | N28: Adecuado | O28: Oportuna | P28: Prevenir | Q28: Confiable | R28: Se investigan y resuelven oportunamente | S28: Completa | T28: 100 | U28: Fuerte | V28: Se ejecuta de manera consistente por parte del responsable. | W28: Fuerte | X28: Fuerte | AI28: Se realizan a lo largo del año jornadas de capacitacion en propiedad intelectual y otros temas relevantes para la transferencia de resultados de investigación | AJ28: Registro de las actividades | AK28: Equipo OTRI | AL28: Constante
C29: Falta de ética de los docentes investigadores. | T29: 0
C30: Falta de conocimiento por parte del investigador de propiedad intelectual. | T30: 0
T31: 0
T32: 0
B33: 4 | C33: Falta de interés por parte de los investigadores. | D33: Insuficiencia de resultados publicables de los proyectos de investigación | E33: Los resultados obtenidos por los investigadores no son suficientes para realizar publicaciones científicas. | F33: De cumplimiento | G33: Pérdida del tiempo y dinero aportados en el proyecto investigativo. | H33: CIDC | I33: Rara vez | J33: Menor | K33: =IF(OR(I33=0,J33=0),"",INDEX(MCALOR,MATCH(I33,PROBABILIDAD,0),MATCH(J33,IMPACTO,0))) -> BAJO | L33: El encargado de plaenacion del CIDC diseña términos de referencia con compromisos específicos del resultado de la investigación de acuerdo a la direccion dada por el comité de investigaciones, en las convocatorias que se generen anualmente. En caso de alguna dificultad por parte del investigador en el cumplimiento de los compromisos de investigación, el comite deinvestigaciones debe analizar la particularidad y determinar el curso de acción para esta. Esto se evidencia en los terminos de referencia de las convocatorias y las actas de comite de investigaciones. | M33: Asignado | N33: Adecuado | O33: Oportuna | P33: Prevenir | Q33: Confiable | R33: Se investigan y resuelven oportunamente | S33: Completa | T33: 100 | U33: Fuerte | V33: Se ejecuta de manera consistente por parte del responsable. | W33: Fuerte | X33: Fuerte | Y33: =IF(SUM(T33:T38=0),"",AVERAGEIF(T33:T38,">0")) -> 97.5 | Z33: =IF(Y33="","",IF(Y33=0,"",IF(Y33=100,"Fuerte",IF(Y33<50,"Débil","Moderado")))) -> Moderado | AA33: Directamente | AB33: Directamente | AC33: =IF(Z33="Débil",0,IF(AND(Z33="Fuerte",AA33="Directamente"),2,IF(AND(Z33="Moderado",AA33="Directamente"),1,IF(AND(Z33="Moderado",AA33="No disminuye"),0,IF(AND(Z33="Fuerte",AA33="No disminuye"),0,""))))) -> 1 | AD33: 1 | AE33: =IF(L33="No hay controles establecidos.",I33,IF(AC33="","",IF(AND(I33="Rara vez",AC33>0),"Rara vez",IF(AND(I33="Improbable",AC33=2),"Rara vez",IF(AND(I33="Posible",AC33=2),"Rara vez",IF(AND(I33="Posible",AC33=1),"Improbable",IF(AND(I33="Probable",AC33=2),"Improbable",IF(AND(I33="Probable",AC33=1),"Posible",IF(AND(I33="Casi seguro",AC33=2),"Posible",IF(AND(I33="Casi seguro",AC33=1),"Probable",I33)))))))))) -> Rara vez | AF33: Insignificante | AG33: =IF(OR(AE33="",AF33=""),"",INDEX(MCALOR,MATCH(AE33,PROBABILIDAD,0),MATCH(AF33,IMPACTO,0))) -> BAJO | AH33: Evitar | AI33: Los terminos de referencia especifican los minimos esperados en cuanto a productividad | AJ33: Terminos de referencia de las convocatorias | AK33: Gestor de planeacion CIDC | AL33: Anual
C34: Baja calidad en los resultados investigativos. | G34: Disminución de la imagen de la Universidad. | L34: Los encaragdos del seguimiento a los proyectos de investigacion,realizan revision de los informes de avance generados por los proyectos de investigacion de manera semestral. En caso de la falta de algun informe o al encontrar alguna inconsistencia en el informe se solicita al investigador principal del proyecto el envio o la corrección del informe segun sea el caso. Esto se evidencia en correos electronicos enviados a los investigadores y los informes cargados en el sistema de información. | M34: Asignado | N34: Adecuado | O34: Oportuna | P34: Detectar | Q34: Confiable | R34: Se investigan y resuelven oportunamente | S34: Completa | T34: 95 | U34: Moderado | V34: Se ejecuta de manera consistente por parte del responsable. | W34: Fuerte | X34: Moderado | AI34: Se realiza revision semestral de los informes de proyectos para detectar posibles desviaciones y asi determinar posibles cursos de acción que impidan la no entrega de resultados | AJ34: Informes de seguimiento | AK34: Equipo de seguimiento a proyectos | AL34: Semestral
T35: 0
T36: 0
T37: 0
T38: 0
B39: 5 | C39: Falta de presupuesto para el desarrollo de las políticas de formación de investigadores. | D39: Planeacion Erronea de los programas de formación y capacitación de investigadores acorde a las necesidades de investigación a nivel local, regional y nacional. | E39: La planeación de los programas de formación define incorrectamente las tematicas solicitadas por los investigadores que participan en los proyectos de la Universidad. | F39: Operativos | G39: Saturación del recurso humano para el desarrollo de actividades de investigación. | H39: CIDC | I39: Posible | J39: Insignificante | K39: =IF(OR(I39=0,J39=0),"",INDEX(MCALOR,MATCH(I39,PROBABILIDAD,0),MATCH(J39,IMPACTO,0))) -> BAJO | L39: El comité de investigaciones genera politicas para el estimulo al ingreso de nuevos Integrantes a las estructuras de Investigación. Estas politicas se plantean y evaluan de manera anual para revisar su efectividad. Se evidencia en actas del comité de investigaciones | M39: Asignado | N39: Adecuado | O39: Oportuna | P39: Prevenir | Q39: No confiable | R39: No se investigan y resuelven oportunamente | S39: No existe | T39: 60 | U39: Débil | V39: El control no se ejecuta por parte del responsable. | W39: Débil | X39: Débil | Y39: =IF(SUM(T39:T44=0),"",AVERAGEIF(T39:T44,">0")) -> 61.66666667 | Z39: =IF(Y39="","",IF(Y39=0,"",IF(Y39=100,"Fuerte",IF(Y39<50,"Débil","Moderado")))) -> Moderado | AA39: Directamente | AB39: Directamente | AC39: =IF(Z39="Débil",0,IF(AND(Z39="Fuerte",AA39="Directamente"),2,IF(AND(Z39="Moderado",AA39="Directamente"),1,IF(AND(Z39="Moderado",AA39="No disminuye"),0,IF(AND(Z39="Fuerte",AA39="No disminuye"),0,""))))) -> 1 | AD39: =IF(Z39="Débil",0,IF(AND(Z39="Fuerte",AB39="Directamente"),2,IF(AND(Z39="Fuerte",AB39="Indirectamente"),1,IF(AND(Z39="Moderado",AB39="Directamente"),1,IF(AB39="No disminuye","0",IF(AND(Z39="Moderado",AB39="Indirectamente"),"0","")))))) -> 1 | AE39: =IF(L39="No hay controles establecidos.",I39,IF(AC39="","",IF(AND(I39="Rara vez",AC39>0),"Rara vez",IF(AND(I39="Improbable",AC39=2),"Rara vez",IF(AND(I39="Posible",AC39=2),"Rara vez",IF(AND(I39="Posible",AC39=1),"Improbable",IF(AND(I39="Probable",AC39=2),"Improbable",IF(AND(I39="Probable",AC39=1),"Posible",IF(AND(I39="Casi seguro",AC39=2),"Posible",IF(AND(I39="Casi seguro",AC39=1),"Probable",I39)))))))))) -> Improbable | AF39: =IF(L39="No hay controles establecidos.",J39,IF(AD39="","",IF(AND(J39="Insignificante",AD39>0),"Insignificante",IF(AND(J39="Menor",AD39>0),"Insignificante",IF(AND(J39="Moderado",AD39=1),"Menor",IF(AND(J39="Moderado",AD39=2),"Insignificante",IF(AND(J39="Mayor",AD39=1),"Moderado",IF(AND(J39="Mayor",AD39=2),"Menor",IF(AND(J39="Catastrófico",AD39=1),"Mayor",IF(AND(J39="Catastrófico",AD39=2),"Moderado",J39)))))))))) -> Insignificante | AG39: =IF(OR(AE39="",AF39=""),"",INDEX(MCALOR,MATCH(AE39,PROBABILIDAD,0),MATCH(AF39,IMPACTO,0))) -> BAJO | AH39: Aceptar | AI39: Se ha iniciado el polanteamiento por parte del comité de investigaciones el diseño de estimulos a las estructuras y a los estudiantes para que se realice una vinculacion y particiapcion mas activa por parte de los estudiantes en el desarrollo de la investigación. Al ser nuevos planteamientos, aun no existe evidencia de la implementacion del control preventivo. | AJ39: Actas de comité | AK39: Comité de Investigaciones | AL39: Anual
C40: Falta de procesos de capacitación continua de investigadores en áreas identificadas para el sistema de investigaciones. | G40: Inexistencia de procesos de formación de nuevos investigadores. | L40: El gestor de grupos y semilleros realiza la evaluación de actividades de formación de investigadores, de manera anual si existe bajos resultados se plantean mejoras a realizar a los planes de capacitación en investigación. Se evidencia en informes de capacitaciones. | M40: Asignado | N40: Adecuado | O40: Oportuna | P40: Prevenir | Q40: No confiable | R40: No se investigan y resuelven oportunamente | S40: Incompleta | T40: 65 | U40: Débil | V40: Se ejecuta algunas veces por parte del responsable. | W40: Moderado | X40: Débil | AI40: Una vez realizados los cursos o talleres dirigidos a los investigadores se realiza una realimentacion de la calidad y tipologia del curso, se esta iniciando un mayor control y realimentacion de la dinamica de los cursos por parte del gestor de grupos y semilleros, se esta iniciando nuevas dinamicas de seguimiento. | AJ40: Evaluaciones de cursos | AK40: Gestor de grupos CIDC | AL40: Anual
C41: Carencia en el seguimiento a la formación de investigadores en doctorado y maestría. | G41: Inaplicabilidad de los contenidos de las capacitaciones en el desarrollo de las actividades de investigación. | L41: El comité de investigaciones realiza la evaluacion de oferta de cursos y talleres ofertada anualmente, de encontrar mejoras se plantean para incorporacion en el nuevo plan de capacitaciones, esto se evidencia en actas del comité de investigaciones | M41: Asignado | N41: Adecuado | O41: Oportuna | P41: Prevenir | Q41: No confiable | R41: No se investigan y resuelven oportunamente | S41: No existe | T41: 60 | U41: Débil | V41: Se ejecuta de manera consistente por parte del responsable. | W41: Fuerte | X41: Débil | AI41: La oferta de cursos/talleres a la comunidad investigativa se evaluara previamente por el comité de investigaciones para determinar la pertinencia de los mismos anteriormente no se habia contemplado este control por lo tanto se incluye como un control incompleto. | AJ41: Actas de comité | AK41: Comité de investigaciones | AL41: Anual
C42: Falta de conocimiento de las necesidades de capacitación de la población investigadora de la Universidad. | G42: Falta de un estudio de impactos de los procesos de formación de doctores para el sistema de investigación. | T42: 0
G43: Baja participación de los investigadores en las capacitaciones programadas. | T43: 0
T44: 0
B45: 6 | C45: Limitación de los recursos. | D45: Deficiencias en la Planeación de convocatorias de proyectos de investigación. | E45: No se cuenta con cronogramas planeados para cada una de las convocatorias con el fin de establecer fechas de inicio y entrega de resultados. | F45: Operativos | G45: Limitación del desarrollo de los proyectos. | H45: CIDC | I45: Rara vez | J45: Moderado | K45: =IF(OR(I45=0,J45=0),"",INDEX(MCALOR,MATCH(I45,PROBABILIDAD,0),MATCH(J45,IMPACTO,0))) -> MODERADO | L45: El gestor de planeacion del CIDC realiza el diseño de los términos de las convocatorias para ser expuesta y consensuada con los miembros del Comité de Investigaciones, si estos presentan observaciones se realiza el ajuste considerado, esto se realiza de manera anual y se evidencia en actas de comite | M45: Asignado | N45: Adecuado | O45: Oportuna | P45: Prevenir | Q45: Confiable | R45: Se investigan y resuelven oportunamente | S45: Completa | T45: 100 | U45: Fuerte | V45: Se ejecuta de manera consistente por parte del responsable. | W45: Fuerte | X45: Fuerte | Y45: =IF(SUM(T45:T50=0),"",AVERAGEIF(T45:T50,">0")) -> 100 | Z45: =IF(Y45="","",IF(Y45=0,"",IF(Y45=100,"Fuerte",IF(Y45<50,"Débil","Moderado")))) -> Fuerte | AA45: Directamente | AB45: Directamente | AC45: =IF(Z45="Débil",0,IF(AND(Z45="Fuerte",AA45="Directamente"),2,IF(AND(Z45="Moderado",AA45="Directamente"),1,IF(AND(Z45="Moderado",AA45="No disminuye"),0,IF(AND(Z45="Fuerte",AA45="No disminuye"),0,""))))) -> 2 | AD45: =IF(Z45="Débil",0,IF(AND(Z45="Fuerte",AB45="Directamente"),2,IF(AND(Z45="Fuerte",AB45="Indirectamente"),1,IF(AND(Z45="Moderado",AB45="Directamente"),1,IF(AB45="No disminuye","0",IF(AND(Z45="Moderado",AB45="Indirectamente"),"0","")))))) -> 2 | AE45: =IF(L45="No hay controles establecidos.",I45,IF(AC45="","",IF(AND(I45="Rara vez",AC45>0),"Rara vez",IF(AND(I45="Improbable",AC45=2),"Rara vez",IF(AND(I45="Posible",AC45=2),"Rara vez",IF(AND(I45="Posible",AC45=1),"Improbable",IF(AND(I45="Probable",AC45=2),"Improbable",IF(AND(I45="Probable",AC45=1),"Posible",IF(AND(I45="Casi seguro",AC45=2),"Posible",IF(AND(I45="Casi seguro",AC45=1),"Probable",I45)))))))))) -> Rara vez | AF45: =IF(L45="No hay controles establecidos.",J45,IF(AD45="","",IF(AND(J45="Insignificante",AD45>0),"Insignificante",IF(AND(J45="Menor",AD45>0),"Insignificante",IF(AND(J45="Moderado",AD45=1),"Menor",IF(AND(J45="Moderado",AD45=2),"Insignificante",IF(AND(J45="Mayor",AD45=1),"Moderado",IF(AND(J45="Mayor",AD45=2),"Menor",IF(AND(J45="Catastrófico",AD45=1),"Mayor",IF(AND(J45="Catastrófico",AD45=2),"Moderado",J45)))))))))) -> Insignificante | AG45: =IF(OR(AE45="",AF45=""),"",INDEX(MCALOR,MATCH(AE45,PROBABILIDAD,0),MATCH(AF45,IMPACTO,0))) -> BAJO | AH45: Aceptar | AI45: Una vez planeados los terminos de las convocatorias estros se analizan conjuntamente con el comité de investigaciones para que estos sean enriquecidos con el aporte de los miembros del mismo, dadas las condiciones actuales algunas convocatorias se encuentran en suspenso para ser lanzadas de acuerdo a las disponibilidades presupuestales | AJ45: Actas de Comité | AK45: Gestor de planeacion CIDC/ Comité de Investigaciones | AL45: Anual
C46: Desconocimiento de los procesos internos de las estructuras de investigación y las áreas de conocimiento que estos manejan. | G46: Imposibilidad de entrega de los productos de investigación pactados con los investigadores. | L46: El director del CIDC genera un acto administrativo para el lanzamiento de las convocatorias con el fin de permitir una trazabilidad administrativa y normativa del desarrollo de las mismas evitando de esta manera confusiones o posibles actos conntra esta, de no poder realizar el lanzamiento de la misma por motu propio se envia a rectoria para que el acto de apertura sea realizado por esta instancia este procedimiento se realiza anualmente y se evidencia en las resoluciones de apertura de las convocatorias | M46: Asignado | N46: Adecuado | O46: Oportuna | P46: Prevenir | Q46: Confiable | R46: Se investigan y resuelven oportunamente | S46: Completa | T46: 100 | U46: Fuerte | V46: Se ejecuta de manera consistente por parte del responsable. | W46: Fuerte | X46: Fuerte | AI46: Para la apertura de cualquier convocatoria media la emision de un acto administrativo lo que impide se de cualquier confusion respecto a la generacion de esta, la resolucion es proyectada por un abogado del CIDC y revisada y firmada por el director del CIDC o si es necesario se envia apar aprobacion y firma del Rector | AJ46: Resoluciones de apertura | AK46: Director CIDC/ Rectoria | AL46: Anual
C47: Ausencia de normatividad que regule el establecimiento de las convocatorias en el marco de las actividades de investigación. | T47: 0
T48: 0
T49: 0
T50: 0
B51: 7 | C51: Falta de presupuesto para el financiamiento de actividades de socialización, divulgación y difusión de actividades de investigación | D51: Insuficiencia en la apropiación social del conocimiento generado por las investigaciones de la Universidad | E51: Los resultados obtenidos por los investigadores no tienen el impacto social deseado y no son socializados a la comunidad universitaria. | F51: Estratégico | G51: Disminución motivacional de los investigadores para emprender nuevos proyectos. | H51: CIDC | I51: Posible | J51: Moderado | K51: =IF(OR(I51=0,J51=0),"",INDEX(MCALOR,MATCH(I51,PROBABILIDAD,0),MATCH(J51,IMPACTO,0))) -> ALTO | L51: Los investigadores principales de cada proyecto deben generar informes de Gestión de la apropiación social del conocimiento en donde indiquen actividades de investigación desarrolladas, en caso de no haber desarrollado estas se debe generar explicacion del porque y el plan de accion para subsanar el hecho, esto se realizara de manera semestral, se evidencia en informes de seguimiento a proyectos | M51: No asignado | N51: Adecuado | O51: No oportuna | P51: Detectar | Q51: No confiable | R51: No se investigan y resuelven oportunamente | S51: No existe | V51: El control no se ejecuta por parte del responsable. | AA51: Directamente | AB51: Indirectamente | AE51: Improbable | AF51: Moderado | AG51: =IF(OR(AE51="",AF51=""),"",INDEX(MCALOR,MATCH(AE51,PROBABILIDAD,0),MATCH(AF51,IMPACTO,0))) -> MODERADO | AH51: Evitar | AI51: Se esta construyendo el nuevo modelo de seguimiento a los proyectos de investigacion lo que permite la incorporacion de este seguimiento este se realizara por parte del investigador principal, pero su revision sera por parte del equipo de seguimiento a proyectos de investigación | AJ51: No existente a la fecha | AK51: Investigadores principales de Proyectos de investigación | AL51: Semestral
C52: Falta de políticas de estímulo para el desarrollo de este tipo de actividades | G52: Fuga de investigadores a otras instituciones. | L52: Los gestores informaticos del CIDC revisan de manera constante los requerimientos de los investigadores y de los miembros del euipo del CIDC sobre el sistema de informacion del CIDC para realizar las mejoras a lugar, en caso de encontrar fallas se procedera por parte de este equipo informatico a investigar y corregir la falla presentada en el sistema, asi mismo se debera hacer revision constante para una mejora continua del sistema. Se evidencia en informes de gestion del equipo. | M52: Asignado | N52: Adecuado | O52: Oportuna | P52: Prevenir | Q52: Confiable | R52: Se investigan y resuelven oportunamente | S52: Completa | V52: Se ejecuta de manera consistente por parte del responsable. | AI52: Se encuentra en proceso el desarrollo de un nuevo sistema de gestion informatico para la gestion de la investigacion lo que permitira un mejor seguimiento a este riesgo | AJ52: Informes de Gestion | AK52: Gestores de Seguimiento a proyectos de investigación | AL52: Constante
C53: Falta de divulgación de los apoyos para actividades de socialización y difusión de resultados de investigación | G53: Falta de estímulos a los investigadores. | L53: El gestor de grupos y semilleros de investigacion propone un plan de socialización de resultados de investigación en diferentes espacios para conocimiento de la comunidad universitaria el cual se realiza de manera anual, en caso de generarse inconvenientes para el desarrollo del plan se generan alternativas que permitan la visibilización de los resultados de investigación por la comunidad universitaria. Se evidencia en informes de los eventos y registros de los mismos. | M53: Asignado | N53: Adecuado | O53: Oportuna | P53: Prevenir | Q53: Confiable | R53: Se investigan y resuelven oportunamente | S53: Completa | V53: Se ejecuta de manera consistente por parte del responsable. | AI53: Se ha dado la ejecucion de eventos de socializacion de resultados de investigacion que permiten un mayor conocimiento por parte de la comunidad universitaria y engeneral de los resultados de investigacion UD | AJ53: Registro de eventos | AK53: Equipo Informatico CIDC | AL53: Anual
G54: Falta de medios de socialización para la divulgación de los resultados obtenidos.
B57: 8 | C57: Falta de entrega de informes mensuales o anuales del desarrollo de actividades y resultados logrados por las diferentes estructuras de investigación. | D57: Deficiencias en el control, seguimiento y evaluación de las actividades de investigación. | E57: No se tienen actividades y controles definidos que permitan hacer un seguimiento periódico del avance y los resultados obtenidos en los proyectos de investigación | F57: Estratégico | G57: Desinstitucionalización de estructuras de investigación. | H57: CIDC | I57: Posible | J57: Moderado | K57: =IF(OR(I57=0,J57=0),"",INDEX(MCALOR,MATCH(I57,PROBABILIDAD,0),MATCH(J57,IMPACTO,0))) -> ALTO | L57: Los directores de los grupos y los tutores de los semilleros de investigación deben generar informes de Gestión anuales de las estructuras de investigación, para su revision y seguimiento por parte del gestor de grupos y semilleros de investigación. Esto se evidencia en los informes de gestion de los grupos y semilleros. | M57: Asignado | N57: Adecuado | O57: Oportuna | P57: Prevenir | Q57: No confiable | R57: No se investigan y resuelven oportunamente | S57: Incompleta | T57: 65 | U57: Débil | V57: Se ejecuta algunas veces por parte del responsable. | W57: Moderado | X57: Débil | Y57: =IF(SUM(T57:T62=0),"",AVERAGEIF(T57:T62,">0")) -> 83.33333333 | Z57: =IF(Y57="","",IF(Y57=0,"",IF(Y57=100,"Fuerte",IF(Y57<50,"Débil","Moderado")))) -> Moderado | AA57: Directamente | AB57: Directamente | AC57: =IF(Z57="Débil",0,IF(AND(Z57="Fuerte",AA57="Directamente"),2,IF(AND(Z57="Moderado",AA57="Directamente"),1,IF(AND(Z57="Moderado",AA57="No disminuye"),0,IF(AND(Z57="Fuerte",AA57="No disminuye"),0,""))))) -> 1 | AD57: 1 | AE57: =IF(L57="No hay controles establecidos.",I57,IF(AC57="","",IF(AND(I57="Rara vez",AC57>0),"Rara vez",IF(AND(I57="Improbable",AC57=2),"Rara vez",IF(AND(I57="Posible",AC57=2),"Rara vez",IF(AND(I57="Posible",AC57=1),"Improbable",IF(AND(I57="Probable",AC57=2),"Improbable",IF(AND(I57="Probable",AC57=1),"Posible",IF(AND(I57="Casi seguro",AC57=2),"Posible",IF(AND(I57="Casi seguro",AC57=1),"Probable",I57)))))))))) -> Improbable | AF57: =IF(L57="No hay controles establecidos.",J57,IF(AD57="","",IF(AND(J57="Insignificante",AD57>0),"Insignificante",IF(AND(J57="Menor",AD57>0),"Insignificante",IF(AND(J57="Moderado",AD57=1),"Menor",IF(AND(J57="Moderado",AD57=2),"Insignificante",IF(AND(J57="Mayor",AD57=1),"Moderado",IF(AND(J57="Mayor",AD57=2),"Menor",IF(AND(J57="Catastrófico",AD57=1),"Mayor",IF(AND(J57="Catastrófico",AD57=2),"Moderado",J57)))))))))) -> Menor | AG57: =IF(OR(AE57="",AF57=""),"",INDEX(MCALOR,MATCH(AE57,PROBABILIDAD,0),MATCH(AF57,IMPACTO,0))) -> BAJO | AH57: Reducir | AI57: Las estructuras de investigacion deben presentar oportunamente su informe de gestion dando cuenta de lo realizado durante el año, se encuentra en diseño la normatividad que regulara el seguimiento a este proceso | AJ57: Informes de gestión de estructuras de investigación | AK57: Directores de Grupos de Investigación | AL57: Anual
C58: Falta de interés de los investigadores para cumplir los compromisos adquiridos con la Universidad. | G58: Desmonte de convocatorias para el financiamiento de actividades investigativas desarrolladas por las estructuras de investigación. | L58: El gestor de grupos y semilleros realiza el diagnóstico de las estructuras de investigación basado en los informes generados por estas, esta revision se realiza de manera anual, en caso de encontrar falencias o ausencia de algun informe se informara a los directores y tutores para su corrección o el envio de planes de accion con las mejoras y ajustes de lo no conseguido en el año. Esto se evidencia en informes de diagnostico. | M58: Asignado | N58: Adecuado | O58: Oportuna | P58: Detectar | Q58: Confiable | R58: Se investigan y resuelven oportunamente | S58: Incompleta | T58: 90 | U58: Moderado | V58: Se ejecuta de manera consistente por parte del responsable. | W58: Fuerte | X58: Moderado | AI58: Se realiza un diagnostico para detectar el desempeño de los grupos de investigacion y el gestor de los grupos genera realimentacion de estos a los directores y tutoreslo cual debe consignarse en el informe de diagnostico | AJ58: Informe de diagnostico | AK58: Gestor de Grupos CIDC/ Asistentes de unidades de investigacion | AL58: Anual
C59: Falta de un sistema que canalice la información recopilada y desarrollada por el CIDC sobre los logros alcanzados en las actividades de investigación. | G59: Debilitamiento de los sistemas de información como herramienta de seguimiento y control de las estructuras de investigación. | L59: Los gestores de los proyectos de investigación realizan el seguimiento y Actualización de Proyectos de Investigación basados en los informes presentados por los investigadores principales, en caso de encontrarse dificultades o inconsistencias se informa al investigador para corregir o plantear plan de acción para solventar la dificultad encontrada. esta revision se realiza semestralmente. Se evidencia en los informes de seguimiento y correos enviados a los investigadores. | M59: Asignado | N59: Adecuado | O59: Oportuna | P59: Detectar | Q59: Confiable | R59: Se investigan y resuelven oportunamente | S59: Completa | T59: 95 | U59: Moderado | V59: Se ejecuta de manera consistente por parte del responsable. | W59: Fuerte | X59: Moderado | AI59: Se realiza seguimiento al desarrollo de los proyectos de investigacion detectando posibles desviaciones y generando alertas tempranas | AJ59: Informe semestral Correos a los investigadores | AK59: Grupo de seguimiento a proyectos | AL59: Semestral
C60: Falta de un sistema de evaluación de las actividades de investigación desarrolladas por las estructuras de investigación. | G60: Retraso en la visibilidad de productos de investigación. | T60: 0
G61: Posibles otorgamientos de descargas de horas lectivas a docentes de la Universidad por proyectos de investigación en fase de cierre. | T61: 0
G62: Reportes de información no confiables en cuanto proyectos de investigación vigentes. | T62: 0
B64: Elaboró | D64: Revisó | E64: Aprobó
B65: Nombre: Equipo SIGUD Cargo: N/A Fecha: 19/08/2020 | D65: Nombre: Giovanny Tarazona Cargo: Director CIDC Fecha: 03/09/2020 | E65: Nombre: Giovanny Tarazona Cargo: Director CIDC Fecha: 03/09/2020

Sheet 2) GI - Cor
D2: MAPA INTEGRAL DE RIESGOS | E2: Código: GI-MG-001-FR-014
D3: Macroproceso: Direccionamiento Estratégico | E3: Versión: 03
D4: Proceso: Gestión Integrada | E4: Fecha de Aprobación: 14/01/2020
C6: EJE DE CORRUPCIÓN
C8: Proceso: | D8: Gestión de Investigación
C9: Objetivo del Proceso: | D9: =IF(D8=0,"",VLOOKUP(D8,'[8]Datos SGC'!B60:C81,2)) -> Administrar los recursos destinados al desarrollo de estrategias, programas, proyectos investigativos y contar con las condiciones estructurales-organizacionales para proyectarse como una universidad investigativa que promueva y potencie la capacidad del investigador de la Universidad y su labor tenga eco en el desarrollo científico y sociocultural de la ciudad – región y país.
B12: IDENTIFICACIÓN DEL RIESGO | H12: ANÁLISIS DEL RIESGO | K12: EVALUACIÓN DEL RIESGO | AH12: TRATAMIENTO DEL RIESGO
B13: N° | C13: Causa o fuente | D13: Riesgo | E13: Descripción | F13: Consecuencias | G13: Unidad(es) que reportan el Riesgo | H13: Probabilidad | I13: Impacto | J13: Zona de Riesgo Inherente | K13: Controles existentes | L13: Criterios de evaluación del Diseño del Control | S13: Peso en la evaluación de diseño del Control | T13: Peso en la evaluación de diseño del Control | U13: Ejecución del Control | V13: Peso en la evaluación de la ejecución del Control | W13: Solidez individual del Control | X13: Solidez del Conjunto de Controles | Y13: Solidez del Conjunto de Controles | Z13: Controles ayudan a disminuir la probabilidad | AA13: Controles ayudan a disminuir el impacto | AB13: Desplazamiento en la Probabilidad | AC13: Desplazamiento en el Impacto | AD13: Probabilidad Residual | AE13: Impacto Residual | AF13: Zona de Riesgo Residual | AG13: Tratamiento al Riesgo | AH13: Acciones | AI13: Soporte | AJ13: Responsable | AK13: Tiempo
L14: Asignación del Responsable | M14: Segregación y autoridad del Responsable | N14: Periodicidad | O14: Propósito | P14: Cómo se realiza la actividad de Control | Q14: Qué pasa con las desviaciones | R14: Evidencia de la Ejecución del Control
B15: 1 | C15: Desconocimiento de los Procedimientos establecidos en el centro de Investigaciones y Desarrollo Científico. | D15: Adelantamiento de procedimientos sin el cumplimiento total de los parametros establecidos | E15: Incumplimiento del marco normativo definido en el flujo procedimental de cada actividad que realiza el CIDC. | F15: Mala gestión al interior del CIDC. | G15: CIDC/ Unidades de Investigación de las Facultades | H15: Rara vez | I15: Mayor | J15: =IF(OR(H15=0,I15=0),"",INDEX(MCALOR,MATCH(H15,PROBABILIDAD,0),MATCH(I15,IMPACTO,0))) -> ALTO | K15: Los gestores de contratación realizan una primera revisión de la documentación de las solicitudes de contratación (Bienes o servicios) y posteriormente se realiza una segunda revisión por parte de la asistente de la direccion del CIDC, en caso de que se encuentre algun faltante se retrocede en el proceso bien sea a un gestor de contratación o al investigador solicitante, este proceso se realiza de manera constante con la llegada de cualquier solicitud. Se evidencia en el gestor BPM de la dependencia. | L15: Asignado | M15: Adecuado | N15: Oportuna | O15: Detectar | P15: Confiable | Q15: Se investigan y resuelven oportunamente | R15: Completa | S15: =IF(L15="",,VLOOKUP(L15,UNO,2,FALSE))+IF(M15="",0,VLOOKUP(M15,DOS,2,FALSE))+IF(O15="",0,VLOOKUP(O15,CUATRO,2,FALSE))+IF(P15="",0,VLOOKUP(P15,CINCO,2,FALSE))+IF(R15="",0,VLOOKUP(R15,SIETE,2,FALSE))+IF(N15="",0,VLOOKUP(N15,TRES,2,FALSE))+IF(Q15="",0,VLOOKUP(Q15,SEIS,2,FALSE)) -> 95 | T15: =IF(S15=0,"",IF(S15>=96,"Fuerte",IF(S15<=85,"Débil","Moderado"))) -> Moderado | U15: Se ejecuta de manera consistente por parte del responsable. | V15: =IF(U15="","",IF(U15="Se ejecuta de manera consistente por parte del responsable.","Fuerte",IF(U15="Se ejecuta algunas veces por parte del responsable.","Moderado","Débil"))) -> Fuerte | W15: =IF(T15="","",IF(AND(T15="Fuerte",V15="Fuerte"),"Fuerte",IF(OR((AND(T15="Moderado",V15="Moderado")),(AND(T15="Fuerte",V15="Moderado")),(AND(T15="Moderado",V15="Fuerte"))),"Moderado","Débil"))) -> Moderado | X15: =IF(SUM(S15:S20=0),"",AVERAGEIF(S15:S20,">0")) -> 91.66666667 | Y15: =IF(X15="","",IF(X15=0,"",IF(X15=100,"Fuerte",IF(X15<50,"Débil","Moderado")))) -> Moderado | Z15: Directamente | AA15: No disminuye | AB15: =IF(Y15="Débil",0,IF(AND(Y15="Fuerte",Z15="Directamente"),2,IF(AND(Y15="Moderado",Z15="Directamente"),1,IF(AND(Y15="Moderado",Z15="No disminuye"),0,IF(AND(Y15="Fuerte",Z15="No disminuye"),0,""))))) -> 1 | AC15: =IF(AA15=0,"","0") -> 0 | AD15: =IF(Z15="","",IF(K15="No hay controles establecidos.",H15,IF(AB15="","",IF(AND(H15="Rara vez",AB15>0),"Rara vez",IF(AND(H15="Improbable",AB15=2),"Rara vez",IF(AND(H15="Posible",AB15=2),"Rara vez",IF(AND(H15="Posible",AB15=1),"Improbable",IF(AND(H15="Probable",AB15=2),"Improbable",IF(AND(H15="Probable",AB15=1),"Posible",IF(AND(H15="Casi seguro",AB15=2),"Posible",IF(AND(H15="Casi seguro",AB15=1),"Probable",H15))))))))))) -> Rara vez | AE15: =IF(I15="","",I15) -> Mayor | AF15: =IF(OR(AD15="",AE15=""),"",INDEX(MCALOR,MATCH(AD15,PROBABILIDAD,0),MATCH(AE15,IMPACTO,0))) -> ALTO | AG15: Evitar | AH15: Se efectua revisión de cada solicitud por parte de los integrantes del equipo del CIDC en 2 ocasiones previo a seguir el proceso de cualquier adquisicion | AI15: Registro en el motor BPM de los pasos seguidos en el procedimiento | AJ15: Equipo de contratacion CIDC Asistente de Direccion CIDC | AK15: Constante
C16: Aplicación errónea de la normatividad que concierne a cada procedimiento. | F16: Bajo nivel de eficiencia. | K16: Los Gestores de contratacion hacen revisión del cumplimiento del procedimiento en las etapas de revisión y aprobación y cada paso del proceso debe ser documentado en el motor BPM del CIDC, en caso de no quedar documentado el gestor debe complementar la informacion falatante, este proceso se realiza de manera permanente con cada solicitud.Se evidencia en el motor BPM de la dependencia. | L16: Asignado | M16: Adecuado | N16: Oportuna | O16: Detectar | P16: Confiable | Q16: Se investigan y resuelven oportunamente | R16: Incompleta | S16: 90 | T16: =IF(S16=0,"",IF(S16>=96,"Fuerte",IF(S16<=85,"Débil","Moderado"))) -> Moderado | U16: Se ejecuta de manera consistente por parte del responsable. | V16: =IF(U16="","",IF(U16="Se ejecuta de manera consistente por parte del responsable.","Fuerte",IF(U16="Se ejecuta algunas veces por parte del responsable.","Moderado","Débil"))) -> Fuerte | W16: =IF(T16="","",IF(AND(T16="Fuerte",V16="Fuerte"),"Fuerte",IF(OR((AND(T16="Moderado",V16="Moderado")),(AND(T16="Fuerte",V16="Moderado")),(AND(T16="Moderado",V16="Fuerte"))),"Moderado","Débil"))) -> Moderado | AH16: Revision previa de la solicitud y de ser necesario acompañamiento al solicitante para la completitud de los requerimientos | AI16: Registro en el motor BPM de los pasos seguidos en el procedimiento | AJ16: Equipo de seguimiento a proyectos del CIDC | AK16: Constante
C17: Omisión de los conductos regulares de los procedimientos. | F17: Pérdida de la calidad de los procedimientos. | K17: El gestor de planeación del CIDC realiza una revision anual de los procedimientos asociados a la dependencia, de encontrar alguna mejora este la informa al equipo SIGUD o a la dependencia responsable del proceso del que se sugiere mejora para su cambio. La evidencia se encuentra en correos de solicitud de cambios e informes de gestion. | L17: Asignado | M17: Adecuado | N17: Oportuna | O17: Prevenir | P17: Confiable | Q17: Se investigan y resuelven oportunamente | R17: No existe | S17: 90 | T17: Moderado | U17: Se ejecuta de manera consistente por parte del responsable. | V17: Fuerte | W17: Moderado | AH17: Revision de los procedimiento y de ser necesario se realiza la solicitud de cambio o se informa al gestor de proceso para realizar la actualización de procedimiento | AI17: Solicitudes via correo electronico Informes de gestión | AJ17: Gestor de planeacion CIDC | AK17: Anual
C18: Solicitudes incompletas por parte de integrantes de la comunidad universitaria. | F18: Consecuencias disciplinarias. | S18: 0
S19: 0
S20: 0
B21: 2 | C21: Presentación de intención de contratos o convenios por parte de relacionados con funcionarios de la universidad. | D21: Contratación dirigida | E21: Ejecución del procedimiento contractual con anomalías en la planeación, ejecución, seguimiento y control. | F21: Riesgo e impactos legales. | G21: CIDC/ Unidades de Investigación de las Facultades | H21: Rara vez | I21: Mayor | J21: =IF(OR(H21=0,I21=0),"",INDEX(MCALOR,MATCH(H21,PROBABILIDAD,0),MATCH(I21,IMPACTO,0))) -> ALTO | K21: El equipo de contrtacion del CIDC en apoyo del area juridica del CIDC y la asistente de Dirección del CIDC revisan y dan seguimiento al proceso de contratación relacionada con el area para generar una vision multidisciplinaria de los procedimientos y en caso de encontrarse algun fallo en el procedimiento se documenta esta y se devuelve al procedimiento anterior, esto se realiza de manera permanente y se evidencia en los correos enviados a los solicitantes. | L21: Asignado | M21: Adecuado | N21: Oportuna | O21: Prevenir | P21: Confiable | Q21: Se investigan y resuelven oportunamente | R21: Completa | S21: 100 | T21: Fuerte | U21: Se ejecuta de manera consistente por parte del responsable. | V21: Fuerte | W21: Fuerte | X21: =IF(SUM(S21:S26=0),"",AVERAGEIF(S21:S26,">0")) -> 100 | Y21: =IF(X21="","",IF(X21=0,"",IF(X21=100,"Fuerte",IF(X21<50,"Débil","Moderado")))) -> Fuerte | Z21: Directamente | AA21: No disminuye | AB21: =IF(Y21="Débil",0,IF(AND(Y21="Fuerte",Z21="Directamente"),2,IF(AND(Y21="Moderado",Z21="Directamente"),1,IF(AND(Y21="Moderado",Z21="No disminuye"),0,IF(AND(Y21="Fuerte",Z21="No disminuye"),0,""))))) -> 2 | AC21: =IF(AA21=0,"","0") -> 0 | AD21: =IF(Z21="","",IF(K21="No hay controles establecidos.",H21,IF(AB21="","",IF(AND(H21="Rara vez",AB21>0),"Rara vez",IF(AND(H21="Improbable",AB21=2),"Rara vez",IF(AND(H21="Posible",AB21=2),"Rara vez",IF(AND(H21="Posible",AB21=1),"Improbable",IF(AND(H21="Probable",AB21=2),"Improbable",IF(AND(H21="Probable",AB21=1),"Posible",IF(AND(H21="Casi seguro",AB21=2),"Posible",IF(AND(H21="Casi seguro",AB21=1),"Probable",H21))))))))))) -> Rara vez | AE21: =IF(I21="","",I21) -> Mayor | AF21: =IF(OR(AD21="",AE21=""),"",INDEX(MCALOR,MATCH(AD21,PROBABILIDAD,0),MATCH(AE21,IMPACTO,0))) -> ALTO | AG21: Evitar | AH21: Se realiza revision de la solicitud de contratación por parte del interesado y de ser necesario se solicitan ajustes de encontrarse direccionamiento de la contratación | AI21: Correos a solicitantes aprobando o solicitando ajustes a su solicitud | AJ21: Equipo de contratacion CIDC/ Area juridica CIDC/ Asistente CIDC | AK21: Constante
C22: Propuestas de convenios o contratos con fines que benefician intereses particulares. | F22: Consecuencias disciplinarias. | K22: Un abogado del CIDC hace revisión de los contratos y aspectos legales de los mismos previo a la firma del Director del CIDC para detectar cualquier inconsistencia o error en el contenido de estos, esto se realiza de manera permanente a la llegada de los contratos. Se evidencia en el motor BPM de la dependencia | L22: Asignado | M22: Adecuado | N22: Oportuna | O22: Prevenir | P22: Confiable | Q22: Se investigan y resuelven oportunamente | R22: Completa | S22: 100 | T22: Fuerte | U22: Se ejecuta de manera consistente por parte del responsable. | V22: Fuerte | W22: Fuerte | AH22: Se realiza revision por parte de un abogado del CIDC de todos los contratos que firme el Director y de ser necesario se envia al area encargada para su correción | AI22: Motor BPM CIDC | AJ22: Abogado CIDC | AK22: Constante
C23: Intervención indebida de funcionarios de la universidad Distrital Francisco José de Caldas en la contratación. | F23: Pérdida de la buena imagen institucional. | K23: El equipo de contratcion del CIDC realiza la gestion para la contratacion de los bienes o servicios de acuerdo al procedimiento de selección de proveedores establecidos en el sistema integral de gestión (AGORA) con apoyo del uso de la herramienta SECOP II, esto se realiza de manera permanente acorde a las solicitudes de contratación. Se evidencia en el sistema AGORA y SECOP II | L23: Asignado | M23: Adecuado | N23: Oportuna | O23: Prevenir | P23: Confiable | Q23: Se investigan y resuelven oportunamente | R23: Completa | S23: 100 | T23: Fuerte | U23: Se ejecuta de manera consistente por parte del responsable. | V23: Fuerte | W23: Fuerte | AH23: Se esta iniciando la implementacion del uso de la herramienta SECOP II para garantizar transparencia en la elección de proveedores, para la solicitud de cotizaciones se utiliza la herramienta AGORA | AI23: Solicitudes en las herramientas mencionadas | AJ23: Equipo de contratacion CIDC | AK23: Constante
C24: Convocatorias excluyentes y mal definidas. | S24: 0
S25: 0
S26: 0
B27: 3 | C27: Beneficiar intereses de funcionarios de cargos altos. | D27: Manipulacion de la contratacion por parte de directivas | E27: Influencia del poder sobre decisiones o actividades de procedimientos establecidos que salten u omitan etapas de los mismos. | F27: Pérdida de confiabilidad en los procesos del CIDC. | G27: CIDC | H27: Rara vez | I27: Mayor | J27: =IF(OR(H27=0,I27=0),"",INDEX(MCALOR,MATCH(H27,PROBABILIDAD,0),MATCH(I27,IMPACTO,0))) -> ALTO | K27: El equipo de contrtacion del CIDC en apoyo del area juridica del CIDC y la asistente de Dirección del CIDC revisan y dan seguimiento al proceso de contratación relacionada con el area para generar una vision multidisciplinaria de los procedimientos y en caso de encontrarse algun fallo en el procedimiento se documenta esta y se devuelve al procedimiento anterior, esto se realiza de manera permanente y se evidencia en los correos enviados a los solicitantes. | L27: Asignado | M27: Adecuado | N27: Oportuna | O27: Prevenir | P27: Confiable | Q27: Se investigan y resuelven oportunamente | R27: Completa | S27: 100 | T27: Fuerte | U27: Se ejecuta de manera consistente por parte del responsable. | V27: Fuerte | W27: Fuerte | X27: =IF(SUM(S27:S32=0),"",AVERAGEIF(S27:S32,">0")) -> 100 | Y27: =IF(X27="","",IF(X27=0,"",IF(X27=100,"Fuerte",IF(X27<50,"Débil","Moderado")))) -> Fuerte | Z27: Directamente | AA27: No disminuye | AB27: =IF(Y27="Débil",0,IF(AND(Y27="Fuerte",Z27="Directamente"),2,IF(AND(Y27="Moderado",Z27="Directamente"),1,IF(AND(Y27="Moderado",Z27="No disminuye"),0,IF(AND(Y27="Fuerte",Z27="No disminuye"),0,""))))) -> 2 | AC27: =IF(AA27=0,"","0") -> 0 | AD27: =IF(Z27="","",IF(K27="No hay controles establecidos.",H27,IF(AB27="","",IF(AND(H27="Rara vez",AB27>0),"Rara vez",IF(AND(H27="Improbable",AB27=2),"Rara vez",IF(AND(H27="Posible",AB27=2),"Rara vez",IF(AND(H27="Posible",AB27=1),"Improbable",IF(AND(H27="Probable",AB27=2),"Improbable",IF(AND(H27="Probable",AB27=1),"Posible",IF(AND(H27="Casi seguro",AB27=2),"Posible",IF(AND(H27="Casi seguro",AB27=1),"Probable",H27))))))))))) -> Rara vez | AE27: =IF(I27="","",I27) -> Mayor | AF27: =IF(OR(AD27="",AE27=""),"",INDEX(MCALOR,MATCH(AD27,PROBABILIDAD,0),MATCH(AE27,IMPACTO,0))) -> ALTO | AG27: Evitar | AH27: Toda solicitud se realiza de acuerdo a lo establecido en los proyectos de investigación o lo estipulado en el proyecto de inversión de lo contrario es denegada y oportunamente se informa la razon de la denegación | AI27: Correos a solicitantes aprobando o solicitando ajustes a su solicitud | AJ27: Equipo de contratacion CIDC/ Area juridica CIDC/ Asistente CIDC | AK27: Constante
C28: Salto normativo y procedimental por provenir de un alto cargo. | F28: Desigualdad de beneficios y servicios prestados a la comunidad. | K28: El comité de investigaciones revisa las solicitudes que sean consideradas de tipo extraordinario siempre que no incumplan con su accionar ninguna norma establecida en los normogramas de la Universidad y bajo criterios investigativos realiza aprobación o denegación de las mismas, este proceso se realzia de manera permanente acorde a las solicitudes allegadas. Se evidencia en actas del comite. | L28: Asignado | M28: Adecuado | N28: Oportuna | O28: Prevenir | P28: Confiable | Q28: Se investigan y resuelven oportunamente | R28: Completa | S28: 100 | T28: Fuerte | U28: Se ejecuta de manera consistente por parte del responsable. | V28: Fuerte | W28: Fuerte | AH28: Toda solicitud que sea de carácter extraordinario solo se aprueba bajo consenso con el comité de investigación o se remite a consideración del organo que se considere oportuno por la naturaleza de la misma | AI28: Actas de Comité | AJ28: Comité de investigaciones | AK28: Constante
C29: Miedo de seguir procedimientos estandarizados con funcionarios de altos rangos. | F29: Consecuencias Legales. | S29: 0
C30: Consecuencias negativas por seguir los procedimientos establecidos sin excepción con toda la comunidad. | F30: Consecuencias disciplinarias. | S30: 0
S31: 0
S32: 0
B33: 4 | J33: =IF(OR(H33=0,I33=0),"",INDEX(MCALOR,MATCH(H33,PROBABILIDAD,0),MATCH(I33,IMPACTO,0))) ->  | S33: 0 | X33: =IF(SUM(S33:S38=0),"",AVERAGEIF(S33:S38,">0")) ->  | Y33: =IF(X33="","",IF(X33=0,"",IF(X33=100,"Fuerte",IF(X33<50,"Débil","Moderado")))) ->  | AB33: =IF(Y33="Débil",0,IF(AND(Y33="Fuerte",Z33="Directamente"),2,IF(AND(Y33="Moderado",Z33="Directamente"),1,IF(AND(Y33="Moderado",Z33="No disminuye"),0,IF(AND(Y33="Fuerte",Z33="No disminuye"),0,""))))) ->  | AC33: =IF(AA33=0,"","0") ->  | AD33: =IF(Z33="","",IF(K33="No hay controles establecidos.",H33,IF(AB33="","",IF(AND(H33="Rara vez",AB33>0),"Rara vez",IF(AND(H33="Improbable",AB33=2),"Rara vez",IF(AND(H33="Posible",AB33=2),"Rara vez",IF(AND(H33="Posible",AB33=1),"Improbable",IF(AND(H33="Probable",AB33=2),"Improbable",IF(AND(H33="Probable",AB33=1),"Posible",IF(AND(H33="Casi seguro",AB33=2),"Posible",IF(AND(H33="Casi seguro",AB33=1),"Probable",H33))))))))))) ->  | AE33: =IF(I33="","",I33) ->  | AF33: =IF(OR(AD33="",AE33=""),"",INDEX(MCALOR,MATCH(AD33,PROBABILIDAD,0),MATCH(AE33,IMPACTO,0))) -> 
S34: 0
S35: 0
S36: 0
S37: 0
S38: 0
B39: 5 | J39: =IF(OR(H39=0,I39=0),"",INDEX(MCALOR,MATCH(H39,PROBABILIDAD,0),MATCH(I39,IMPACTO,0))) ->  | S39: 0 | X39: =IF(SUM(S39:S44=0),"",AVERAGEIF(S39:S44,">0")) ->  | Y39: =IF(X39="","",IF(X39=0,"",IF(X39=100,"Fuerte",IF(X39<50,"Débil","Moderado")))) ->  | AB39: =IF(Y39="Débil",0,IF(AND(Y39="Fuerte",Z39="Directamente"),2,IF(AND(Y39="Moderado",Z39="Directamente"),1,IF(AND(Y39="Moderado",Z39="No disminuye"),0,IF(AND(Y39="Fuerte",Z39="No disminuye"),0,""))))) ->  | AC39: =IF(AA39=0,"","0") ->  | AD39: =IF(Z39="","",IF(K39="No hay controles establecidos.",H39,IF(AB39="","",IF(AND(H39="Rara vez",AB39>0),"Rara vez",IF(AND(H39="Improbable",AB39=2),"Rara vez",IF(AND(H39="Posible",AB39=2),"Rara vez",IF(AND(H39="Posible",AB39=1),"Improbable",IF(AND(H39="Probable",AB39=2),"Improbable",IF(AND(H39="Probable",AB39=1),"Posible",IF(AND(H39="Casi seguro",AB39=2),"Posible",IF(AND(H39="Casi seguro",AB39=1),"Probable",H39))))))))))) ->  | AE39: =IF(I39="","",I39) ->  | AF39: =IF(OR(AD39="",AE39=""),"",INDEX(MCALOR,MATCH(AD39,PROBABILIDAD,0),MATCH(AE39,IMPACTO,0))) -> 
S40: 0
S41: 0
S42: 0
S43: 0
S44: 0
B45: 6 | J45: =IF(OR(H45=0,I45=0),"",INDEX(MCALOR,MATCH(H45,PROBABILIDAD,0),MATCH(I45,IMPACTO,0))) ->  | S45: 0 | X45: =IF(SUM(S45:S50=0),"",AVERAGEIF(S45:S50,">0")) ->  | Y45: =IF(X45="","",IF(X45=0,"",IF(X45=100,"Fuerte",IF(X45<50,"Débil","Moderado")))) ->  | AB45: =IF(Y45="Débil",0,IF(AND(Y45="Fuerte",Z45="Directamente"),2,IF(AND(Y45="Moderado",Z45="Directamente"),1,IF(AND(Y45="Moderado",Z45="No disminuye"),0,IF(AND(Y45="Fuerte",Z45="No disminuye"),0,""))))) ->  | AC45: =IF(AA45=0,"","0") ->  | AD45: =IF(Z45="","",IF(K45="No hay controles establecidos.",H45,IF(AB45="","",IF(AND(H45="Rara vez",AB45>0),"Rara vez",IF(AND(H45="Improbable",AB45=2),"Rara vez",IF(AND(H45="Posible",AB45=2),"Rara vez",IF(AND(H45="Posible",AB45=1),"Improbable",IF(AND(H45="Probable",AB45=2),"Improbable",IF(AND(H45="Probable",AB45=1),"Posible",IF(AND(H45="Casi seguro",AB45=2),"Posible",IF(AND(H45="Casi seguro",AB45=1),"Probable",H45))))))))))) ->  | AE45: =IF(I45="","",I45) ->  | AF45: =IF(OR(AD45="",AE45=""),"",INDEX(MCALOR,MATCH(AD45,PROBABILIDAD,0),MATCH(AE45,IMPACTO,0))) -> 
S46: 0
S47: 0
S48: 0
S49: 0
S50: 0
B51: 7 | J51: =IF(OR(H51=0,I51=0),"",INDEX(MCALOR,MATCH(H51,PROBABILIDAD,0),MATCH(I51,IMPACTO,0))) ->  | S51: 0 | X51: =IF(SUM(S51:S56=0),"",AVERAGEIF(S51:S56,">0")) ->  | Y51: =IF(X51="","",IF(X51=0,"",IF(X51=100,"Fuerte",IF(X51<50,"Débil","Moderado")))) ->  | AB51: =IF(Y51="Débil",0,IF(AND(Y51="Fuerte",Z51="Directamente"),2,IF(AND(Y51="Moderado",Z51="Directamente"),1,""))) ->  | AC51: =IF(AA51=0,"","0") ->  | AD51: =IF(Z51="","",IF(K51="No hay controles establecidos.",H51,IF(AB51="","",IF(AND(H51="Rara vez",AB51>0),"Rara vez",IF(AND(H51="Improbable",AB51=2),"Rara vez",IF(AND(H51="Posible",AB51=2),"Rara vez",IF(AND(H51="Posible",AB51=1),"Improbable",IF(AND(H51="Probable",AB51=2),"Improbable",IF(AND(H51="Probable",AB51=1),"Posible",IF(AND(H51="Casi seguro",AB51=2),"Posible",IF(AND(H51="Casi seguro",AB51=1),"Probable",H51))))))))))) ->  | AE51: =IF(I51="","",I51) ->  | AF51: =IF(OR(AD51="",AE51=""),"",INDEX(MCALOR,MATCH(AD51,PROBABILIDAD,0),MATCH(AE51,IMPACTO,0))) -> 
S52: 0
S53: 0
S54: 0
S55: 0
S56: 0
B58: Elaboró | D58: Revisó | E58: Aprobó
B59: Nombre: Equipo SIGUD Cargo: N/A Fecha: 19/08/2020 | D59: Nombre: Giovanny Tarazona Cargo: Director CIDC Fecha: 03/09/2020 | E59: Nombre: Giovanny Tarazona Cargo: Director CIDC Fecha: 03/09/2020

Sheet 3) EPS - Cal
D2: MAPA INTEGRAL DE RIESGOS | E2: Código: GI-MG-001-FR-014
D3: Macroproceso: Direccionamiento Estratégico | E3: Versión: 03
D4: Proceso: Gestión Integrada | E4: Fecha de Aprobación: 14/01/2020
C6: EJE DE CALIDAD
C8: Proceso: | D8: Extensión y Proyección Social
C9: Objetivo del Proceso: | D9: =IF(D8=0,"",VLOOKUP(D8,'[9]Datos SGC'!B60:C81,2)) -> Promover la vinculación de la Universidad Distrital Francisco José de Caldas con su entorno social, a través de la coordinación de los programas, planes y proyectos de Extensión y Proyección Social, en articulación a la Docencia y la Investigación.
B12: IDENTIFICACIÓN DEL RIESGO | I12: ANÁLISIS DEL RIESGO | L12: EVALUACIÓN DEL RIESGO | AI12: TRATAMIENTO DEL RIESGO
B13: N° | C13: Causa o fuente | D13: Riesgo | E13: Descripción | F13: Tipo de Riesgo | G13: Consecuencias | H13: Unidad(es) que reportan al Riesgo | I13: Probabilidad | J13: Impacto | K13: Zona de Riesgo Inherente | L13: Controles existentes | M13: Criterios de evaluación del Diseño del Control | T13: Peso en la evaluación de diseño del Control | U13: Peso en la evaluación de diseño del Control | V13: Ejecución del Control | W13: Peso en la evaluación de la ejecución del Control | X13: Solidez individual del Control | Y13: Solidez del Conjunto de Controles | Z13: Solidez del Conjunto de Controles | AA13: Controles ayudan a disminuir la probabilidad | AB13: Controles ayudan a disminuir el impacto | AC13: Desplazamiento en la Probabilidad | AD13: Desplazamiento en el Impacto | AE13: Probabilidad Residual | AF13: Impacto Residual | AG13: Zona de Riesgo Residual | AH13: Tratamiento al Riesgo | AI13: Acciones | AJ13: Soporte | AK13: Responsable | AL13: Tiempo
M14: Asignación del Responsable | N14: Segregación y autoridad del Responsable | O14: Periodicidad | P14: Propósito | Q14: Cómo se realiza la actividad de Control | R14: Qué pasa con las desviaciones | S14: Evidencia de la Ejecución del Control
B15: 1 | C15: Falta de coordinación de estrategias de comunicación para estandarización de documentos. | D15: Desconocimiento del mapa de procesos y organigrama del Instituto de Extensión (IDEXUD)y el Instituto de Lenguas y demás procedimientos asociados al Sistema Integrado de Gestión de la Universidad Distrital Francisco José de Caldas | E15: El riesgo consiste en la falta de reconocimiento y la desinformación de la labor y las funciones del Instituto de Lenguas (ILUD), y Instituto de Extensión (IDEXUD) de la Universidad Distrital, por parte de la comunidad de la Universidad Distrital Francisco José de Caldas. | F15: Operativo | G15: Falta de estandarización y normalización de la documentación asociada a los procedimientos y actualización de los procedimientos existentes o creación de nuevos procedimientos. | H15: IDEXUD ILUD | I15: Posible | J15: Menor | K15: =IF(OR(I15=0,J15=0),"",INDEX(MCALOR,MATCH(I15,PROBABILIDAD,0),MATCH(J15,IMPACTO,0))) -> MODERADO | L15: los profesionales del IDEXUD e ILUD realizan la Revisión y estandarización de documentos que falten por normalización dentro del Sistema. | M15: Asignado | N15: Adecuado | O15: Oportuna | P15: Prevenir | Q15: Confiable | R15: Se investigan y resuelven oportunamente | S15: Completa | T15: =IF(M15="",,VLOOKUP(M15,UNO,2,FALSE))+IF(N15="",0,VLOOKUP(N15,DOS,2,FALSE))+IF(P15="",0,VLOOKUP(P15,CUATRO,2,FALSE))+IF(Q15="",0,VLOOKUP(Q15,CINCO,2,FALSE))+IF(S15="",0,VLOOKUP(S15,SIETE,2,FALSE))+IF(O15="",0,VLOOKUP(O15,TRES,2,FALSE))+IF(R15="",0,VLOOKUP(R15,SEIS,2,FALSE)) -> 100 | U15: =IF(T15=0,"",IF(T15>=96,"Fuerte",IF(T15<=85,"Débil","Moderado"))) -> Fuerte | V15: Se ejecuta de manera consistente por parte del responsable. | W15: =IF(V15="","",IF(V15="Se ejecuta de manera consistente por parte del responsable.","Fuerte",IF(V15="Se ejecuta algunas veces por parte del responsable.","Moderado","Débil"))) -> Fuerte | X15: =IF(U15="","",IF(AND(U15="Fuerte",W15="Fuerte"),"Fuerte",IF(OR((AND(U15="Moderado",W15="Moderado")),(AND(U15="Fuerte",W15="Moderado")),(AND(U15="Moderado",W15="Fuerte"))),"Moderado","Débil"))) -> Fuerte | Y15: =IF(SUM(T15:T20=0),"",AVERAGEIF(T15:T20,">0")) -> 98.33333333 | Z15: =IF(Y15="","",IF(Y15=0,"",IF(Y15=100,"Fuerte",IF(Y15<50,"Débil","Moderado")))) -> Moderado | AA15: Directamente | AB15: Directamente | AC15: =IF(Z15="Débil",0,IF(AND(Z15="Fuerte",AA15="Directamente"),2,IF(AND(Z15="Moderado",AA15="Directamente"),1,IF(AND(Z15="Moderado",AA15="No disminuye"),0,IF(AND(Z15="Fuerte",AA15="No disminuye"),0,""))))) -> 1 | AD15: =IF(Z15="Débil",0,IF(AND(Z15="Fuerte",AB15="Directamente"),2,IF(AND(Z15="Fuerte",AB15="Indirectamente"),1,IF(AND(Z15="Moderado",AB15="Directamente"),1,IF(AB15="No disminuye","0",IF(AND(Z15="Moderado",AB15="Indirectamente"),"0","")))))) -> 1 | AE15: =IF(L15="No hay controles establecidos.",I15,IF(AC15="","",IF(AND(I15="Rara vez",AC15>0),"Rara vez",IF(AND(I15="Improbable",AC15=2),"Rara vez",IF(AND(I15="Posible",AC15=2),"Rara vez",IF(AND(I15="Posible",AC15=1),"Improbable",IF(AND(I15="Probable",AC15=2),"Improbable",IF(AND(I15="Probable",AC15=1),"Posible",IF(AND(I15="Casi seguro",AC15=2),"Posible",IF(AND(I15="Casi seguro",AC15=1),"Probable",I15)))))))))) -> Improbable | AF15: =IF(L15="No hay controles establecidos.",J15,IF(AD15="","",IF(AND(J15="Insignificante",AD15>0),"Insignificante",IF(AND(J15="Menor",AD15>0),"Insignificante",IF(AND(J15="Moderado",AD15=1),"Menor",IF(AND(J15="Moderado",AD15=2),"Insignificante",IF(AND(J15="Mayor",AD15=1),"Moderado",IF(AND(J15="Mayor",AD15=2),"Menor",IF(AND(J15="Catastrófico",AD15=1),"Mayor",IF(AND(J15="Catastrófico",AD15=2),"Moderado",J15)))))))))) -> Insignificante | AG15: =IF(OR(AE15="",AF15=""),"",INDEX(MCALOR,MATCH(AE15,PROBABILIDAD,0),MATCH(AF15,IMPACTO,0))) -> BAJO | AH15: Reducir | AI15: Elaborar, actualizar, aprobar, publicar e implementar los diferentes instrumentos y herramientas necesarias para el cumplimiento de las actividades propias del proceso de Extensión y Proyección Social | AJ15: Documentos | AK15: Profesionales de IDEXUD e ILUD | AL15: Constantemente
C16: Falta de inclusión del Instituto en algunas jornadas y actividades dentro de la Universidad. | G16: Uso inadecuado de formatos y registros. Inadecuado reconocimiento o falta de reconocimiento de la misión del Instituto y su alcance. | L16: El equipo de calidad del IDEXUD es el responsable de realizar el Entrenamiento y sensibilización sobre formatos y el correcto manejo de los mismos. | M16: Asignado | N16: Adecuado | O16: Oportuna | P16: Prevenir | Q16: Confiable | R16: Se investigan y resuelven oportunamente | S16: Completa | T16: 100 | U16: Fuerte | V16: Se ejecuta de manera consistente por parte del responsable. | W16: Fuerte | X16: Fuerte
C17: Interrupción de los procesos y procedimientos por cambio de gestor. | G17: Duplicidad de la información manejada por el Instituto y demás dependencias de la Universidad Distrital. | L17: los profesionales de calidad del IDEXUD y del ILUD realizaran la Articulación con el SIGUD para homologación de formatos dentro del SGC del IDEXUD | M17: Asignado | N17: Adecuado | O17: Oportuna | P17: Prevenir | Q17: Confiable | R17: Se investigan y resuelven oportunamente | S17: Completa | T17: 100 | U17: Fuerte | V17: Se ejecuta de manera consistente por parte del responsable. | W17: Fuerte | X17: Fuerte
C18: Desactualización y/o duplicidad de la información. | G18: Reprocesamiento de actividades y procedimientos. | L18: El equipo de calidad es el encargado de la divulgación de procedimientos del Sistema Integrado con el fin de evitar el re proceso. | M18: Asignado | N18: Adecuado | O18: Oportuna | P18: Detectar | Q18: Confiable | R18: Se investigan y resuelven oportunamente | S18: Completa | T18: 95 | U18: Moderado | V18: Se ejecuta de manera consistente por parte del responsable. | W18: Fuerte | X18: Moderado
C19: Retraso en la ejecución de procedimientos por parte de los contratistas debido al desconocimiento del mapa de procesos y del organigrama | G19: Proyectar una imagen inadecuada los usuarios. | L19: el equipo del IDEXUD y del ILUD serán los responsables de la socialización constante de los procedimientos asociados al Instituto. | M19: Asignado | N19: Adecuado | O19: Oportuna | P19: Prevenir | Q19: Confiable | R19: Se investigan y resuelven oportunamente | S19: Completa | T19: 100 | U19: Fuerte | V19: Se ejecuta de manera consistente por parte del responsable. | W19: Fuerte | X19: Fuerte
C20: Planteamiento erróneo de estrategias de divulgación y ampliación de la función del Instituto. | G20: Disminución de ingresos por concepto de matrículas. | L20: Los profesionales del ILUD son los responsables de la implementación de un equipo encargado de la comunicación interna y externa. | M20: Asignado | N20: Adecuado | O20: Oportuna | P20: Detectar | Q20: Confiable | R20: Se investigan y resuelven oportunamente | S20: Completa | T20: 95 | U20: Moderado | V20: Se ejecuta de manera consistente por parte del responsable. | W20: Fuerte | X20: Moderado
B21: 2 | C21: Dificultad de realizar empalme de los contratistas al momento de llevar a cabo el cambio de contratistas. | D21: Retraso y/o demora de las funciones por parte de los contratistas y funcionarios de planta del Instituto. | E21: El riesgo consiste en el retraso y/o demora de las actividades, por parte de los contratistas y funcionarios de planta del Instituto de Extensión de la Universidad Distrital (IDEXUD) y el IULUD por falta de sensibilización y socialización de procedimientos. | F21: Operativos | G21: Desviación en el cumplimiento de actividades o metas. | H21: IDEXUD ILUD | I21: Posible | J21: Moderado | K21: =IF(OR(I21=0,J21=0),"",INDEX(MCALOR,MATCH(I21,PROBABILIDAD,0),MATCH(J21,IMPACTO,0))) -> ALTO | L21: los jefes del IDEXUD y del ILUD son los responsables de la Inducción y entrenamiento a todos los contratistas del IDEXUD y el ILUD y a cada puesto de trabajo. | M21: Asignado | N21: Adecuado | O21: Oportuna | P21: Detectar | Q21: Confiable | R21: Se investigan y resuelven oportunamente | S21: Completa | T21: 95 | U21: Moderado | V21: Se ejecuta de manera consistente por parte del responsable. | W21: Fuerte | X21: Moderado | Y21: =IF(SUM(T21:T26=0),"",AVERAGEIF(T21:T26,">0")) -> 95 | Z21: =IF(Y21="","",IF(Y21=0,"",IF(Y21=100,"Fuerte",IF(Y21<50,"Débil","Moderado")))) -> Moderado | AA21: Directamente | AB21: Directamente | AC21: =IF(Z21="Débil",0,IF(AND(Z21="Fuerte",AA21="Directamente"),2,IF(AND(Z21="Moderado",AA21="Directamente"),1,IF(AND(Z21="Moderado",AA21="No disminuye"),0,IF(AND(Z21="Fuerte",AA21="No disminuye"),0,""))))) -> 1 | AD21: =IF(Z21="Débil",0,IF(AND(Z21="Fuerte",AB21="Directamente"),2,IF(AND(Z21="Fuerte",AB21="Indirectamente"),1,IF(AND(Z21="Moderado",AB21="Directamente"),1,IF(AB21="No disminuye","0",IF(AND(Z21="Moderado",AB21="Indirectamente"),"0","")))))) -> 1 | AE21: =IF(L21="No hay controles establecidos.",I21,IF(AC21="","",IF(AND(I21="Rara vez",AC21>0),"Rara vez",IF(AND(I21="Improbable",AC21=2),"Rara vez",IF(AND(I21="Posible",AC21=2),"Rara vez",IF(AND(I21="Posible",AC21=1),"Improbable",IF(AND(I21="Probable",AC21=2),"Improbable",IF(AND(I21="Probable",AC21=1),"Posible",IF(AND(I21="Casi seguro",AC21=2),"Posible",IF(AND(I21="Casi seguro",AC21=1),"Probable",I21)))))))))) -> Improbable | AF21: =IF(L21="No hay controles establecidos.",J21,IF(AD21="","",IF(AND(J21="Insignificante",AD21>0),"Insignificante",IF(AND(J21="Menor",AD21>0),"Insignificante",IF(AND(J21="Moderado",AD21=1),"Menor",IF(AND(J21="Moderado",AD21=2),"Insignificante",IF(AND(J21="Mayor",AD21=1),"Moderado",IF(AND(J21="Mayor",AD21=2),"Menor",IF(AND(J21="Catastrófico",AD21=1),"Mayor",IF(AND(J21="Catastrófico",AD21=2),"Moderado",J21)))))))))) -> Menor | AG21: =IF(OR(AE21="",AF21=""),"",INDEX(MCALOR,MATCH(AE21,PROBABILIDAD,0),MATCH(AF21,IMPACTO,0))) -> BAJO | AH21: Reducir | AI21: Vincular el personal suficiente e idóneo para el desarrollo de las actividades propias del proceso de Extensión y Proyección Social | AJ21: Estudios Previos, necesidades y Contratos | AK21: Jefes del IDEXUD e ILUD | AL21: Constantemente
C22: Falta de jornadas de sensibilización y socialización a los contratistas de Instituto. | G22: Insatisfacción del cliente y/o usuario al no alcanzar las expectativas | L22: el equipo de calidad del Idexud y del ILUD son los responsables de socialización de misión, visión y procedimientos asociados a los Institutos. | M22: Asignado | N22: Adecuado | O22: Oportuna | P22: Detectar | Q22: Confiable | R22: Se investigan y resuelven oportunamente | S22: Completa | T22: 95 | U22: Moderado | V22: Se ejecuta de manera consistente por parte del responsable. | W22: Fuerte | X22: Moderado | AI22: El equipo del proceso de EPS , constantemente divulgará y sensibilizará la información institucional misional y estratégica de interés en todos los espacios del proceso, | AJ22: lista de asistencia de las sensibilizaciones | AK22: Profesionales de IDEXUD e ILUD | AL22: Constantemente
C23: Dificultad de entendimiento de las funciones, procedimientos y servicios realizados en el Instituto. | G23: Demoras en los tiempos de ejecución del proyecto y/o servicio. | L23: los jefes del IDEXUD y del ILUD debe definir perfiles y roles de cargo con el fin de dar claridad a los contratistas respecto a sus actividades. | M23: Asignado | N23: Adecuado | O23: Oportuna | P23: Detectar | Q23: Confiable | R23: Se investigan y resuelven oportunamente | S23: Completa | T23: 95 | U23: Moderado | V23: Se ejecuta de manera consistente por parte del responsable. | W23: Fuerte | X23: Moderado
C24: Desinterés por parte del talento humano. | G24: Desempeño bajo o inadecuado de los contratistas. | L24: los jefes del IDEXUD y del ILUD deben realizar constante seguimiento de los contratistas a través de instrumentos estandarizaos. | M24: Asignado | N24: Adecuado | O24: Oportuna | P24: Detectar | Q24: Confiable | R24: Se investigan y resuelven oportunamente | S24: Completa | T24: 95 | U24: Moderado | V24: Se ejecuta de manera consistente por parte del responsable. | W24: Fuerte | X24: Moderado
T25: 0
T26: 0
B27: 3 | C27: Desconocimiento del mapa de proceso y el organigrama. | D27: Retraso en el desarrollo de los proyectos y demora en el cumplimiento de las actividades y objetivos llevados a cabo por el Instituto. | E27: El riesgo consiste en el retraso y/o demora que se puede presentar al momento de llevar a cabo la ejecución de los proyectos desarrollados por el Instituto de Extensión de la Universidad Distrital francisco José de Caldas (IDEXUD) generando baja satisfacción en el cliente. | F27: De tecnología | G27: Demoras en los tiempos de ejecución del proyecto y/o servicio. | H27: IDEXUD | I27: Posible | J27: Menor | K27: =IF(OR(I27=0,J27=0),"",INDEX(MCALOR,MATCH(I27,PROBABILIDAD,0),MATCH(J27,IMPACTO,0))) -> MODERADO | L27: el equipo de calidad del IDEXUD y el ILUD divulgación de la misión de la función de extensión a todos los grupos de interés. | M27: Asignado | N27: Adecuado | O27: Oportuna | P27: Detectar | Q27: Confiable | R27: Se investigan y resuelven oportunamente | S27: Completa | T27: 95 | U27: Moderado | V27: Se ejecuta de manera consistente por parte del responsable. | W27: Fuerte | X27: Moderado | Y27: =IF(SUM(T27:T32=0),"",AVERAGEIF(T27:T32,">0")) -> 95 | Z27: =IF(Y27="","",IF(Y27=0,"",IF(Y27=100,"Fuerte",IF(Y27<50,"Débil","Moderado")))) -> Moderado | AA27: Directamente | AB27: Directamente | AC27: =IF(Z27="Débil",0,IF(AND(Z27="Fuerte",AA27="Directamente"),2,IF(AND(Z27="Moderado",AA27="Directamente"),1,IF(AND(Z27="Moderado",AA27="No disminuye"),0,IF(AND(Z27="Fuerte",AA27="No disminuye"),0,""))))) -> 1 | AD27: =IF(Z27="Débil",0,IF(AND(Z27="Fuerte",AB27="Directamente"),2,IF(AND(Z27="Fuerte",AB27="Indirectamente"),1,IF(AND(Z27="Moderado",AB27="Directamente"),1,IF(AB27="No disminuye","0",IF(AND(Z27="Moderado",AB27="Indirectamente"),"0","")))))) -> 1 | AE27: =IF(L27="No hay controles establecidos.",I27,IF(AC27="","",IF(AND(I27="Rara vez",AC27>0),"Rara vez",IF(AND(I27="Improbable",AC27=2),"Rara vez",IF(AND(I27="Posible",AC27=2),"Rara vez",IF(AND(I27="Posible",AC27=1),"Improbable",IF(AND(I27="Probable",AC27=2),"Improbable",IF(AND(I27="Probable",AC27=1),"Posible",IF(AND(I27="Casi seguro",AC27=2),"Posible",IF(AND(I27="Casi seguro",AC27=1),"Probable",I27)))))))))) -> Improbable | AF27: =IF(L27="No hay controles establecidos.",J27,IF(AD27="","",IF(AND(J27="Insignificante",AD27>0),"Insignificante",IF(AND(J27="Menor",AD27>0),"Insignificante",IF(AND(J27="Moderado",AD27=1),"Menor",IF(AND(J27="Moderado",AD27=2),"Insignificante",IF(AND(J27="Mayor",AD27=1),"Moderado",IF(AND(J27="Mayor",AD27=2),"Menor",IF(AND(J27="Catastrófico",AD27=1),"Mayor",IF(AND(J27="Catastrófico",AD27=2),"Moderado",J27)))))))))) -> Insignificante | AG27: =IF(OR(AE27="",AF27=""),"",INDEX(MCALOR,MATCH(AE27,PROBABILIDAD,0),MATCH(AF27,IMPACTO,0))) -> BAJO | AH27: Reducir | AI27: El equipo del procesos , constantemente divulgará y sensibilizará la información institucional misional y estratégica de interés en todos de extensión y responsabilidad social de la universidad y de servicios, eventos, socializaciones y demás espacios que lo requiera o solicite la ciudadanía y comunidad universitaria. | AJ27: lista de asistencia de las sensibilizaciones | AK27: Profesionales de IDEXUD e ILUD | AL27: Constantemente
C28: Falta de jornadas de socialización y sensibilización para el desarrollo de las actividades. | G28: Insatisfacción del cliente y/o usuario al no alcanzar las expectativas. | L28: los profesionales del IDEXUD Implementaran canales de comunicación acertados con el fin de generar reconocimiento del Instituto. | M28: Asignado | N28: Adecuado | O28: Oportuna | P28: Detectar | Q28: Confiable | R28: Se investigan y resuelven oportunamente | S28: Completa | T28: 95 | U28: Moderado | V28: Se ejecuta de manera consistente por parte del responsable. | W28: Fuerte | X28: Moderado | AI28: Elaborar, actualizar, aprobar, publicar e implementar los diferentes instrumentos y herramientas necesarias para el cumplimiento de las actividades propias del proceso de Extensión y Proyección Social | AJ28: Documentos | AK28: Profesionales de IDEXUD | AL28: Constantemente
C29: Dificultad en el aseguramiento de la disposición de insumos y recursos tecnológicos, por condiciones de locación. | G29: Reprocesamiento de actividades y procedimientos. | L29: el equipo de calidad del IDEXUD y el ILUD son los responsables de programar mesas de trabajo de manera periódica para asegurar articulación con el Sistema de la Universidad. | M29: Asignado | N29: Adecuado | O29: Oportuna | P29: Detectar | Q29: Confiable | R29: Se investigan y resuelven oportunamente | S29: Completa | T29: 95 | U29: Moderado | V29: Se ejecuta de manera consistente por parte del responsable. | W29: Fuerte | X29: Moderado
C30: Debilidad en la aplicación de acciones de seguimiento y control de proyectos | G30: Cumplimiento no asertivo de la misión del proceso de Extensión y Proyección Social y los objetivos del Instituto. | L30: el equipo de calidad del IDEXUD y el ILUD serna los encargados de la estructuración de formatos e instrumentos que permitan hacer seguimiento adecuado. | M30: Asignado | N30: Adecuado | O30: Oportuna | P30: Detectar | Q30: Confiable | R30: Se investigan y resuelven oportunamente | S30: Completa | T30: 95 | U30: Moderado | V30: Se ejecuta de manera consistente por parte del responsable. | W30: Fuerte | X30: Moderado
T31: 0
T32: 0
B33: 4 | C33: Retraso y/o demora en las actividades, procedimientos por parte de los contratistas. | D33: Retraso y demoras en el desarrollo y ejecución de las actividades inherentes a la etapa precontractual y contractual. | E33: El riesgo consiste en demoras en el desarrollo y ejecución de las actividades necesarias (Precontractual y contractual) para darle inicio a los proyectos del Instituto de Extensión de la Universidad Distrital Francisco José de Caldas (IDEXUD). | F33: Operativos | G33: Demoras en los tiempos de ejecución del proyecto y/o servicio. | H33: IDEXUD | I33: Posible | J33: Mayor | K33: =IF(OR(I33=0,J33=0),"",INDEX(MCALOR,MATCH(I33,PROBABILIDAD,0),MATCH(J33,IMPACTO,0))) -> EXTREMO | L33: el equipo de calidad del IDEXUD realizará el entrenamiento y sensibilización sobre formatos y el correcto manejo de los mismos. | M33: Asignado | N33: Adecuado | O33: Oportuna | P33: Detectar | Q33: Confiable | R33: Se investigan y resuelven oportunamente | S33: Completa | T33: 95 | U33: Moderado | V33: Se ejecuta de manera consistente por parte del responsable. | W33: Fuerte | X33: Moderado | Y33: =IF(SUM(T33:T38=0),"",AVERAGEIF(T33:T38,">0")) -> 96.25 | Z33: =IF(Y33="","",IF(Y33=0,"",IF(Y33=100,"Fuerte",IF(Y33<50,"Débil","Moderado")))) -> Moderado | AA33: Directamente | AB33: Directamente | AC33: =IF(Z33="Débil",0,IF(AND(Z33="Fuerte",AA33="Directamente"),2,IF(AND(Z33="Moderado",AA33="Directamente"),1,IF(AND(Z33="Moderado",AA33="No disminuye"),0,IF(AND(Z33="Fuerte",AA33="No disminuye"),0,""))))) -> 1 | AD33: =IF(Z33="Débil",0,IF(AND(Z33="Fuerte",AB33="Directamente"),2,IF(AND(Z33="Fuerte",AB33="Indirectamente"),1,IF(AND(Z33="Moderado",AB33="Directamente"),1,IF(AB33="No disminuye","0",IF(AND(Z33="Moderado",AB33="Indirectamente"),"0","")))))) -> 1 | AE33: =IF(L33="No hay controles establecidos.",I33,IF(AC33="","",IF(AND(I33="Rara vez",AC33>0),"Rara vez",IF(AND(I33="Improbable",AC33=2),"Rara vez",IF(AND(I33="Posible",AC33=2),"Rara vez",IF(AND(I33="Posible",AC33=1),"Improbable",IF(AND(I33="Probable",AC33=2),"Improbable",IF(AND(I33="Probable",AC33=1),"Posible",IF(AND(I33="Casi seguro",AC33=2),"Posible",IF(AND(I33="Casi seguro",AC33=1),"Probable",I33)))))))))) -> Improbable | AF33: =IF(L33="No hay controles establecidos.",J33,IF(AD33="","",IF(AND(J33="Insignificante",AD33>0),"Insignificante",IF(AND(J33="Menor",AD33>0),"Insignificante",IF(AND(J33="Moderado",AD33=1),"Menor",IF(AND(J33="Moderado",AD33=2),"Insignificante",IF(AND(J33="Mayor",AD33=1),"Moderado",IF(AND(J33="Mayor",AD33=2),"Menor",IF(AND(J33="Catastrófico",AD33=1),"Mayor",IF(AND(J33="Catastrófico",AD33=2),"Moderado",J33)))))))))) -> Moderado | AG33: =IF(OR(AE33="",AF33=""),"",INDEX(MCALOR,MATCH(AE33,PROBABILIDAD,0),MATCH(AF33,IMPACTO,0))) -> MODERADO | AH33: Reducir | AI33: Elaborar, actualizar, aprobar, publicar e implementar los diferentes instrumentos y herramientas necesarias para el cumplimiento de las actividades propias del proceso de Extensión y Proyección Social | AJ33: Documentos | AK33: Profesionales de IDEXUD | AL33: Constantemente
C34: Documentación incompleta y/o incorrecta. | G34: Cumplimiento no asertivo de la misión del proceso de Extensión y Proyección Social y los objetivos del Instituto. | L34: el jefe de del IDEXUD definirá perfiles y roles de cargo con el fin de dar claridad a los contratistas respecto a sus actividades. | M34: Asignado | N34: Adecuado | O34: Oportuna | P34: Prevenir | Q34: Confiable | R34: Se investigan y resuelven oportunamente | S34: Completa | T34: 100 | U34: Fuerte | V34: Se ejecuta de manera consistente por parte del responsable. | W34: Fuerte | X34: Fuerte
C35: Falta de estrategias de divulgación de la legislación y normativas vigentes. | G35: Insatisfacción del cliente y/o usuario al no alcanzar las expectativas | L35: El equipo de Calidad del IDEXUD será el responsable de la divulgación de procedimientos del Sistema Integrado con el fin de evitar el re proceso. | M35: Asignado | N35: Adecuado | O35: Oportuna | P35: Detectar | Q35: Confiable | R35: Se investigan y resuelven oportunamente | S35: Completa | T35: 95 | U35: Moderado | V35: Se ejecuta de manera consistente por parte del responsable. | W35: Fuerte | X35: Moderado
C36: Dificultad de realizar empalme de los contratistas al momento de llevar a cabo el cambio de los mismos. | G36: Reprocesamiento de actividades y procedimientos. | L36: el equipo de calidad del IDEXUD será el encargado de la estandarización de conservación de la documentación y proceso de inducción para nuevos contratista. | M36: Asignado | N36: Adecuado | O36: Oportuna | P36: Detectar | Q36: Confiable | R36: Se investigan y resuelven oportunamente | S36: Completa | T36: 95 | U36: Moderado | V36: Se ejecuta de manera consistente por parte del responsable. | W36: Fuerte | X36: Moderado
T37: 0
T38: 0
B39: 5 | C39: Deficiencia en el proceso de evaluación de los formadores en términos de criterios de evaluación y sus ponderaciones. | D39: Calificación de los formadores subjetiva. | E39: El proceso de evaluación de los formadores se ve afectado debido a que la evaluación no es desde los diferentes estamentos del ILUD (estudiantes, coordinadores y supervisión) y no se cuenta con una herramienta que permita evaluar los criterios de manera integral. | F39: Estratégico | G39: Formadores mal evaluados. | H39: ILUD | I39: Posible | J39: Mayor | K39: =IF(OR(I39=0,J39=0),"",INDEX(MCALOR,MATCH(I39,PROBABILIDAD,0),MATCH(J39,IMPACTO,0))) -> EXTREMO | L39: los profesionales del ILUD serán los responsables de garantizar la consolidación de la herramienta que permita hacer una evaluación integral del formador y verificarla constantemente para asegurar su funcionamiento adecuado. | M39: Asignado | N39: Adecuado | O39: Oportuna | P39: Detectar | Q39: Confiable | R39: Se investigan y resuelven oportunamente | S39: Completa | T39: 95 | U39: Moderado | V39: Se ejecuta de manera consistente por parte del responsable. | W39: Fuerte | X39: Moderado | Y39: =IF(SUM(T39:T44=0),"",AVERAGEIF(T39:T44,">0")) -> 95 | Z39: =IF(Y39="","",IF(Y39=0,"",IF(Y39=100,"Fuerte",IF(Y39<50,"Débil","Moderado")))) -> Moderado | AA39: Directamente | AB39: Directamente | AC39: =IF(Z39="Débil",0,IF(AND(Z39="Fuerte",AA39="Directamente"),2,IF(AND(Z39="Moderado",AA39="Directamente"),1,IF(AND(Z39="Moderado",AA39="No disminuye"),0,IF(AND(Z39="Fuerte",AA39="No disminuye"),0,""))))) -> 1 | AD39: =IF(Z39="Débil",0,IF(AND(Z39="Fuerte",AB39="Directamente"),2,IF(AND(Z39="Fuerte",AB39="Indirectamente"),1,IF(AND(Z39="Moderado",AB39="Directamente"),1,IF(AB39="No disminuye","0",IF(AND(Z39="Moderado",AB39="Indirectamente"),"0","")))))) -> 1 | AE39: =IF(L39="No hay controles establecidos.",I39,IF(AC39="","",IF(AND(I39="Rara vez",AC39>0),"Rara vez",IF(AND(I39="Improbable",AC39=2),"Rara vez",IF(AND(I39="Posible",AC39=2),"Rara vez",IF(AND(I39="Posible",AC39=1),"Improbable",IF(AND(I39="Probable",AC39=2),"Improbable",IF(AND(I39="Probable",AC39=1),"Posible",IF(AND(I39="Casi seguro",AC39=2),"Posible",IF(AND(I39="Casi seguro",AC39=1),"Probable",I39)))))))))) -> Improbable | AF39: =IF(L39="No hay controles establecidos.",J39,IF(AD39="","",IF(AND(J39="Insignificante",AD39>0),"Insignificante",IF(AND(J39="Menor",AD39>0),"Insignificante",IF(AND(J39="Moderado",AD39=1),"Menor",IF(AND(J39="Moderado",AD39=2),"Insignificante",IF(AND(J39="Mayor",AD39=1),"Moderado",IF(AND(J39="Mayor",AD39=2),"Menor",IF(AND(J39="Catastrófico",AD39=1),"Mayor",IF(AND(J39="Catastrófico",AD39=2),"Moderado",J39)))))))))) -> Moderado | AG39: =IF(OR(AE39="",AF39=""),"",INDEX(MCALOR,MATCH(AE39,PROBABILIDAD,0),MATCH(AF39,IMPACTO,0))) -> MODERADO | AH39: Reducir | AI39: Elaborar, actualizar, aprobar, publicar e implementar los diferentes instrumentos y herramientas necesarias para el cumplimiento de las actividades propias del proceso de Extensión y Proyección Social | AJ39: Formatos, instructivos , guías | AK39: Profesionales de ILUD | AL39: Constantemente
C40: El formato de evaluación de los formadores no permite una valoración objetiva e integral de los aspectos que se deben tener en cuenta en la apreciación de las actividades que ejecutan los formadores. | G40: Datos poco representativos para la toma de decisiones con respecto a la continuidad de los formadores. | T40: 0
C41: Falta de cultura de evaluación institucional. | G41: Continuidad de los formadores mal evaluados en el Instituto. | T41: 0
T42: 0
T43: 0
T44: 0
B45: 6 | C45: La normatividad existente no es lo suficientemente clara y específica a la hora de establecer los tiempos de ejecución de las actividades. | D45: Incumplimiento de las actividades consignadas en los contratos de los contratistas. | E45: Incumplimiento en la ejecución de las actividades específicas del contrato. | F45: Operativos | G45: No se garantiza que el contratista cumpla con las obligaciones pactadas con la Universidad. | H45: ILUD | I45: Rara vez | J45: Mayor | K45: =IF(OR(I45=0,J45=0),"",INDEX(MCALOR,MATCH(I45,PROBABILIDAD,0),MATCH(J45,IMPACTO,0))) -> ALTO | L45: Los profesionales del ilud son los responsables de la estandarización de seguimiento al cumplimiento de las actividades contractuales. | M45: Asignado | N45: Adecuado | O45: Oportuna | P45: Detectar | Q45: Confiable | R45: Se investigan y resuelven oportunamente | S45: Completa | T45: 95 | U45: Moderado | V45: Se ejecuta de manera consistente por parte del responsable. | W45: Fuerte | X45: Moderado | Y45: =IF(SUM(T45:T50=0),"",AVERAGEIF(T45:T50,">0")) -> 95 | Z45: =IF(Y45="","",IF(Y45=0,"",IF(Y45=100,"Fuerte",IF(Y45<50,"Débil","Moderado")))) -> Moderado | AA45: Directamente | AB45: Directamente | AC45: =IF(Z45="Débil",0,IF(AND(Z45="Fuerte",AA45="Directamente"),2,IF(AND(Z45="Moderado",AA45="Directamente"),1,IF(AND(Z45="Moderado",AA45="No disminuye"),0,IF(AND(Z45="Fuerte",AA45="No disminuye"),0,""))))) -> 1 | AD45: =IF(Z45="Débil",0,IF(AND(Z45="Fuerte",AB45="Directamente"),2,IF(AND(Z45="Fuerte",AB45="Indirectamente"),1,IF(AND(Z45="Moderado",AB45="Directamente"),1,IF(AB45="No disminuye","0",IF(AND(Z45="Moderado",AB45="Indirectamente"),"0","")))))) -> 1 | AE45: =IF(L45="No hay controles establecidos.",I45,IF(AC45="","",IF(AND(I45="Rara vez",AC45>0),"Rara vez",IF(AND(I45="Improbable",AC45=2),"Rara vez",IF(AND(I45="Posible",AC45=2),"Rara vez",IF(AND(I45="Posible",AC45=1),"Improbable",IF(AND(I45="Probable",AC45=2),"Improbable",IF(AND(I45="Probable",AC45=1),"Posible",IF(AND(I45="Casi seguro",AC45=2),"Posible",IF(AND(I45="Casi seguro",AC45=1),"Probable",I45)))))))))) -> Rara vez | AF45: =IF(L45="No hay controles establecidos.",J45,IF(AD45="","",IF(AND(J45="Insignificante",AD45>0),"Insignificante",IF(AND(J45="Menor",AD45>0),"Insignificante",IF(AND(J45="Moderado",AD45=1),"Menor",IF(AND(J45="Moderado",AD45=2),"Insignificante",IF(AND(J45="Mayor",AD45=1),"Moderado",IF(AND(J45="Mayor",AD45=2),"Menor",IF(AND(J45="Catastrófico",AD45=1),"Mayor",IF(AND(J45="Catastrófico",AD45=2),"Moderado",J45)))))))))) -> Moderado | AG45: =IF(OR(AE45="",AF45=""),"",INDEX(MCALOR,MATCH(AE45,PROBABILIDAD,0),MATCH(AF45,IMPACTO,0))) -> MODERADO | AH45: Reducir | AI45: Realizar seguimiento mensualmente a los informes de los contratistas | AJ45: Informe mensual, formato de seguimiento | AK45: Profesionales del ILUD | AL45: Constantemente
C46: Mecanismos de seguimiento u control no permiten asegurar la coherencia entre las actividades consignadas en el contrato y las ejecutadas. | G46: Perdida de la percepción de la calidad por parte de los usuarios. | T46: 0
C47: No existe protocolo específico para la elaboración de los informes de gestión de los contratistas más allá de los ítems contenidos en el contrato. | G47: Incumplimiento de los objetivos misionales del ILUD. | T47: 0
C48: Falta un sistema para verificar el cumplimiento de las actividades. | G48: Sobrecarga laboral de algunos contratista. | T48: 0
C49: Duplicidad o falta de delimitación clara de las actividades realizadas por los contratistas. | T49: 0
T50: 0
B51: 7 | C51: Inadecuado aprovechamiento de recursos. | D51: Incumplimiento de los programas y cursos de extensión desarrollados por el Instituto de Lenguas de la Universidad Distrital (ILUD) | E51: El riesgo consiste en el incumplimiento de los objetivos, alcances y cronogramas de los programas y cursos de extensión desarrollados por el Instituto de Lenguas de la Universidad Distrital. | F51: Operativos | G51: Pérdida de la imagen Institucional. | H51: ILUD | I51: Posible | J51: Mayor | K51: =IF(OR(I51=0,J51=0),"",INDEX(MCALOR,MATCH(I51,PROBABILIDAD,0),MATCH(J51,IMPACTO,0))) -> EXTREMO | L51: los profesionales serán los responsables de realizar la actualización de los programas siguiendo la normatividad vigente. | M51: Asignado | N51: Adecuado | O51: Oportuna | P51: Detectar | Q51: Confiable | R51: Se investigan y resuelven oportunamente | S51: Completa | T51: 95 | U51: Moderado | V51: Se ejecuta de manera consistente por parte del responsable. | W51: Fuerte | X51: Moderado | Y51: =IF(SUM(T51:T56=0),"",AVERAGEIF(T51:T56,">0")) -> 96.66666667 | Z51: =IF(Y51="","",IF(Y51=0,"",IF(Y51=100,"Fuerte",IF(Y51<50,"Débil","Moderado")))) -> Moderado | AA51: Directamente | AB51: Indirectamente | AC51: =IF(Z51="Débil",0,IF(AND(Z51="Fuerte",AA51="Directamente"),2,IF(AND(Z51="Moderado",AA51="Directamente"),1,IF(AND(Z51="Moderado",AA51="No disminuye"),0,IF(AND(Z51="Fuerte",AA51="No disminuye"),0,""))))) -> 1 | AD51: =IF(Z51="Débil",0,IF(AND(Z51="Fuerte",AB51="Directamente"),2,IF(AND(Z51="Fuerte",AB51="Indirectamente"),1,IF(AND(Z51="Moderado",AB51="Directamente"),1,IF(AB51="No disminuye","0",IF(AND(Z51="Moderado",AB51="Indirectamente"),"0","")))))) -> 0 | AE51: =IF(L51="No hay controles establecidos.",I51,IF(AC51="","",IF(AND(I51="Rara vez",AC51>0),"Rara vez",IF(AND(I51="Improbable",AC51=2),"Rara vez",IF(AND(I51="Posible",AC51=2),"Rara vez",IF(AND(I51="Posible",AC51=1),"Improbable",IF(AND(I51="Probable",AC51=2),"Improbable",IF(AND(I51="Probable",AC51=1),"Posible",IF(AND(I51="Casi seguro",AC51=2),"Posible",IF(AND(I51="Casi seguro",AC51=1),"Probable",I51)))))))))) -> Improbable | AF51: =IF(L51="No hay controles establecidos.",J51,IF(AD51="","",IF(AND(J51="Insignificante",AD51>0),"Insignificante",IF(AND(J51="Menor",AD51>0),"Insignificante",IF(AND(J51="Moderado",AD51=1),"Menor",IF(AND(J51="Moderado",AD51=2),"Insignificante",IF(AND(J51="Mayor",AD51=1),"Moderado",IF(AND(J51="Mayor",AD51=2),"Menor",IF(AND(J51="Catastrófico",AD51=1),"Mayor",IF(AND(J51="Catastrófico",AD51=2),"Moderado",J51)))))))))) -> Mayor | AG51: =IF(OR(AE51="",AF51=""),"",INDEX(MCALOR,MATCH(AE51,PROBABILIDAD,0),MATCH(AF51,IMPACTO,0))) -> ALTO | AH51: Reducir | AI51: Mantener Actualizados los programa y contenido de los cursos que ofrece el ilud | AJ51: Contenido programáticos actualizados | AK51: Directora y Profesionales del ILUD | AL51: Constantemente
C52: Falta de cubrimiento total por parte del Distrito. | G52: Disminución de ingresos por concepto de matrículas. | L52: los coordinadores serna los responsables de autorizara la posibilidad de cambiar de grupo a los estudiantes cuando se cierren los cursos por no completar el número mínimo requerido. | M52: Asignado | N52: Adecuado | O52: Oportuna | P52: Detectar | Q52: Confiable | R52: Se investigan y resuelven oportunamente | S52: Completa | T52: 95 | U52: Moderado | V52: Se ejecuta de manera consistente por parte del responsable. | W52: Fuerte | X52: Moderado | AI52: Mantener actualizados los horarios y capacidades de cada unos los curso que ofrece el ILUD | AJ52: Formato de seguimiento y aforo de los cursos | AK52: Coordinador y profesionales del ILUD | AL52: Constantemente
C53: Falta de apoyo en el crecimiento del Instituto, por parte de la Universidad. | G53: Incumplimiento de la misión del Instituto. | L53: los coordinadores serán los responsables de autorizar la posibilidad de aplazar el curso o reembolsar el dinero de la matrícula en el caso en que se cierren los cursos por no completar el número mínimo requerido cuando a un estudiante no le sirvan los horarios disponibles del los otros cursos. | M53: Asignado | N53: Adecuado | O53: Oportuna | P53: Prevenir | Q53: Confiable | R53: Se investigan y resuelven oportunamente | S53: Completa | T53: 100 | U53: Fuerte | V53: Se ejecuta de manera consistente por parte del responsable. | W53: Fuerte | X53: Fuerte
G54: Bajo impacto del Instituto en la comunidad. | T54: 0
T55: 0
T56: 0
B58: Elaboró | D58: Revisó | E58: Aprobó
B59: Nombre: Equipo SIGUD Cargo: N/A Fecha: 24/06/2020 | D59: Nombre: Omar Patiño Silva Cargo: Director IDEXUD Fecha: 30/07/2020 | E59: Nombre: Omar Patiño Silva Cargo: Director IDEXUD Fecha: 30/07/2020

Sheet 3) EPS - Cor
D2: MAPA INTEGRAL DE RIESGOS | E2: Código: GI-MG-001-FR-014
D3: Macroproceso: Direccionamiento Estratégico | E3: Versión: 03
D4: Proceso: Gestión Integrada | E4: Fecha de Aprobación: 14/01/2020
C6: EJE DE CORRUPCIÓN
C8: Proceso: | D8: Extensión y Proyección Social
C9: Objetivo del Proceso: | D9: =IF(D8=0,"",VLOOKUP(D8,'[9]Datos SGC'!B60:C81,2)) -> Promover la vinculación de la Universidad Distrital Francisco José de Caldas con su entorno social, a través de la coordinación de los programas, planes y proyectos de Extensión y Proyección Social, en articulación a la Docencia y la Investigación.
B12: IDENTIFICACIÓN DEL RIESGO | H12: ANÁLISIS DEL RIESGO | K12: EVALUACIÓN DEL RIESGO | AH12: TRATAMIENTO DEL RIESGO
B13: N° | C13: Causa o fuente | D13: Riesgo | E13: Descripción | F13: Consecuencias | G13: Unidad(es) que reportan el Riesgo | H13: Probabilidad | I13: Impacto | J13: Zona de Riesgo Inherente | K13: Controles existentes | L13: Criterios de evaluación del Diseño del Control | S13: Peso en la evaluación de diseño del Control | T13: Peso en la evaluación de diseño del Control | U13: Ejecución del Control | V13: Peso en la evaluación de la ejecución del Control | W13: Solidez individual del Control | X13: Solidez del Conjunto de Controles | Y13: Solidez del Conjunto de Controles | Z13: Controles ayudan a disminuir la probabilidad | AA13: Controles ayudan a disminuir el impacto | AB13: Desplazamiento en la Probabilidad | AC13: Desplazamiento en el Impacto | AD13: Probabilidad Residual | AE13: Impacto Residual | AF13: Zona de Riesgo Residual | AG13: Tratamiento al Riesgo | AH13: Acciones | AI13: Soporte | AJ13: Responsable | AK13: Tiempo
L14: Asignación del Responsable | M14: Segregación y autoridad del Responsable | N14: Periodicidad | O14: Propósito | P14: Cómo se realiza la actividad de Control | Q14: Qué pasa con las desviaciones | R14: Evidencia de la Ejecución del Control
B15: 1 | C15: Mecanismos inadecuados para el correcto flujo de información, en los diferentes niveles del Instituto. | D15: Toma de decisiones con base en documentos alterados | E15: El riesgo consiste en la toma de decisiones no acertadas que vayan en contravía de los intereses y/o la misión del Instituto de Extensión de la Universidad Distrital Francisco José de Caldas (IDEXUD), debido al uso de documentos adulterados. | F15: Alteración de la función misional del Instituto en la toma de decisiones no adecuadas. | G15: IDEXUD | H15: Posible | I15: Catastrófico | J15: =IF(OR(H15=0,I15=0),"",INDEX(MCALOR,MATCH(H15,PROBABILIDAD,0),MATCH(I15,IMPACTO,0))) -> EXTREMO | K15: El director del IDEXUD realizara la asignación de roles y responsabilidades encabezadas por coordinadores. | L15: Asignado | M15: Adecuado | N15: Oportuna | O15: Detectar | P15: Confiable | Q15: Se investigan y resuelven oportunamente | R15: Completa | S15: =IF(L15="",,VLOOKUP(L15,UNO,2,FALSE))+IF(M15="",0,VLOOKUP(M15,DOS,2,FALSE))+IF(O15="",0,VLOOKUP(O15,CUATRO,2,FALSE))+IF(P15="",0,VLOOKUP(P15,CINCO,2,FALSE))+IF(R15="",0,VLOOKUP(R15,SIETE,2,FALSE))+IF(N15="",0,VLOOKUP(N15,TRES,2,FALSE))+IF(Q15="",0,VLOOKUP(Q15,SEIS,2,FALSE)) -> 95 | T15: =IF(S15=0,"",IF(S15>=96,"Fuerte",IF(S15<=85,"Débil","Moderado"))) -> Moderado | U15: Se ejecuta de manera consistente por parte del responsable. | V15: =IF(U15="","",IF(U15="Se ejecuta de manera consistente por parte del responsable.","Fuerte",IF(U15="Se ejecuta algunas veces por parte del responsable.","Moderado","Débil"))) -> Fuerte | W15: =IF(T15="","",IF(AND(T15="Fuerte",V15="Fuerte"),"Fuerte",IF(OR((AND(T15="Moderado",V15="Moderado")),(AND(T15="Fuerte",V15="Moderado")),(AND(T15="Moderado",V15="Fuerte"))),"Moderado","Débil"))) -> Moderado | X15: =IF(SUM(S15:S20=0),"",AVERAGEIF(S15:S20,">0")) -> 96.66666667 | Y15: =IF(X15="","",IF(X15=0,"",IF(X15=100,"Fuerte",IF(X15<50,"Débil","Moderado")))) -> Moderado | Z15: Directamente | AA15: Directamente | AB15: =IF(Y15="Débil",0,IF(AND(Y15="Fuerte",Z15="Directamente"),2,IF(AND(Y15="Moderado",Z15="Directamente"),1,IF(AND(Y15="Moderado",Z15="No disminuye"),0,IF(AND(Y15="Fuerte",Z15="No disminuye"),0,""))))) -> 1 | AC15: =IF(AA15=0,"","0") -> 0 | AD15: =IF(Z15="","",IF(K15="No hay controles establecidos.",H15,IF(AB15="","",IF(AND(H15="Rara vez",AB15>0),"Rara vez",IF(AND(H15="Improbable",AB15=2),"Rara vez",IF(AND(H15="Posible",AB15=2),"Rara vez",IF(AND(H15="Posible",AB15=1),"Improbable",IF(AND(H15="Probable",AB15=2),"Improbable",IF(AND(H15="Probable",AB15=1),"Posible",IF(AND(H15="Casi seguro",AB15=2),"Posible",IF(AND(H15="Casi seguro",AB15=1),"Probable",H15))))))))))) -> Improbable | AE15: =IF(I15="","",I15) -> Catastrófico | AF15: =IF(OR(AD15="",AE15=""),"",INDEX(MCALOR,MATCH(AD15,PROBABILIDAD,0),MATCH(AE15,IMPACTO,0))) -> EXTREMO | AG15: Reducir | AH15: El director del IDEXUD planificara y definirá los roles y responsabilidades de los coordinadores | AI15: Asignación de roles y responsabilidades | AJ15: Director IDEXUD | AK15: Constantemente
C16: Adulteración de documentos presentados por terceros con complicidad interna. | F16: Hallazgos negativos en los entes de control. | K16: El director del IDEXUD realizara la asignación de supervisores que sean profesores de planta para toma de decisiones en proyectos. | L16: Asignado | M16: Adecuado | N16: Oportuna | O16: Detectar | P16: Confiable | Q16: Se investigan y resuelven oportunamente | R16: Completa | S16: 95 | T16: Moderado | U16: Se ejecuta de manera consistente por parte del responsable. | V16: Fuerte | W16: Moderado | AH16: Asignación de los supervisores de lo proyectos | AI16: Resolución de supervisión | AJ16: Director IDEXUD | AK16: Constantemente
C17: Políticas deficientes o inexistentes para el manejo, control y seguridad de información. | F17: Deterioro del buen nombre del Instituto. | K17: los profesionales de sistemas del IDEXUD realizarán el Fortalecimiento el Sistema de Seguridad de la Información. | L17: Asignado | M17: Adecuado | N17: Oportuna | O17: Prevenir | P17: Confiable | Q17: Se investigan y resuelven oportunamente | R17: Completa | S17: 100 | T17: Fuerte | U17: Se ejecuta de manera consistente por parte del responsable. | V17: Fuerte | W17: Fuerte | AH17: Actualización del sistema de información | AI17: Actas de seguimiento, informe de actividades | AJ17: Profesionales del IDEXUD | AK17: Constantemente
C18: Falta de estrategias de divulgación de la legislación y normativas vigentes con el fin de generar el oportuno manejo, desarrollo y seguimiento de los proyectos. | F18: Derroche y/o desaprovechamiento de los recursos e insumos. | S18: 0
S19: 0
S20: 0
B21: 2 | C21: Falta de fortalecimiento de los canales de comunicación. | D21: Manejo indebido de información del Instituto a partes interesadas | E21: El riesgo consiste en la pérdida y/o manejo inadecuado de la información del Instituto de Extensión de la Universidad Distrital Francisco José de Caldas (IDEXUD) | F21: Hallazgos negativos en los entes de control. | G21: IDEXUD | H21: Posible | I21: Mayor | J21: =IF(OR(H21=0,I21=0),"",INDEX(MCALOR,MATCH(H21,PROBABILIDAD,0),MATCH(I21,IMPACTO,0))) -> EXTREMO | K21: Los profesionales de sistemas del IDEXUD elaboraron una guía interna de manejo de la información física para salvaguardarla. | L21: Asignado | M21: Adecuado | N21: Oportuna | O21: Prevenir | P21: Confiable | Q21: Se investigan y resuelven oportunamente | R21: Completa | S21: 100 | T21: Fuerte | U21: Se ejecuta de manera consistente por parte del responsable. | V21: Fuerte | W21: Fuerte | X21: =IF(SUM(S21:S26=0),"",AVERAGEIF(S21:S26,">0")) -> 98.75 | Y21: =IF(X21="","",IF(X21=0,"",IF(X21=100,"Fuerte",IF(X21<50,"Débil","Moderado")))) -> Moderado | Z21: Directamente | AA21: Directamente | AB21: =IF(Y21="Débil",0,IF(AND(Y21="Fuerte",Z21="Directamente"),2,IF(AND(Y21="Moderado",Z21="Directamente"),1,IF(AND(Y21="Moderado",Z21="No disminuye"),0,IF(AND(Y21="Fuerte",Z21="No disminuye"),0,""))))) -> 1 | AC21: =IF(AA21=0,"","0") -> 0 | AD21: =IF(Z21="","",IF(K21="No hay controles establecidos.",H21,IF(AB21="","",IF(AND(H21="Rara vez",AB21>0),"Rara vez",IF(AND(H21="Improbable",AB21=2),"Rara vez",IF(AND(H21="Posible",AB21=2),"Rara vez",IF(AND(H21="Posible",AB21=1),"Improbable",IF(AND(H21="Probable",AB21=2),"Improbable",IF(AND(H21="Probable",AB21=1),"Posible",IF(AND(H21="Casi seguro",AB21=2),"Posible",IF(AND(H21="Casi seguro",AB21=1),"Probable",H21))))))))))) -> Improbable | AE21: =IF(I21="","",I21) -> Mayor | AF21: =IF(OR(AD21="",AE21=""),"",INDEX(MCALOR,MATCH(AD21,PROBABILIDAD,0),MATCH(AE21,IMPACTO,0))) -> ALTO | AG21: Reducir | AH21: Seguimiento al uso de la guía | AI21: Actas de seguimiento, informe de actividades | AJ21: Profesionales del IDEXUD | AK21: Constantemente
C22: Planeación no asertiva en estrategias de divulgación de la información del Instituto. | F22: Deterioro del buen nombre del Instituto. | K22: la dirección del IDEXUD desarrollo una plataforma para el manejo de la información digital. | L22: Asignado | M22: Adecuado | N22: Oportuna | O22: Detectar | P22: Confiable | Q22: Se investigan y resuelven oportunamente | R22: Completa | S22: 95 | T22: Moderado | U22: Se ejecuta de manera consistente por parte del responsable. | V22: Fuerte | W22: Moderado | AH22: seguimiento al uso y servicio de la plataforma | AI22: Acta de Seguimiento | AJ22: Director IDEXUD | AK22: Constantemente
C23: Entrega incompleta y/o extemporánea de la información. | F23: Desinformación a las partes interesadas. | K23: el IDEXUD cuenta con página web propia para brindar información a partes interesadas. | L23: Asignado | M23: Adecuado | N23: Oportuna | O23: Prevenir | P23: Confiable | Q23: Se investigan y resuelven oportunamente | R23: Completa | S23: 100 | T23: Fuerte | U23: Se ejecuta de manera consistente por parte del responsable. | V23: Fuerte | W23: Fuerte
C24: Complicidad de involucrados para cometer actividades de fraude. | F24: Retraso en las actividades y desarrollo de los proyectos por desinformación o manejo de información incorrecta. | K24: EL director del IDEXUD definido responsables que direccionan el manejo de la información y vigilan el cumplimiento de los estándares del Sistema. | L24: Asignado | M24: Adecuado | N24: Oportuna | O24: Prevenir | P24: Confiable | Q24: Se investigan y resuelven oportunamente | R24: Completa | S24: 100 | T24: Fuerte | U24: Se ejecuta de manera consistente por parte del responsable. | V24: Fuerte | W24: Fuerte
C25: Deficiencia en la infraestructura tecnológica. | F25: Sanciones e inhabilidades a funcionarios y/o contratistas. | S25: 0
C26: Conflicto de intereses. | S26: 0
B27: 3 | C27: Debilidad en la definición de los requisitos habilitantes y factores de ponderación para la contratación de personal. | D27: Manipulación en la vinculación del personal y tráfico de influencias | E27: El riesgo consiste en la contratación y vinculación de personal del Instituto de Extensión de la Universidad Francisco José de Caldas generando favorabilidad a interesados. | F27: Incumplimiento o retraso en las actividades por parte del personal inexperto. | G27: IDEXUD | H27: Posible | I27: Mayor | J27: =IF(OR(H27=0,I27=0),"",INDEX(MCALOR,MATCH(H27,PROBABILIDAD,0),MATCH(I27,IMPACTO,0))) -> EXTREMO | K27: el director del IDEXUD Definirá los Roles y perfiles de cargo para la contratación del IDEXUD. | L27: Asignado | M27: Adecuado | N27: Oportuna | O27: Prevenir | P27: Confiable | Q27: Se investigan y resuelven oportunamente | R27: Completa | S27: 100 | T27: Fuerte | U27: Se ejecuta de manera consistente por parte del responsable. | V27: Fuerte | W27: Fuerte | X27: =IF(SUM(S27:S32=0),"",AVERAGEIF(S27:S32,">0")) -> 98.33333333 | Y27: =IF(X27="","",IF(X27=0,"",IF(X27=100,"Fuerte",IF(X27<50,"Débil","Moderado")))) -> Moderado | Z27: Directamente | AA27: Directamente | AB27: =IF(Y27="Débil",0,IF(AND(Y27="Fuerte",Z27="Directamente"),2,IF(AND(Y27="Moderado",Z27="Directamente"),1,IF(AND(Y27="Moderado",Z27="No disminuye"),0,IF(AND(Y27="Fuerte",Z27="No disminuye"),0,""))))) -> 1 | AC27: =IF(AA27=0,"","0") -> 0 | AD27: =IF(Z27="","",IF(K27="No hay controles establecidos.",H27,IF(AB27="","",IF(AND(H27="Rara vez",AB27>0),"Rara vez",IF(AND(H27="Improbable",AB27=2),"Rara vez",IF(AND(H27="Posible",AB27=2),"Rara vez",IF(AND(H27="Posible",AB27=1),"Improbable",IF(AND(H27="Probable",AB27=2),"Improbable",IF(AND(H27="Probable",AB27=1),"Posible",IF(AND(H27="Casi seguro",AB27=2),"Posible",IF(AND(H27="Casi seguro",AB27=1),"Probable",H27))))))))))) -> Improbable | AE27: =IF(I27="","",I27) -> Mayor | AF27: =IF(OR(AD27="",AE27=""),"",INDEX(MCALOR,MATCH(AD27,PROBABILIDAD,0),MATCH(AE27,IMPACTO,0))) -> ALTO | AG27: Reducir | AH27: El director del IDEXUD planificara y definirá los roles y responsabilidades de los coordinadores | AI27: Asignación de roles y responsabilidades | AJ27: Director IDEXUD | AK27: Constantemente
C28: Uso indebido de las modalidades de contratación directa e indirecta. | F28: Desaprovechamiento de recursos y talento. | K28: los supervisores de los proyectos revisan y aprueban los roles y perfiles en cada proyecto de acuerdo al presupuesto presentado. | L28: Asignado | M28: Adecuado | N28: Oportuna | O28: Detectar | P28: Confiable | Q28: Se investigan y resuelven oportunamente | R28: Completa | S28: 95 | T28: Moderado | U28: Se ejecuta de manera consistente por parte del responsable. | V28: Fuerte | W28: Moderado | AH28: se realizara seguimiento y monitores los contratistas durante la ejecución de los contratos | AI28: Informes de avance de los proyectos e informes mensuales de actividades | AJ28: Supervisores | AK28: Constantemente
C29: Falta de rigurosidad en la aplicación de pruebas de selección. | F29: El personal puede estar sobre o sub valorado para el desempeño de las actividades que se le asignen. | K29: los supervisores realizan el seguimiento y monitoreo del cumplimiento de los requisitos contractuales para la vinculación del personal. | L29: Asignado | M29: Adecuado | N29: Oportuna | O29: Prevenir | P29: Confiable | Q29: Se investigan y resuelven oportunamente | R29: Completa | S29: 100 | T29: Fuerte | U29: Se ejecuta de manera consistente por parte del responsable. | V29: Fuerte | W29: Fuerte
C30: Omitir condiciones y/o requisitos jurídicos establecidos. | F30: Incumplimiento de proyectos y actividades realizadas por el Instituto. | S30: 0
F31: Incumplimiento de estándares establecidos para contratación en entidades públicas | S31: 0
S32: 0
B33: 4 | C33: Debilidad en mecanismos pertinentes al control financiero. | D33: Alteración financiera | E33: El riesgo consiste en la alteración de información financiera del Instituto de Extensión de la Universidad Distrital Francisco José de Caldas (IDEXUD), teniendo en cuenta su posible manipulación y/o desviación. | F33: Incumplimiento de la ley. | G33: IDEXUD | H33: Posible | I33: Catastrófico | J33: =IF(OR(H33=0,I33=0),"",INDEX(MCALOR,MATCH(H33,PROBABILIDAD,0),MATCH(I33,IMPACTO,0))) -> EXTREMO | K33: los profesionales del área de financiera del IDEXUD utilizan aplicativos para el manejo de información financiera. | L33: Asignado | M33: Adecuado | N33: Oportuna | O33: Prevenir | P33: Confiable | Q33: Se investigan y resuelven oportunamente | R33: Completa | S33: 100 | T33: Fuerte | U33: Se ejecuta de manera consistente por parte del responsable. | V33: Fuerte | W33: Fuerte | X33: =IF(SUM(S33:S38=0),"",AVERAGEIF(S33:S38,">0")) -> 97.5 | Y33: =IF(X33="","",IF(X33=0,"",IF(X33=100,"Fuerte",IF(X33<50,"Débil","Moderado")))) -> Moderado | Z33: Directamente | AA33: Directamente | AB33: =IF(Y33="Débil",0,IF(AND(Y33="Fuerte",Z33="Directamente"),2,IF(AND(Y33="Moderado",Z33="Directamente"),1,IF(AND(Y33="Moderado",Z33="No disminuye"),0,IF(AND(Y33="Fuerte",Z33="No disminuye"),0,""))))) -> 1 | AC33: =IF(AA33=0,"","0") -> 0 | AD33: =IF(Z33="","",IF(K33="No hay controles establecidos.",H33,IF(AB33="","",IF(AND(H33="Rara vez",AB33>0),"Rara vez",IF(AND(H33="Improbable",AB33=2),"Rara vez",IF(AND(H33="Posible",AB33=2),"Rara vez",IF(AND(H33="Posible",AB33=1),"Improbable",IF(AND(H33="Probable",AB33=2),"Improbable",IF(AND(H33="Probable",AB33=1),"Posible",IF(AND(H33="Casi seguro",AB33=2),"Posible",IF(AND(H33="Casi seguro",AB33=1),"Probable",H33))))))))))) -> Improbable | AE33: =IF(I33="","",I33) -> Catastrófico | AF33: =IF(OR(AD33="",AE33=""),"",INDEX(MCALOR,MATCH(AD33,PROBABILIDAD,0),MATCH(AE33,IMPACTO,0))) -> EXTREMO | AG33: Reducir | AH33: se realizara seguimiento y monitoreo al ara financiera | AI33: Informes de seguimiento y ejecución | AJ33: Director IDEXUD | AK33: Constantemente
C34: Complicidad de involucrados para cometer actividades de fraude. | F34: Sanciones e inhabilidades a funcionarios y/o contratistas. | K34: la Coordinación Financiera del IDEXUD maneja las restricción de acceso a la información financiera. | L34: Asignado | M34: Adecuado | N34: Oportuna | O34: Detectar | P34: Confiable | Q34: Se investigan y resuelven oportunamente | R34: Completa | S34: 95 | T34: Moderado | U34: Se ejecuta de manera consistente por parte del responsable. | V34: Fuerte | W34: Moderado
C35: Desconocimiento de directrices para el adecuado manejo financiero. | F35: Investigaciones y posibles hallazgos negativos por parte de los entes de control. | S35: 0
C36: Toma de decisiones no acertadas por parte de los contratistas a causa del desconocimiento de procedimientos. | F36: Incumplimiento de proyectos y actividades realizadas por el Instituto. | S36: 0
C37: Deficiencia en la infraestructura de los sistemas de información y su monitoreo. | F37: Deterioro de la imagen y el buen nombre del Instituto. | S37: 0
S38: 0
B39: 5 | C39: Deterioro de los documentos. | D39: Pérdida y/o alteración de documentos | E39: El riesgo consiste en la pérdida y/o alteración de documentación asociada a las funciones y objetivos misionales del Instituto de Extensión de la Universidad Distrital Francisco José de Caldas (IDEXUD). | F39: Sanciones e inhabilidades a contratistas y funcionarios. | G39: IDEXUD | H39: Posible | I39: Mayor | J39: =IF(OR(H39=0,I39=0),"",INDEX(MCALOR,MATCH(H39,PROBABILIDAD,0),MATCH(I39,IMPACTO,0))) -> EXTREMO | K39: Los profesionales de archivo del IDEXUD implementan de tablas de retención documental. | L39: Asignado | M39: Adecuado | N39: Oportuna | O39: Prevenir | P39: Confiable | Q39: Se investigan y resuelven oportunamente | R39: Completa | S39: 100 | T39: Fuerte | U39: Se ejecuta de manera consistente por parte del responsable. | V39: Fuerte | W39: Fuerte | X39: =IF(SUM(S39:S44=0),"",AVERAGEIF(S39:S44,">0")) -> 97.5 | Y39: =IF(X39="","",IF(X39=0,"",IF(X39=100,"Fuerte",IF(X39<50,"Débil","Moderado")))) -> Moderado | Z39: Directamente | AA39: Directamente | AB39: =IF(Y39="Débil",0,IF(AND(Y39="Fuerte",Z39="Directamente"),2,IF(AND(Y39="Moderado",Z39="Directamente"),1,IF(AND(Y39="Moderado",Z39="No disminuye"),0,IF(AND(Y39="Fuerte",Z39="No disminuye"),0,""))))) -> 1 | AC39: =IF(AA39=0,"","0") -> 0 | AD39: =IF(Z39="","",IF(K39="No hay controles establecidos.",H39,IF(AB39="","",IF(AND(H39="Rara vez",AB39>0),"Rara vez",IF(AND(H39="Improbable",AB39=2),"Rara vez",IF(AND(H39="Posible",AB39=2),"Rara vez",IF(AND(H39="Posible",AB39=1),"Improbable",IF(AND(H39="Probable",AB39=2),"Improbable",IF(AND(H39="Probable",AB39=1),"Posible",IF(AND(H39="Casi seguro",AB39=2),"Posible",IF(AND(H39="Casi seguro",AB39=1),"Probable",H39))))))))))) -> Improbable | AE39: =IF(I39="","",I39) -> Mayor | AF39: =IF(OR(AD39="",AE39=""),"",INDEX(MCALOR,MATCH(AD39,PROBABILIDAD,0),MATCH(AE39,IMPACTO,0))) -> ALTO | AG39: Reducir | AH39: Elaborar, actualizar, aprobar, publicar e implementar los diferentes instrumentos y herramientas archivísticas necesarias para el cumplimiento de las actividades propias del proceso | AI39: Documentos | AJ39: Profesionales del IDEXUD | AK39: Constantemente
C40: Políticas deficientes o inexistentes para el manejo, control y seguridad de información y documentación. | F40: Incumplimiento de la ley. | K40: Los profesionales de archivo del IDEXUD manejan una plataforma del instituto para el manejo de la información digital. | L40: Asignado | M40: Adecuado | N40: Oportuna | O40: Detectar | P40: Confiable | Q40: Se investigan y resuelven oportunamente | R40: Completa | S40: 95 | T40: Moderado | U40: Se ejecuta de manera consistente por parte del responsable. | V40: Fuerte | W40: Moderado
C41: Fondo acumulado de documentos en archivos de gestión. | F41: Pérdida, imposibilidad de consulta y acceso limitado a la documentación. | S41: 0
C42: Falta de Tablas de retención documental para el correcto manejo de documentación física. | S42: 0
C43: Desorganización en los puestos de trabajo y las actividades encomendadas a contratistas. | S43: 0
S44: 0
B45: 6 | C45: Falta de institucionalidad de líderes de proyectos. | D45: Aprobación de propuestas, invitaciones que no se ajusten a las expectativas del instituto | E45: El riesgo consiste en la aprobación de propuestas que no estén dentro del marco de la normatividad aprobada para el Instituto ni de la pertinencia de la Universidad Distrital Francisco José de Caldas. | F45: Toma de decisiones erradas | G45: IDEXUD | H45: Posible | I45: Mayor | J45: =IF(OR(H45=0,I45=0),"",INDEX(MCALOR,MATCH(H45,PROBABILIDAD,0),MATCH(I45,IMPACTO,0))) -> EXTREMO | K45: El equipo de propuestas y licitaciones del IDEXUD realiza la revisión de las propuestas por parte del personal responsable teniendo en cuenta la normatividad. | L45: Asignado | M45: Adecuado | N45: Oportuna | O45: Prevenir | P45: Confiable | Q45: Se investigan y resuelven oportunamente | R45: Completa | S45: 100 | T45: Fuerte | U45: Se ejecuta de manera consistente por parte del responsable. | V45: Fuerte | W45: Fuerte | X45: =IF(SUM(S45:S50=0),"",AVERAGEIF(S45:S50,">0")) -> 97.5 | Y45: =IF(X45="","",IF(X45=0,"",IF(X45=100,"Fuerte",IF(X45<50,"Débil","Moderado")))) -> Moderado | Z45: Directamente | AA45: Directamente | AB45: =IF(Y45="Débil",0,IF(AND(Y45="Fuerte",Z45="Directamente"),2,IF(AND(Y45="Moderado",Z45="Directamente"),1,IF(AND(Y45="Moderado",Z45="No disminuye"),0,IF(AND(Y45="Fuerte",Z45="No disminuye"),0,""))))) -> 1 | AC45: =IF(AA45=0,"","0") -> 0 | AD45: =IF(Z45="","",IF(K45="No hay controles establecidos.",H45,IF(AB45="","",IF(AND(H45="Rara vez",AB45>0),"Rara vez",IF(AND(H45="Improbable",AB45=2),"Rara vez",IF(AND(H45="Posible",AB45=2),"Rara vez",IF(AND(H45="Posible",AB45=1),"Improbable",IF(AND(H45="Probable",AB45=2),"Improbable",IF(AND(H45="Probable",AB45=1),"Posible",IF(AND(H45="Casi seguro",AB45=2),"Posible",IF(AND(H45="Casi seguro",AB45=1),"Probable",H45))))))))))) -> Improbable | AE45: =IF(I45="","",I45) -> Mayor | AF45: =IF(OR(AD45="",AE45=""),"",INDEX(MCALOR,MATCH(AD45,PROBABILIDAD,0),MATCH(AE45,IMPACTO,0))) -> ALTO | AG45: Reducir | AH45: se realiza la revisión de cada una de las propuesta que se presentan | AI45: Propuestas | AJ45: Profesionales del IDEXUD | AK45: Constantemente
C46: Conflictos de intereses. | F46: Prestación del servicio sin la remuneración adecuada | K46: el comité de extensión aprueba las propuestas que se van a realizar | L46: Asignado | M46: Adecuado | N46: Oportuna | O46: Detectar | P46: Confiable | Q46: Se investigan y resuelven oportunamente | R46: Completa | S46: 95 | T46: Moderado | U46: Se ejecuta de manera consistente por parte del responsable. | V46: Fuerte | W46: Moderado | AH46: se presentan las propuesta para la aprobación por parte del comité | AI46: Acta de comité | AJ46: Director IDEXUD | AK46: Constantemente
C47: Personas queriendo hacer proyectos a nombre de la Universidad sin previo aval. | F47: Reprocesos | S47: 0
C48: Revisión errada de las propuestas para pre aprobación. | F48: Sanciones | S48: 0
C49: Desconocimiento de la normativa aplicable al instituto. | F49: Procesos disciplinarios | S49: 0
F50: Quejas e insatisfacción de las partes interesadas. Derechos de petición. | S50: 0
B51: 7 | C51: Elaboración errada del presupuesto. | D51: Variación presupuestal según lo planeado en la vida del proyecto. | E51: El riesgo consiste en la modificación que se le realiza al presupuesto de los proyectos por parte de las entidades contratantes. | F51: Insatisfacción del Cliente interno y externo. | G51: IDEXUD | H51: Casi seguro | I51: Mayor | J51: =IF(OR(H51=0,I51=0),"",INDEX(MCALOR,MATCH(H51,PROBABILIDAD,0),MATCH(I51,IMPACTO,0))) -> EXTREMO | K51: los supervisores realizan la revisión y aprobación de los presupuestos presentados para la ejecución de los proyectos | L51: Asignado | M51: Adecuado | N51: Oportuna | O51: Prevenir | P51: Confiable | Q51: Se investigan y resuelven oportunamente | R51: Completa | S51: 100 | T51: Fuerte | U51: Se ejecuta de manera consistente por parte del responsable. | V51: Fuerte | W51: Fuerte | X51: =IF(SUM(S51:S56=0),"",AVERAGEIF(S51:S56,">0")) -> 97.5 | Y51: =IF(X51="","",IF(X51=0,"",IF(X51=100,"Fuerte",IF(X51<50,"Débil","Moderado")))) -> Moderado | Z51: Directamente | AA51: Directamente | AB51: =IF(Y51="Débil",0,IF(AND(Y51="Fuerte",Z51="Directamente"),2,IF(AND(Y51="Moderado",Z51="Directamente"),1,""))) -> 1 | AC51: =IF(AA51=0,"","0") -> 0 | AD51: =IF(Z51="","",IF(K51="No hay controles establecidos.",H51,IF(AB51="","",IF(AND(H51="Rara vez",AB51>0),"Rara vez",IF(AND(H51="Improbable",AB51=2),"Rara vez",IF(AND(H51="Posible",AB51=2),"Rara vez",IF(AND(H51="Posible",AB51=1),"Improbable",IF(AND(H51="Probable",AB51=2),"Improbable",IF(AND(H51="Probable",AB51=1),"Posible",IF(AND(H51="Casi seguro",AB51=2),"Posible",IF(AND(H51="Casi seguro",AB51=1),"Probable",H51))))))))))) -> Probable | AE51: =IF(I51="","",I51) -> Mayor | AF51: =IF(OR(AD51="",AE51=""),"",INDEX(MCALOR,MATCH(AD51,PROBABILIDAD,0),MATCH(AE51,IMPACTO,0))) -> EXTREMO | AG51: Reducir | AH51: Se debe realizar la aprobación, seguimiento al presupuesto de cada uno de los procesos | AI51: Presupuestos Aprobados, informe de ejecución | AJ51: supervisores de los proyectos | AK51: Constantemente
C52: Desfinanciación del contrato/convenio. | F52: Demora en la prestación del servicio. | K52: los supervisores y profesionales asignados realizarán seguimiento a la ejecución y avance de los proyectos | L52: Asignado | M52: Adecuado | N52: Oportuna | O52: Detectar | P52: Confiable | Q52: Se investigan y resuelven oportunamente | R52: Completa | S52: 95 | T52: Moderado | U52: Se ejecuta de manera consistente por parte del responsable. | V52: Fuerte | W52: Moderado
C53: Recorte en los valores del personal. | F53: Sanciones. | S53: 0
C54: Se elaboran los presupuestos por cierto tiempo sin formula de ajuste. | F54: Procesos disciplinarios. | S54: 0
F55: Prestación del servicio sin la remuneración adecuada. | S55: 0
F56: No hay beneficio Institucional. | S56: 0
B58: Elaboró | D58: Revisó | E58: Aprobó
B59: Nombre: Equipo SIGUD Cargo: N/A Fecha: 24/06/2020 | D59: Nombre: Omar Patiño Silva Cargo: Director IDEXUD Fecha: 30/07/2020 | E59: Nombre: Omar Patiño Silva Cargo: Director IDEXUD Fecha: 30/07/2020

Sheet 4) PEI - Cal
D2: MAPA INTEGRAL DE RIESGOS | E2: Código: GI-MG-001-FR-014
D3: Macroproceso: Direccionamiento Estratégico | E3: Versión: 03
D4: Proceso: Gestión Integrada | E4: Fecha de Aprobación: 14/01/2020
C6: EJE DE CALIDAD
C8: Proceso: | D8: Planeación Estratégica Institucional
C9: Objetivo del Proceso: | D9: =IF(D8=0,"",VLOOKUP(D8,'Datos SGC'!B60:C81,2)) -> Coordinar y orientar el diseño y la implementación de estrategias, políticas, programas, y proyectos con el fin de dar cumplimiento a la misión, visión y objetivos institucionales, enmarcados en el Sistema de Planeación Institucional.
B12: IDENTIFICACIÓN DEL RIESGO | I12: ANÁLISIS DEL RIESGO | L12: EVALUACIÓN DEL RIESGO | AI12: TRATAMIENTO DEL RIESGO
B13: N° | C13: Causa o fuente | D13: Riesgo | E13: Descripción | F13: Tipo de Riesgo | G13: Consecuencias | H13: Unidad(es) que reportan al Riesgo | I13: Probabilidad | J13: Impacto | K13: Zona de Riesgo Inherente | L13: Controles existentes | M13: Criterios de evaluación del Diseño del Control | T13: Peso en la evaluación de diseño del Control | U13: Peso en la evaluación de diseño del Control | V13: Ejecución del Control | W13: Peso en la evaluación de la ejecución del Control | X13: Solidez individual del Control | Y13: Solidez del Conjunto de Controles | Z13: Solidez del Conjunto de Controles | AA13: Controles ayudan a disminuir la probabilidad | AB13: Controles ayudan a disminuir el impacto | AC13: Desplazamiento en la Probabilidad | AD13: Desplazamiento en el Impacto | AE13: Probabilidad Residual | AF13: Impacto Residual | AG13: Zona de Riesgo Residual | AH13: Tratamiento al Riesgo | AI13: Acciones | AJ13: Soporte | AK13: Responsable | AL13: Tiempo
M14: Asignación del Responsable | N14: Segregación y autoridad del Responsable | O14: Periodicidad | P14: Propósito | Q14: Cómo se realiza la actividad de Control | R14: Qué pasa con las desviaciones | S14: Evidencia de la Ejecución del Control
B15: 1 | C15: Mayores compromisos y obligaciones por atender (incremento de los gastos recurrentes, nuevas necesidades, afectación por efectos macroeconómicos, etc.). | D15: Desfinanciación de la Universidad. | E15: Recursos insuficientes para ejecutar los Planes y Proyectos establecidos por la Institución, generando insuficiencia para dar cumplimiento a la misión, visión y objetivos institucionales. | F15: Financieros | G15: Imposibilidad de ejecutar proyectos de inversión, de conformidad con las metas institucionales de desarrollo. | H15: Oficina Asesora de Planeación y Control | I15: Probable | J15: Mayor | K15: =IF(OR(I15=0,J15=0),"",INDEX(MCALOR,MATCH(I15,PROBABILIDAD,0),MATCH(J15,IMPACTO,0))) -> EXTREMO | L15: Los Profesionales de la Oficina Asesora de Planeación y Control (Banco de Proyectos y Equipo de Planes) anualmente cuantifican las necesidades de la Universidad y las comparan con el recurso disponible con el fin de: identificar el déficit financiero, informar oportunamente al Consejo Superior Universitario y a las entidades externas, y analizar la posibilidad de negociar recursos adicionales. El déficit queda evidenciado cuando se compara el presupuesto proyectado con el asignado, y el reporte del mismo se visualiza en las actas del Consejo Superior Universitario. | M15: Asignado | N15: Adecuado | O15: Oportuna | P15: Detectar | Q15: Confiable | R15: Se investigan y resuelven oportunamente | S15: Completa | T15: =IF(M15="",,VLOOKUP(M15,UNO,2,FALSE))+IF(N15="",0,VLOOKUP(N15,DOS,2,FALSE))+IF(P15="",0,VLOOKUP(P15,CUATRO,2,FALSE))+IF(Q15="",0,VLOOKUP(Q15,CINCO,2,FALSE))+IF(S15="",0,VLOOKUP(S15,SIETE,2,FALSE))+IF(O15="",0,VLOOKUP(O15,TRES,2,FALSE))+IF(R15="",0,VLOOKUP(R15,SEIS,2,FALSE)) -> 95 | U15: =IF(T15=0,"",IF(T15>=96,"Fuerte",IF(T15<=85,"Débil","Moderado"))) -> Moderado | V15: Se ejecuta de manera consistente por parte del responsable. | W15: =IF(V15="","",IF(V15="Se ejecuta de manera consistente por parte del responsable.","Fuerte",IF(V15="Se ejecuta algunas veces por parte del responsable.","Moderado","Débil"))) -> Fuerte | X15: =IF(U15="","",IF(AND(U15="Fuerte",W15="Fuerte"),"Fuerte",IF(OR((AND(U15="Moderado",W15="Moderado")),(AND(U15="Fuerte",W15="Moderado")),(AND(U15="Moderado",W15="Fuerte"))),"Moderado","Débil"))) -> Moderado | Y15: =IF(SUM(T15:T20=0),"",AVERAGEIF(T15:T20,">0")) -> 98.33333333 | Z15: =IF(Y15="","",IF(Y15=0,"",IF(Y15=100,"Fuerte",IF(Y15<50,"Débil","Moderado")))) -> Moderado | AA15: Directamente | AB15: Indirectamente | AC15: =IF(Z15="Débil",0,IF(AND(Z15="Fuerte",AA15="Directamente"),2,IF(AND(Z15="Moderado",AA15="Directamente"),1,IF(AND(Z15="Moderado",AA15="No disminuye"),0,IF(AND(Z15="Fuerte",AA15="No disminuye"),0,""))))) -> 1 | AD15: =IF(Z15="Débil",0,IF(AND(Z15="Fuerte",AB15="Directamente"),2,IF(AND(Z15="Fuerte",AB15="Indirectamente"),1,IF(AND(Z15="Moderado",AB15="Directamente"),1,IF(AB15="No disminuye","0",IF(AND(Z15="Moderado",AB15="Indirectamente"),"0","")))))) -> 0 | AE15: =IF(L15="No hay controles establecidos.",I15,IF(AC15="","",IF(AND(I15="Rara vez",AC15>0),"Rara vez",IF(AND(I15="Improbable",AC15=2),"Rara vez",IF(AND(I15="Posible",AC15=2),"Rara vez",IF(AND(I15="Posible",AC15=1),"Improbable",IF(AND(I15="Probable",AC15=2),"Improbable",IF(AND(I15="Probable",AC15=1),"Posible",IF(AND(I15="Casi seguro",AC15=2),"Posible",IF(AND(I15="Casi seguro",AC15=1),"Probable",I15)))))))))) -> Posible | AF15: =IF(L15="No hay controles establecidos.",J15,IF(AD15="","",IF(AND(J15="Insignificante",AD15>0),"Insignificante",IF(AND(J15="Menor",AD15>0),"Insignificante",IF(AND(J15="Moderado",AD15=1),"Menor",IF(AND(J15="Moderado",AD15=2),"Insignificante",IF(AND(J15="Mayor",AD15=1),"Moderado",IF(AND(J15="Mayor",AD15=2),"Menor",IF(AND(J15="Catastrófico",AD15=1),"Mayor",IF(AND(J15="Catastrófico",AD15=2),"Moderado",J15)))))))))) -> Mayor | AG15: =IF(OR(AE15="",AF15=""),"",INDEX(MCALOR,MATCH(AE15,PROBABILIDAD,0),MATCH(AF15,IMPACTO,0))) -> EXTREMO | AH15: Reducir
C16: Escasas fuentes de financiación. | G16: Incapacidad de implementar lo establecido en los planes y proyectos institucionales. | L16: El Profesional de la Oficina Asesora de Planeación y Control, realiza seguimiento mensual de los informes de ejecución presupuestal de rentas e ingresos, con el objeto de identificar aquellos rubros susceptibles a bajo recaudo. Dicho análisis queda consignado en un informe, el cual va a servir de herramienta para la toma de decisiones de los entes colegiados responsables del presupuesto. | M16: Asignado | N16: Adecuado | O16: Oportuna | P16: Prevenir | Q16: Confiable | R16: Se investigan y resuelven oportunamente | S16: Completa | T16: =IF(M16="",,VLOOKUP(M16,UNO,2,FALSE))+IF(N16="",0,VLOOKUP(N16,DOS,2,FALSE))+IF(P16="",0,VLOOKUP(P16,CUATRO,2,FALSE))+IF(Q16="",0,VLOOKUP(Q16,CINCO,2,FALSE))+IF(S16="",0,VLOOKUP(S16,SIETE,2,FALSE))+IF(O16="",0,VLOOKUP(O16,TRES,2,FALSE))+IF(R16="",0,VLOOKUP(R16,SEIS,2,FALSE)) -> 100 | U16: =IF(T16=0,"",IF(T16>=96,"Fuerte",IF(T16<=85,"Débil","Moderado"))) -> Fuerte | V16: Se ejecuta de manera consistente por parte del responsable. | W16: =IF(V16="","",IF(V16="Se ejecuta de manera consistente por parte del responsable.","Fuerte",IF(V16="Se ejecuta algunas veces por parte del responsable.","Moderado","Débil"))) -> Fuerte | X16: =IF(U16="","",IF(AND(U16="Fuerte",W16="Fuerte"),"Fuerte",IF(OR((AND(U16="Moderado",W16="Moderado")),(AND(U16="Fuerte",W16="Moderado")),(AND(U16="Moderado",W16="Fuerte"))),"Moderado","Débil"))) -> Fuerte
C17: Limitada generación de venta de bienes y servicios. | G17: Desfinanciación de rubros. | L17: Los Profesionales de la Oficina Asesora de Planeación y Control (Banco de Proyectos y Equipo de Planes), realizan seguimiento mensual de los informes de ejecución presupuestal de gastos e inversiones, con el objeto de identificar aquellos rubros que presentan baja ejecución. Dicho análisis sirve como herramienta para presentar propuestas de modificaciones presupuestales ante el Consejo Superior Universitario o modificaciones al Plan Anual de Adquisiciones, según sea el caso, apoyando la toma de decisiones de los entes colegiados responsables del presupuesto. | M17: Asignado | N17: Adecuado | O17: Oportuna | P17: Prevenir | Q17: Confiable | R17: Se investigan y resuelven oportunamente | S17: Completa | T17: 100 | U17: Fuerte | V17: Se ejecuta de manera consistente por parte del responsable. | W17: Fuerte | X17: Fuerte
C18: Bajo recaudo de las fuentes de inversión incluidas en el Plan Plurianual de Inversión (Estampilla Ley 1825, Estampilla Prounal y demás Universidades, y Plan de Fomento a la Calidad). | G18: Afectación de la calidad académica debido a la disminución del recurso financiero que soporta las funciones misionales y procesos de acreditación de programas e institucional. | T18: 0
C19: Bajo recaudo de las fuentes de funcionamiento (cursos vacacionales, reintegro IVA ley 30, matrículas, entre otros). | G19: Disminución en la capacidad de crecimiento institucional. | T19: 0
T20: 0
B21: 2 | C21: Inadecuado proceso de formulación de los planes, en el que se establecen actividades y metas poco realistas. | D21: Incumplimiento de las actividades establecidas en los Planes Institucionales. | E21: Falta de ejecución o ejecución parcial de las acciones establecidas en los diferentes Planes Institucionales que componen el Sistema de Planeación de la Universidad (Plan Estratégico de Desarrollo, Plan Indicativo, Plan Operativo Anual de Inversiones y Planes de Acción), así como aquellos que por la naturaleza de la institución se generen (Plan Anticorrupción y de Atención al Ciudadano, etc.). | F21: Estratégico | G21: Incumplimiento de las metas estratégicas de la institución. | H21: Oficina Asesora de Planeación y Control | I21: Probable | J21: Mayor | K21: =IF(OR(I21=0,J21=0),"",INDEX(MCALOR,MATCH(I21,PROBABILIDAD,0),MATCH(J21,IMPACTO,0))) -> EXTREMO | L21: El Profesional de la Oficina Asesora de Planeación y Control, realiza proceso de seguimiento anual al avance del Plan Estratégico de Desarrollo 2018-2030 y el Plan Indicativo 2018-2021. El seguimiento se realiza en el instrumento construido por la Oficina, en el que se consolidan los reportes generados por las Unidades encargadas de cada una de las metas, las cuales se comparan con lo establecido en dichos planes. Los resultados y sus desviaciones se socializan ante el Equipo de Seguimiento y Evaluación del PED, el cual toma decisiones respecto a los resultados institucionales obtenidos. La decisiones del mismo quedan registradas en las actas de reunión. | M21: Asignado | N21: Adecuado | O21: Oportuna | P21: Detectar | Q21: Confiable | R21: Se investigan y resuelven oportunamente | S21: No existe | T21: =IF(M21="",,VLOOKUP(M21,UNO,2,FALSE))+IF(N21="",0,VLOOKUP(N21,DOS,2,FALSE))+IF(P21="",0,VLOOKUP(P21,CUATRO,2,FALSE))+IF(Q21="",0,VLOOKUP(Q21,CINCO,2,FALSE))+IF(S21="",0,VLOOKUP(S21,SIETE,2,FALSE))+IF(O21="",0,VLOOKUP(O21,TRES,2,FALSE))+IF(R21="",0,VLOOKUP(R21,SEIS,2,FALSE)) -> 85 | U21: Débil | V21: Se ejecuta algunas veces por parte del responsable. | W21: Moderado | X21: Débil | Y21: =IF(SUM(T21:T26=0),"",AVERAGEIF(T21:T26,">0")) -> 85 | Z21: =IF(Y21="","",IF(Y21=0,"",IF(Y21=100,"Fuerte",IF(Y21<50,"Débil","Moderado")))) -> Moderado | AA21: No disminuye | AB21: Directamente | AC21: =IF(Z21="Débil",0,IF(AND(Z21="Fuerte",AA21="Directamente"),2,IF(AND(Z21="Moderado",AA21="Directamente"),1,IF(AND(Z21="Moderado",AA21="No disminuye"),0,IF(AND(Z21="Fuerte",AA21="No disminuye"),0,""))))) -> 0 | AD21: =IF(Z21="Débil",0,IF(AND(Z21="Fuerte",AB21="Directamente"),2,IF(AND(Z21="Fuerte",AB21="Indirectamente"),1,IF(AND(Z21="Moderado",AB21="Directamente"),1,IF(AB21="No disminuye","0",IF(AND(Z21="Moderado",AB21="Indirectamente"),"0","")))))) -> 1 | AE21: =IF(L21="No hay controles establecidos.",I21,IF(AC21="","",IF(AND(I21="Rara vez",AC21>0),"Rara vez",IF(AND(I21="Improbable",AC21=2),"Rara vez",IF(AND(I21="Posible",AC21=2),"Rara vez",IF(AND(I21="Posible",AC21=1),"Improbable",IF(AND(I21="Probable",AC21=2),"Improbable",IF(AND(I21="Probable",AC21=1),"Posible",IF(AND(I21="Casi seguro",AC21=2),"Posible",IF(AND(I21="Casi seguro",AC21=1),"Probable",I21)))))))))) -> Probable | AF21: =IF(L21="No hay controles establecidos.",J21,IF(AD21="","",IF(AND(J21="Insignificante",AD21>0),"Insignificante",IF(AND(J21="Menor",AD21>0),"Insignificante",IF(AND(J21="Moderado",AD21=1),"Menor",IF(AND(J21="Moderado",AD21=2),"Insignificante",IF(AND(J21="Mayor",AD21=1),"Moderado",IF(AND(J21="Mayor",AD21=2),"Menor",IF(AND(J21="Catastrófico",AD21=1),"Mayor",IF(AND(J21="Catastrófico",AD21=2),"Moderado",J21)))))))))) -> Moderado | AG21: =IF(OR(AE21="",AF21=""),"",INDEX(MCALOR,MATCH(AE21,PROBABILIDAD,0),MATCH(AF21,IMPACTO,0))) -> ALTO | AH21: Reducir
C22: Programación y/o asignación insuficiente de recursos (financieros, físicos, técnicos, tecnológicos y de capital humano) para la implementación de las acciones establecidas en los planes. | G22: Incumplimiento de requisitos normativos. | L22: Los Profesionales de la Oficina Asesora de Planeación y Control - Equipo Banco de Proyectos, realizan el seguimiento presupuestal, metas y actividades en el sistema de seguimiento a los programas proyectos y metas del Plan de Desarrollo de Bogotá D.C.- SEGPLAN, trimestralmente, y en la herramienta informática de gestión y monitoreo a la ejecución de proyectos GESPROY – SGR, mensualmente. Adicionalmente, se realiza el informe de seguimiento y se remite a Gestores y Ordenadores de Gasto informando las alertas correspondientes de ejecución, para que estos tomen las medidas respectivas. | M22: Asignado | N22: Adecuado | O22: Oportuna | P22: Detectar | Q22: Confiable | R22: Se investigan y resuelven oportunamente | S22: Completa | T22: 95 | U22: Moderado | V22: Se ejecuta de manera consistente por parte del responsable. | W22: Fuerte | X22: Moderado
C23: Desarticulación del trabajo entre Unidades para la ejecución de las actividades establecidas en el Plan. | G23: Hallazgos y/o procesos por parte de entes de control (Contraloría Distrital, Veeduría Distrital, entre otros). | L23: Los Profesionales de la Oficina Asesora de Planeación y Control - Equipo Planes, realizan seguimiento trimestral al desarrollo de las actividades planteadas en el plan de acción por parte de cada Unidad Académica y/o Administrativa, a partir de lo cual se genera el informe de seguimiento trimestral al Plan de Acción Institucional. | M23: Asignado | N23: Adecuado | O23: Oportuna | P23: Detectar | Q23: Confiable | R23: No se investigan y resuelven oportunamente | S23: Incompleta | T23: 75 | U23: Débil | V23: Se ejecuta algunas veces por parte del responsable. | W23: Moderado | X23: Débil
C24: Inexistencia de acciones de monitoreo y seguimiento o deficiencia en la ejecución de las mismas, orientadas a verificar el cumplimiento de los planes. | G24: Afectación a la prestación de servicios misionales y de apoyo a lo misional. | T24: 0
C25: Falta de disposición y participación por parte de los Líderes, Gestores y Equipos de Trabajo de éstos, en el desarrollo de las actividades que competen a cada Unidad. | T25: 0
C26: Anormalidad en las actividades institucionales, generadas por sucesos internos o externos. | T26: 0
B27: 3 | C27: Falta de control y revisión de las actualizaciones de las normas institucionales, por parte de los actores encargados de ejecutar los procedimientos. | D27: Manejo de normatividad desactualizada. | E27: Aplicabilidad de normas no actualizadas y/o desconocimiento de los actos administrativos por parte de los actores encargados de ejecutar los procedimientos de la Universidad. | F27: Operativo | G27: Deficiencias en la ejecución de los Procedimientos. | H27: Secretaría General | I27: Posible | J27: Mayor | K27: =IF(OR(I27=0,J27=0),"",INDEX(MCALOR,MATCH(I27,PROBABILIDAD,0),MATCH(J27,IMPACTO,0))) -> EXTREMO | L27: El Secretario General, dependiendo el tipo y contenido del acto administrativo allegado (en caso de que el acto administrativo se allegue suscrito, solo se realiza el trámite de numeración y publicación), revisa y da Vo.Bo con el fin de devolverlo al productor del documento y dar continuidad al trámite de suscripción, en el caso de encontrar alguna inconsistencia se solicita que se realicen los ajustes pertinentes antes de proceder con la firma. La evidencia queda reflejada en la respuesta que da la Secretaría General, ya sea en físico o mediante correo electrónico. | M27: Asignado | N27: Inadecuado | O27: Oportuna | P27: Prevenir | Q27: Confiable | R27: Se investigan y resuelven oportunamente | S27: Completa | T27: 85 | U27: Débil | V27: Se ejecuta de manera consistente por parte del responsable. | W27: Fuerte | X27: Débil | Y27: =IF(SUM(T27:T32=0),"",AVERAGEIF(T27:T32,">0")) -> 90 | Z27: =IF(Y27="","",IF(Y27=0,"",IF(Y27=100,"Fuerte",IF(Y27<50,"Débil","Moderado")))) -> Moderado | AA27: Directamente | AB27: No disminuye | AC27: =IF(Z27="Débil",0,IF(AND(Z27="Fuerte",AA27="Directamente"),2,IF(AND(Z27="Moderado",AA27="Directamente"),1,IF(AND(Z27="Moderado",AA27="No disminuye"),0,IF(AND(Z27="Fuerte",AA27="No disminuye"),0,""))))) -> 1 | AD27: =IF(Z27="Débil",0,IF(AND(Z27="Fuerte",AB27="Directamente"),2,IF(AND(Z27="Fuerte",AB27="Indirectamente"),1,IF(AND(Z27="Moderado",AB27="Directamente"),1,IF(AB27="No disminuye","0",IF(AND(Z27="Moderado",AB27="Indirectamente"),"0","")))))) -> 0 | AE27: =IF(L27="No hay controles establecidos.",I27,IF(AC27="","",IF(AND(I27="Rara vez",AC27>0),"Rara vez",IF(AND(I27="Improbable",AC27=2),"Rara vez",IF(AND(I27="Posible",AC27=2),"Rara vez",IF(AND(I27="Posible",AC27=1),"Improbable",IF(AND(I27="Probable",AC27=2),"Improbable",IF(AND(I27="Probable",AC27=1),"Posible",IF(AND(I27="Casi seguro",AC27=2),"Posible",IF(AND(I27="Casi seguro",AC27=1),"Probable",I27)))))))))) -> Improbable | AF27: =IF(L27="No hay controles establecidos.",J27,IF(AD27="","",IF(AND(J27="Insignificante",AD27>0),"Insignificante",IF(AND(J27="Menor",AD27>0),"Insignificante",IF(AND(J27="Moderado",AD27=1),"Menor",IF(AND(J27="Moderado",AD27=2),"Insignificante",IF(AND(J27="Mayor",AD27=1),"Moderado",IF(AND(J27="Mayor",AD27=2),"Menor",IF(AND(J27="Catastrófico",AD27=1),"Mayor",IF(AND(J27="Catastrófico",AD27=2),"Moderado",J27)))))))))) -> Mayor | AG27: =IF(OR(AE27="",AF27=""),"",INDEX(MCALOR,MATCH(AE27,PROBABILIDAD,0),MATCH(AF27,IMPACTO,0))) -> ALTO | AH27: Reducir
C28: Falta de trazabilidad de la normatividad previa en la elaboración o actualización de actos administrativos referidos a procesos, procedimientos o normas. | G28: Vacíos y/o incumplimientos normativos. | L28: El Secretario General con apoyo de un funcionario de la Universidad (dependiendo la temática), realiza seguimiento a la normatividad previa y revisa la proyección de los actos administrativos expedidos por los órganos de dirección frente a la Ley y a las necesidades de la Universidad. La evidencia de la revisión se refleja en el cuadro de responsabilidad de cada acto administrativo. | M28: Asignado | N28: Adecuado | O28: Oportuna | P28: Prevenir | Q28: Confiable | R28: Se investigan y resuelven oportunamente | S28: Completa | T28: 100 | U28: Fuerte | V28: Se ejecuta de manera consistente por parte del responsable. | W28: Fuerte | X28: Fuerte
G29: Reprocesos en las actividades administrativas y académicas. | L29: El Profesional o secretario/ria de Secretaría General cada vez que se alleguen actos administrativos procede a revisar el uso del formato dispuesto para este tipo de documentos, con el fin de garantizar la correcta formulación de la normatividad, en caso de encontrar inconsistencias solicita al productor del documento que realice los ajustes requeridos lo cual queda evidenciado en los correos electrónicos de solicitud. | M29: Asignado | N29: Adecuado | O29: Oportuna | P29: Prevenir | Q29: Confiable | R29: No se investigan y resuelven oportunamente | S29: Completa | T29: 85 | U29: Débil | V29: Se ejecuta algunas veces por parte del responsable. | W29: Moderado | X29: Débil
T30: 0
T31: 0
T32: 0
B33: 4 | K33: =IF(OR(I33=0,J33=0),"",INDEX(MCALOR,MATCH(I33,PROBABILIDAD,0),MATCH(J33,IMPACTO,0))) ->  | T33: 0 | Y33: =IF(SUM(T33:T38=0),"",AVERAGEIF(T33:T38,">0")) ->  | Z33: =IF(Y33="","",IF(Y33=0,"",IF(Y33=100,"Fuerte",IF(Y33<50,"Débil","Moderado")))) ->  | AC33: =IF(Z33="Débil",0,IF(AND(Z33="Fuerte",AA33="Directamente"),2,IF(AND(Z33="Moderado",AA33="Directamente"),1,IF(AND(Z33="Moderado",AA33="No disminuye"),0,IF(AND(Z33="Fuerte",AA33="No disminuye"),0,""))))) ->  | AE33: =IF(L33="No hay controles establecidos.",I33,IF(AC33="","",IF(AND(I33="Rara vez",AC33>0),"Rara vez",IF(AND(I33="Improbable",AC33=2),"Rara vez",IF(AND(I33="Posible",AC33=2),"Rara vez",IF(AND(I33="Posible",AC33=1),"Improbable",IF(AND(I33="Probable",AC33=2),"Improbable",IF(AND(I33="Probable",AC33=1),"Posible",IF(AND(I33="Casi seguro",AC33=2),"Posible",IF(AND(I33="Casi seguro",AC33=1),"Probable",I33)))))))))) ->  | AG33: =IF(OR(AE33="",AF33=""),"",INDEX(MCALOR,MATCH(AE33,PROBABILIDAD,0),MATCH(AF33,IMPACTO,0))) -> 
T34: 0
T35: 0
T36: 0
T37: 0
T38: 0
B39: 5 | K39: =IF(OR(I39=0,J39=0),"",INDEX(MCALOR,MATCH(I39,PROBABILIDAD,0),MATCH(J39,IMPACTO,0))) ->  | T39: 0 | Y39: =IF(SUM(T39:T44=0),"",AVERAGEIF(T39:T44,">0")) ->  | Z39: =IF(Y39="","",IF(Y39=0,"",IF(Y39=100,"Fuerte",IF(Y39<50,"Débil","Moderado")))) ->  | AC39: =IF(Z39="Débil",0,IF(AND(Z39="Fuerte",AA39="Directamente"),2,IF(AND(Z39="Moderado",AA39="Directamente"),1,IF(AND(Z39="Moderado",AA39="No disminuye"),0,IF(AND(Z39="Fuerte",AA39="No disminuye"),0,""))))) ->  | AD39: =IF(Z39="Débil",0,IF(AND(Z39="Fuerte",AB39="Directamente"),2,IF(AND(Z39="Fuerte",AB39="Indirectamente"),1,IF(AND(Z39="Moderado",AB39="Directamente"),1,IF(AB39="No disminuye","0",IF(AND(Z39="Moderado",AB39="Indirectamente"),"0","")))))) ->  | AE39: =IF(L39="No hay controles establecidos.",I39,IF(AC39="","",IF(AND(I39="Rara vez",AC39>0),"Rara vez",IF(AND(I39="Improbable",AC39=2),"Rara vez",IF(AND(I39="Posible",AC39=2),"Rara vez",IF(AND(I39="Posible",AC39=1),"Improbable",IF(AND(I39="Probable",AC39=2),"Improbable",IF(AND(I39="Probable",AC39=1),"Posible",IF(AND(I39="Casi seguro",AC39=2),"Posible",IF(AND(I39="Casi seguro",AC39=1),"Probable",I39)))))))))) ->  | AF39: =IF(L39="No hay controles establecidos.",J39,IF(AD39="","",IF(AND(J39="Insignificante",AD39>0),"Insignificante",IF(AND(J39="Menor",AD39>0),"Insignificante",IF(AND(J39="Moderado",AD39=1),"Menor",IF(AND(J39="Moderado",AD39=2),"Insignificante",IF(AND(J39="Mayor",AD39=1),"Moderado",IF(AND(J39="Mayor",AD39=2),"Menor",IF(AND(J39="Catastrófico",AD39=1),"Mayor",IF(AND(J39="Catastrófico",AD39=2),"Moderado",J39)))))))))) ->  | AG39: =IF(OR(AE39="",AF39=""),"",INDEX(MCALOR,MATCH(AE39,PROBABILIDAD,0),MATCH(AF39,IMPACTO,0))) -> 
T40: 0
T41: 0
T42: 0
T43: 0
T44: 0
B45: 6 | K45: =IF(OR(I45=0,J45=0),"",INDEX(MCALOR,MATCH(I45,PROBABILIDAD,0),MATCH(J45,IMPACTO,0))) ->  | T45: 0 | Y45: =IF(SUM(T45:T50=0),"",AVERAGEIF(T45:T50,">0")) ->  | Z45: =IF(Y45="","",IF(Y45=0,"",IF(Y45=100,"Fuerte",IF(Y45<50,"Débil","Moderado")))) ->  | AC45: =IF(Z45="Débil",0,IF(AND(Z45="Fuerte",AA45="Directamente"),2,IF(AND(Z45="Moderado",AA45="Directamente"),1,IF(AND(Z45="Moderado",AA45="No disminuye"),0,IF(AND(Z45="Fuerte",AA45="No disminuye"),0,""))))) ->  | AD45: =IF(Z45="Débil",0,IF(AND(Z45="Fuerte",AB45="Directamente"),2,IF(AND(Z45="Fuerte",AB45="Indirectamente"),1,IF(AND(Z45="Moderado",AB45="Directamente"),1,IF(AB45="No disminuye","0",IF(AND(Z45="Moderado",AB45="Indirectamente"),"0","")))))) ->  | AE45: =IF(L45="No hay controles establecidos.",I45,IF(AC45="","",IF(AND(I45="Rara vez",AC45>0),"Rara vez",IF(AND(I45="Improbable",AC45=2),"Rara vez",IF(AND(I45="Posible",AC45=2),"Rara vez",IF(AND(I45="Posible",AC45=1),"Improbable",IF(AND(I45="Probable",AC45=2),"Improbable",IF(AND(I45="Probable",AC45=1),"Posible",IF(AND(I45="Casi seguro",AC45=2),"Posible",IF(AND(I45="Casi seguro",AC45=1),"Probable",I45)))))))))) ->  | AF45: =IF(L45="No hay controles establecidos.",J45,IF(AD45="","",IF(AND(J45="Insignificante",AD45>0),"Insignificante",IF(AND(J45="Menor",AD45>0),"Insignificante",IF(AND(J45="Moderado",AD45=1),"Menor",IF(AND(J45="Moderado",AD45=2),"Insignificante",IF(AND(J45="Mayor",AD45=1),"Moderado",IF(AND(J45="Mayor",AD45=2),"Menor",IF(AND(J45="Catastrófico",AD45=1),"Mayor",IF(AND(J45="Catastrófico",AD45=2),"Moderado",J45)))))))))) ->  | AG45: =IF(OR(AE45="",AF45=""),"",INDEX(MCALOR,MATCH(AE45,PROBABILIDAD,0),MATCH(AF45,IMPACTO,0))) -> 
T46: 0
T47: 0
T48: 0
T49: 0
T50: 0
B51: 7 | K51: =IF(OR(I51=0,J51=0),"",INDEX(MCALOR,MATCH(I51,PROBABILIDAD,0),MATCH(J51,IMPACTO,0))) ->  | T51: 0 | Y51: =IF(SUM(T51:T56=0),"",AVERAGEIF(T51:T56,">0")) ->  | Z51: =IF(Y51="","",IF(Y51=0,"",IF(Y51=100,"Fuerte",IF(Y51<50,"Débil","Moderado")))) ->  | AC51: =IF(Z51="Débil",0,IF(AND(Z51="Fuerte",AA51="Directamente"),2,IF(AND(Z51="Moderado",AA51="Directamente"),1,IF(AND(Z51="Moderado",AA51="No disminuye"),0,IF(AND(Z51="Fuerte",AA51="No disminuye"),0,""))))) ->  | AE51: =IF(L51="No hay controles establecidos.",I51,IF(AC51="","",IF(AND(I51="Rara vez",AC51>0),"Rara vez",IF(AND(I51="Improbable",AC51=2),"Rara vez",IF(AND(I51="Posible",AC51=2),"Rara vez",IF(AND(I51="Posible",AC51=1),"Improbable",IF(AND(I51="Probable",AC51=2),"Improbable",IF(AND(I51="Probable",AC51=1),"Posible",IF(AND(I51="Casi seguro",AC51=2),"Posible",IF(AND(I51="Casi seguro",AC51=1),"Probable",I51)))))))))) ->  | AF51: =IF(L51="No hay controles establecidos.",J51,IF(AD51="","",IF(AND(J51="Insignificante",AD51>0),"Insignificante",IF(AND(J51="Menor",AD51>0),"Insignificante",IF(AND(J51="Moderado",AD51=1),"Menor",IF(AND(J51="Moderado",AD51=2),"Insignificante",IF(AND(J51="Mayor",AD51=1),"Moderado",IF(AND(J51="Mayor",AD51=2),"Menor",IF(AND(J51="Catastrófico",AD51=1),"Mayor",IF(AND(J51="Catastrófico",AD51=2),"Moderado",J51)))))))))) ->  | AG51: =IF(OR(AE51="",AF51=""),"",INDEX(MCALOR,MATCH(AE51,PROBABILIDAD,0),MATCH(AF51,IMPACTO,0))) -> 
T52: 0
T53: 0
T54: 0
T55: 0
T56: 0
B58: Elaboró | D58: Revisó | E58: Aprobó
B59: Nombre: Equipo Oficina Asesora de Planeación y Control Cargo: N/A Fecha: 29/07/2020 | D59: Nombre: Carlos Ramón Bernal Echeverry Cargo: Jefe Oficina Asesora de Planeación y Control Fecha: 18/08/2020 | E59: Nombre: Carlos Ramón Bernal Echeverry Cargo: Jefe Oficina Asesora de Planeación y Control Fecha: 18/08/2020
D60: Nombre: Camilo Andrés Bustos Parra Cargo: Secretario General Fecha: 13/08/2020 | E60: Nombre: Camilo Andrés Bustos Parra Cargo: Secretario General Fecha: 13/08/2020

Sheet 4) PEI - Cor
D2: MAPA INTEGRAL DE RIESGOS | E2: Código: GI-MG-001-FR-014
D3: Macroproceso: Direccionamiento Estratégico | E3: Versión: 03
D4: Proceso: Gestión Integrada | E4: Fecha de Aprobación: 14/01/2020
C6: EJE DE CORRUPCIÓN
C8: Proceso: | D8: Planeación Estratégica Institucional
C9: Objetivo del Proceso: | D9: =IF(D8=0,"",VLOOKUP(D8,'Datos SGC'!B60:C81,2)) -> Coordinar y orientar el diseño y la implementación de estrategias, políticas, programas, y proyectos con el fin de dar cumplimiento a la misión, visión y objetivos institucionales, enmarcados en el Sistema de Planeación Institucional.
B12: IDENTIFICACIÓN DEL RIESGO | H12: ANÁLISIS DEL RIESGO | K12: EVALUACIÓN DEL RIESGO | AH12: TRATAMIENTO DEL RIESGO
B13: N° | C13: Causa o fuente | D13: Riesgo | E13: Descripción | F13: Consecuencias | G13: Unidad(es) que reportan el Riesgo | H13: Probabilidad | I13: Impacto | J13: Zona de Riesgo Inherente | K13: Controles existentes | L13: Criterios de evaluación del Diseño del Control | S13: Peso en la evaluación de diseño del Control | T13: Peso en la evaluación de diseño del Control | U13: Ejecución del Control | V13: Peso en la evaluación de la ejecución del Control | W13: Solidez individual del Control | X13: Solidez del Conjunto de Controles | Y13: Solidez del Conjunto de Controles | Z13: Controles ayudan a disminuir la probabilidad | AA13: Controles ayudan a disminuir el impacto | AB13: Desplazamiento en la Probabilidad | AC13: Desplazamiento en el Impacto | AD13: Probabilidad Residual | AE13: Impacto Residual | AF13: Zona de Riesgo Residual | AG13: Tratamiento al Riesgo | AH13: Acciones | AI13: Soporte | AJ13: Responsable | AK13: Tiempo
L14: Asignación del Responsable | M14: Segregación y autoridad del Responsable | N14: Periodicidad | O14: Propósito | P14: Cómo se realiza la actividad de Control | Q14: Qué pasa con las desviaciones | R14: Evidencia de la Ejecución del Control
B15: 1 | C15: Sobornos o cualquier tipo de dádivas de particulares para la programación de los recursos. | D15: Programación de recursos en los proyectos de inversión para beneficiar intereses particulares. | E15: Asignar o reasignar recursos a actividades no establecidas dentro de los proyectos de inversión sin el debido análisis, justificación y criterios de priorización, con el fin de favorecer intereses particulares. | F15: Afectación a acciones de inversión prioritarias, impactando negativamente el cumplimiento del Plan Plurianual de Inversiones y el Plan de Desarrollo Institucional. | G15: Oficina Asesora de Planeación y Control | H15: Posible | I15: Catastrófico | J15: =IF(OR(H15=0,I15=0),"",INDEX(MCALOR,MATCH(H15,PROBABILIDAD,0),MATCH(I15,IMPACTO,0))) -> EXTREMO | K15: Los profesionales del banco de proyectos de la Oficina Asesora de Planeación y Control acompañan metodológicamente la formulación de los proyectos de inversión por parte de los gestores de cada uno de éstos, en el marco del Plan de Desarrollo Distrital. Los Proyectos son socializados y aprobados por el Comité de Gestión y el Consejo Superior Universitario, los cuales, de considerarlo necesario pueden solicitar modificaciones en la programación de los proyectos. Las actividades de cada proyecto se incluyen anualmente en el Sistema SEGPLAN y el Plan Anual de Adquisiciones de la entidad. | L15: Asignado | M15: Adecuado | N15: Oportuna | O15: Prevenir | P15: Confiable | Q15: Se investigan y resuelven oportunamente | R15: Completa | S15: =IF(L15="",,VLOOKUP(L15,UNO,2,FALSE))+IF(M15="",0,VLOOKUP(M15,DOS,2,FALSE))+IF(O15="",0,VLOOKUP(O15,CUATRO,2,FALSE))+IF(P15="",0,VLOOKUP(P15,CINCO,2,FALSE))+IF(R15="",0,VLOOKUP(R15,SIETE,2,FALSE))+IF(N15="",0,VLOOKUP(N15,TRES,2,FALSE))+IF(Q15="",0,VLOOKUP(Q15,SEIS,2,FALSE)) -> 100 | T15: =IF(S15=0,"",IF(S15>=96,"Fuerte",IF(S15<=85,"Débil","Moderado"))) -> Fuerte | U15: Se ejecuta de manera consistente por parte del responsable. | V15: =IF(U15="","",IF(U15="Se ejecuta de manera consistente por parte del responsable.","Fuerte",IF(U15="Se ejecuta algunas veces por parte del responsable.","Moderado","Débil"))) -> Fuerte | W15: =IF(T15="","",IF(AND(T15="Fuerte",V15="Fuerte"),"Fuerte",IF(OR((AND(T15="Moderado",V15="Moderado")),(AND(T15="Fuerte",V15="Moderado")),(AND(T15="Moderado",V15="Fuerte"))),"Moderado","Débil"))) -> Fuerte | X15: =IF(SUM(S15:S20=0),"",AVERAGEIF(S15:S20,">0")) -> 100 | Y15: =IF(X15="","",IF(X15=0,"",IF(X15=100,"Fuerte",IF(X15<50,"Débil","Moderado")))) -> Fuerte | Z15: Directamente | AA15: No disminuye | AB15: =IF(Y15="Débil",0,IF(AND(Y15="Fuerte",Z15="Directamente"),2,IF(AND(Y15="Moderado",Z15="Directamente"),1,IF(AND(Y15="Moderado",Z15="No disminuye"),0,IF(AND(Y15="Fuerte",Z15="No disminuye"),0,""))))) -> 2 | AC15: =IF(AA15=0,"","0") -> 0 | AD15: =IF(Z15="","",IF(K15="No hay controles establecidos.",H15,IF(AB15="","",IF(AND(H15="Rara vez",AB15>0),"Rara vez",IF(AND(H15="Improbable",AB15=2),"Rara vez",IF(AND(H15="Posible",AB15=2),"Rara vez",IF(AND(H15="Posible",AB15=1),"Improbable",IF(AND(H15="Probable",AB15=2),"Improbable",IF(AND(H15="Probable",AB15=1),"Posible",IF(AND(H15="Casi seguro",AB15=2),"Posible",IF(AND(H15="Casi seguro",AB15=1),"Probable",H15))))))))))) -> Rara vez | AE15: =IF(I15="","",I15) -> Catastrófico | AF15: =IF(OR(AD15="",AE15=""),"",INDEX(MCALOR,MATCH(AD15,PROBABILIDAD,0),MATCH(AE15,IMPACTO,0))) -> EXTREMO | AG15: Reducir
C16: Presión por parte de grupos de poder (internos y externos). | F16: Procesos administrativos, disciplinarios, fiscales y penales por parte de entes de control. | K16: Los Gestores de los Proyectos de Inversión elevan la solicitud de modificaciones de actividades que se encuentran en el Plan Anual de Adquisiciones (PAA), ante la Oficina Asesora de Planeación y Control, quien verifica la pertinencia de dicha modificación. En caso de considerarse pertinente se eleva al Comité de Contratación para su revisión. Las modificaciones al PAA se aprueban a través de un acto administrativo de Rectoría. En caso contrario se comunica al Gestor la necesidad de justificar la solicitud. | L16: Asignado | M16: Adecuado | N16: Oportuna | O16: Prevenir | P16: Confiable | Q16: Se investigan y resuelven oportunamente | R16: Completa | S16: 100 | T16: =IF(S16=0,"",IF(S16>=96,"Fuerte",IF(S16<=85,"Débil","Moderado"))) -> Fuerte | U16: Se ejecuta de manera consistente por parte del responsable. | V16: =IF(U16="","",IF(U16="Se ejecuta de manera consistente por parte del responsable.","Fuerte",IF(U16="Se ejecuta algunas veces por parte del responsable.","Moderado","Débil"))) -> Fuerte | W16: =IF(T16="","",IF(AND(T16="Fuerte",V16="Fuerte"),"Fuerte",IF(OR((AND(T16="Moderado",V16="Moderado")),(AND(T16="Fuerte",V16="Moderado")),(AND(T16="Moderado",V16="Fuerte"))),"Moderado","Débil"))) -> Fuerte
C17: Omisión de información en la elaboración de los estudios que se realizan por la Alta Dirección. | F17: Deterioro de la imagen institucional ante la Comunidad Universitaria y sociedad en general. | S17: 0
C18: Incumplimiento de los procedimientos establecidos para la formulación y ejecución de los proyectos de inversión. | F18: Afectación del beneficio social esperado por la Universidad a la población objetivo. | S18: 0
F19: Incumplimiento de la normatividad asociada a destinación especifica de los recursos. | S19: 0
S20: 0
B21: 2 | J21: =IF(OR(H21=0,I21=0),"",INDEX(MCALOR,MATCH(H21,PROBABILIDAD,0),MATCH(I21,IMPACTO,0))) ->  | S21: 0 | X21: =IF(SUM(S21:S26=0),"",AVERAGEIF(S21:S26,">0")) ->  | Y21: =IF(X21="","",IF(X21=0,"",IF(X21=100,"Fuerte",IF(X21<50,"Débil","Moderado")))) ->  | AB21: =IF(Y21="Débil",0,IF(AND(Y21="Fuerte",Z21="Directamente"),2,IF(AND(Y21="Moderado",Z21="Directamente"),1,IF(AND(Y21="Moderado",Z21="No disminuye"),0,IF(AND(Y21="Fuerte",Z21="No disminuye"),0,""))))) ->  | AC21: =IF(AA21=0,"","0") ->  | AD21: =IF(Z21="","",IF(K21="No hay controles establecidos.",H21,IF(AB21="","",IF(AND(H21="Rara vez",AB21>0),"Rara vez",IF(AND(H21="Improbable",AB21=2),"Rara vez",IF(AND(H21="Posible",AB21=2),"Rara vez",IF(AND(H21="Posible",AB21=1),"Improbable",IF(AND(H21="Probable",AB21=2),"Improbable",IF(AND(H21="Probable",AB21=1),"Posible",IF(AND(H21="Casi seguro",AB21=2),"Posible",IF(AND(H21="Casi seguro",AB21=1),"Probable",H21))))))))))) ->  | AE21: =IF(I21="","",I21) ->  | AF21: =IF(OR(AD21="",AE21=""),"",INDEX(MCALOR,MATCH(AD21,PROBABILIDAD,0),MATCH(AE21,IMPACTO,0))) -> 
S22: 0
S23: 0
S24: 0
S25: 0
S26: 0
B27: 3 | J27: =IF(OR(H27=0,I27=0),"",INDEX(MCALOR,MATCH(H27,PROBABILIDAD,0),MATCH(I27,IMPACTO,0))) ->  | S27: 0 | X27: =IF(SUM(S27:S32=0),"",AVERAGEIF(S27:S32,">0")) ->  | Y27: =IF(X27="","",IF(X27=0,"",IF(X27=100,"Fuerte",IF(X27<50,"Débil","Moderado")))) ->  | AB27: =IF(Y27="Débil",0,IF(AND(Y27="Fuerte",Z27="Directamente"),2,IF(AND(Y27="Moderado",Z27="Directamente"),1,IF(AND(Y27="Moderado",Z27="No disminuye"),0,IF(AND(Y27="Fuerte",Z27="No disminuye"),0,""))))) ->  | AC27: =IF(AA27=0,"","0") ->  | AD27: =IF(Z27="","",IF(K27="No hay controles establecidos.",H27,IF(AB27="","",IF(AND(H27="Rara vez",AB27>0),"Rara vez",IF(AND(H27="Improbable",AB27=2),"Rara vez",IF(AND(H27="Posible",AB27=2),"Rara vez",IF(AND(H27="Posible",AB27=1),"Improbable",IF(AND(H27="Probable",AB27=2),"Improbable",IF(AND(H27="Probable",AB27=1),"Posible",IF(AND(H27="Casi seguro",AB27=2),"Posible",IF(AND(H27="Casi seguro",AB27=1),"Probable",H27))))))))))) ->  | AE27: =IF(I27="","",I27) ->  | AF27: =IF(OR(AD27="",AE27=""),"",INDEX(MCALOR,MATCH(AD27,PROBABILIDAD,0),MATCH(AE27,IMPACTO,0))) -> 
S28: 0
S29: 0
S30: 0
S31: 0
S32: 0
B33: 4 | J33: =IF(OR(H33=0,I33=0),"",INDEX(MCALOR,MATCH(H33,PROBABILIDAD,0),MATCH(I33,IMPACTO,0))) ->  | S33: 0 | X33: =IF(SUM(S33:S38=0),"",AVERAGEIF(S33:S38,">0")) ->  | Y33: =IF(X33="","",IF(X33=0,"",IF(X33=100,"Fuerte",IF(X33<50,"Débil","Moderado")))) ->  | AB33: =IF(Y33="Débil",0,IF(AND(Y33="Fuerte",Z33="Directamente"),2,IF(AND(Y33="Moderado",Z33="Directamente"),1,IF(AND(Y33="Moderado",Z33="No disminuye"),0,IF(AND(Y33="Fuerte",Z33="No disminuye"),0,""))))) ->  | AC33: =IF(AA33=0,"","0") ->  | AD33: =IF(Z33="","",IF(K33="No hay controles establecidos.",H33,IF(AB33="","",IF(AND(H33="Rara vez",AB33>0),"Rara vez",IF(AND(H33="Improbable",AB33=2),"Rara vez",IF(AND(H33="Posible",AB33=2),"Rara vez",IF(AND(H33="Posible",AB33=1),"Improbable",IF(AND(H33="Probable",AB33=2),"Improbable",IF(AND(H33="Probable",AB33=1),"Posible",IF(AND(H33="Casi seguro",AB33=2),"Posible",IF(AND(H33="Casi seguro",AB33=1),"Probable",H33))))))))))) ->  | AE33: =IF(I33="","",I33) ->  | AF33: =IF(OR(AD33="",AE33=""),"",INDEX(MCALOR,MATCH(AD33,PROBABILIDAD,0),MATCH(AE33,IMPACTO,0))) -> 
S34: 0
S35: 0
S36: 0
S37: 0
S38: 0
B39: 5 | J39: =IF(OR(H39=0,I39=0),"",INDEX(MCALOR,MATCH(H39,PROBABILIDAD,0),MATCH(I39,IMPACTO,0))) ->  | S39: 0 | X39: =IF(SUM(S39:S44=0),"",AVERAGEIF(S39:S44,">0")) ->  | Y39: =IF(X39="","",IF(X39=0,"",IF(X39=100,"Fuerte",IF(X39<50,"Débil","Moderado")))) ->  | AB39: =IF(Y39="Débil",0,IF(AND(Y39="Fuerte",Z39="Directamente"),2,IF(AND(Y39="Moderado",Z39="Directamente"),1,IF(AND(Y39="Moderado",Z39="No disminuye"),0,IF(AND(Y39="Fuerte",Z39="No disminuye"),0,""))))) ->  | AC39: =IF(AA39=0,"","0") ->  | AD39: =IF(Z39="","",IF(K39="No hay controles establecidos.",H39,IF(AB39="","",IF(AND(H39="Rara vez",AB39>0),"Rara vez",IF(AND(H39="Improbable",AB39=2),"Rara vez",IF(AND(H39="Posible",AB39=2),"Rara vez",IF(AND(H39="Posible",AB39=1),"Improbable",IF(AND(H39="Probable",AB39=2),"Improbable",IF(AND(H39="Probable",AB39=1),"Posible",IF(AND(H39="Casi seguro",AB39=2),"Posible",IF(AND(H39="Casi seguro",AB39=1),"Probable",H39))))))))))) ->  | AE39: =IF(I39="","",I39) ->  | AF39: =IF(OR(AD39="",AE39=""),"",INDEX(MCALOR,MATCH(AD39,PROBABILIDAD,0),MATCH(AE39,IMPACTO,0))) -> 
S40: 0
S41: 0
S42: 0
S43: 0
S44: 0
B45: 6 | J45: =IF(OR(H45=0,I45=0),"",INDEX(MCALOR,MATCH(H45,PROBABILIDAD,0),MATCH(I45,IMPACTO,0))) ->  | S45: 0 | X45: =IF(SUM(S45:S50=0),"",AVERAGEIF(S45:S50,">0")) ->  | Y45: =IF(X45="","",IF(X45=0,"",IF(X45=100,"Fuerte",IF(X45<50,"Débil","Moderado")))) ->  | AB45: =IF(Y45="Débil",0,IF(AND(Y45="Fuerte",Z45="Directamente"),2,IF(AND(Y45="Moderado",Z45="Directamente"),1,IF(AND(Y45="Moderado",Z45="No disminuye"),0,IF(AND(Y45="Fuerte",Z45="No disminuye"),0,""))))) ->  | AC45: =IF(AA45=0,"","0") ->  | AD45: =IF(Z45="","",IF(K45="No hay controles establecidos.",H45,IF(AB45="","",IF(AND(H45="Rara vez",AB45>0),"Rara vez",IF(AND(H45="Improbable",AB45=2),"Rara vez",IF(AND(H45="Posible",AB45=2),"Rara vez",IF(AND(H45="Posible",AB45=1),"Improbable",IF(AND(H45="Probable",AB45=2),"Improbable",IF(AND(H45="Probable",AB45=1),"Posible",IF(AND(H45="Casi seguro",AB45=2),"Posible",IF(AND(H45="Casi seguro",AB45=1),"Probable",H45))))))))))) ->  | AE45: =IF(I45="","",I45) ->  | AF45: =IF(OR(AD45="",AE45=""),"",INDEX(MCALOR,MATCH(AD45,PROBABILIDAD,0),MATCH(AE45,IMPACTO,0))) -> 
S46: 0
S47: 0
S48: 0
S49: 0
S50: 0
B51: 7 | J51: =IF(OR(H51=0,I51=0),"",INDEX(MCALOR,MATCH(H51,PROBABILIDAD,0),MATCH(I51,IMPACTO,0))) ->  | S51: 0 | X51: =IF(SUM(S51:S56=0),"",AVERAGEIF(S51:S56,">0")) ->  | Y51: =IF(X51="","",IF(X51=0,"",IF(X51=100,"Fuerte",IF(X51<50,"Débil","Moderado")))) ->  | AB51: =IF(Y51="Débil",0,IF(AND(Y51="Fuerte",Z51="Directamente"),2,IF(AND(Y51="Moderado",Z51="Directamente"),1,""))) ->  | AC51: =IF(AA51=0,"","0") ->  | AD51: =IF(Z51="","",IF(K51="No hay controles establecidos.",H51,IF(AB51="","",IF(AND(H51="Rara vez",AB51>0),"Rara vez",IF(AND(H51="Improbable",AB51=2),"Rara vez",IF(AND(H51="Posible",AB51=2),"Rara vez",IF(AND(H51="Posible",AB51=1),"Improbable",IF(AND(H51="Probable",AB51=2),"Improbable",IF(AND(H51="Probable",AB51=1),"Posible",IF(AND(H51="Casi seguro",AB51=2),"Posible",IF(AND(H51="Casi seguro",AB51=1),"Probable",H51))))))))))) ->  | AE51: =IF(I51="","",I51) ->  | AF51: =IF(OR(AD51="",AE51=""),"",INDEX(MCALOR,MATCH(AD51,PROBABILIDAD,0),MATCH(AE51,IMPACTO,0))) -> 
S52: 0
S53: 0
S54: 0
S55: 0
S56: 0
B58: Elaboró | D58: Revisó | E58: Aprobó
B59: Nombre: Equipo Oficina Asesora de Planeación y Control Cargo: N/A Fecha: 29/07/2020 | D59: Nombre: Carlos Ramón Bernal Echeverry Cargo: Jefe Oficina Asesora de Planeación y Control Fecha: 18/08/2020 | E59: Nombre: Carlos Ramón Bernal Echeverry Cargo: Jefe Oficina Asesora de Planeación y Control Fecha: 18/08/2020
D60: Nombre: Camilo Andrés Bustos Parra Cargo: Secretario General Fecha: 13/08/2020 | E60: Nombre: Camilo Andrés Bustos Parra Cargo: Secretario General Fecha: 13/08/2020

Sheet 5) GI - Cal
D2: MAPA INTEGRAL DE RIESGOS | E2: Código: GI-MG-001-FR-014
D3: Macroproceso: Direccionamiento Estratégico | E3: Versión: 03
D4: Proceso: Gestión Integrada | E4: Fecha de Aprobación: 14/01/2020
C6: EJE DE CALIDAD
C8: Proceso: | D8: Gestión Integrada
